Workbook

Sheet DADOS DE ENTRADA
A1: FUNDAÇÃO LIBERTAS DE SEGURIDADE SOCIAL
A2: PLANO RP4 - MGS
A3: CÁLCULO DE JOIA
A7: DADOS CADASTRAIS DO PARTICIPANTE
A8: MATRÍCULA | B8: 0
A9: NOME COMPLETO | B9: NOME DO PARTICIPANTE
A10: DATA NASCIMENTO | B10: 1975-10-15
A11: DATA ADMISSÃO | B11: 1999-09-30
A12: DATA INSCRIÇÃO | B12: 2017-10-31
A13: SALÁRIO DE PARTICIPAÇÃO (R$) | B13: 12000
A14: PERÍODO, EM MESES, DE CARÊNCIA ESPECIAL SOLICITADA PELO PARTICIPANTE, CONFORME REGULAMENTO DO PLANO (CASO NÃO SOLICITADO PELO PARTICIPANTE, PREENCHER COM 0). | B14: 0
A15: SEXO (M ou F) | B15: M
A16: SALDO DE CONTA DE RECURSOS PORTADOS - SCRP (R$) | B16: 0
A18: PARÂMETROS
A20: TETO PREVIMINAS CORRIGIDO - TPC - Junho/2018 | B20: 4190.67
A21: TETO PREVIMINAS - TP | B21: 4207.18
A22: TAXA DE CARREGAMENTO ADMINISTRATIVO | B22: 0
A24: Versão 11/06/2018

Sheet RELATÓRIO
A1: FUNDAÇÃO LIBERTAS DE SEGURIDADE SOCIAL
A2: PLANO RP4 - MGS
A3: CÁLCULO DE JOIA
A5: INFORMAÇÕES CADASTRAIS DO PARTICIPANTE
A6: MATRÍCULA | B6: ='DADOS DE ENTRADA'!B8 -> 0
A7: DATA NASCIMENTO | B7: ='DADOS DE ENTRADA'!B10 -> 1975-10-15
A8: DATA ADMISSÃO | B8: ='DADOS DE ENTRADA'!B11 -> 1999-09-30
A9: DATA INSCRIÇÃO | B9: ='DADOS DE ENTRADA'!B12 -> 2017-10-31
A10: SALÁRIO DE PARTICIPAÇÃO (R$) | B10: =ROUND('DADOS DE ENTRADA'!B13,2) -> 12000
A11: SALDO DE CONTA DE RECURSOS PORTADOS - SCRP (R$) | B11: =ROUND('DADOS DE ENTRADA'!B16,2) -> 0
A12: CONTRIBUIÇÃO NORMAL MENSAL (R$) | B12: =ROUND('PARTICIPANTES - JOIA'!Y8,2)/(1-'BASES TÉCNICAS'!$B$5) -> 193.8
A13: SEXO (M ou F) | B13: ='DADOS DE ENTRADA'!B15 -> M
A15: HIPÓTESES ATUARIAIS UTILIZADAS
A16: ECONÔMICAS, FINANCEIRAS E DEMOGRÁFICAS
A17: TPC | B17: =ROUND('DADOS DE ENTRADA'!B20,2) -> 4190.67
A18: TP | B18: =ROUND('DADOS DE ENTRADA'!B21,2) -> 4207.18
A19: ROTATIVIDADE | B19: =PREMISSAS!B4 -> Experiência Libertas MGS 2016 - ELMGS 2016
A20: TAXA DE JUROS | B20: =ROUND(PREMISSAS!B5,4) -> 0.0437
A21: CRESCIMENTO SALARIAL | B21: =ROUND(PREMISSAS!B6,4) -> 0.0032
A22: BENEFÍCIO MÍNIMO | B22: 10 % SRB
A23: TAXA DE CARREGAMENTO ADMINISTRATIVO | B23: =ROUND(PREMISSAS!B8,4) -> 0
A24: FATOR CAPACIDADE | B24: =ROUND(PREMISSAS!B9,4) -> 0.9808
A26: BIOMÉTRICAS
A27: MORTALIDADE GERAL | B27: =PREMISSAS!B13 -> AT 2000 - M & F (suavizada em 10%) D10%
A28: MORTALIDADE DE INVÁLIDOS | B28: =PREMISSAS!B14 -> MI - 85 Female D20%
A29: ENTRADA EM INVALIDEZ | B29: =PREMISSAS!B15 -> LIGHT MÉDIA D40%
A30: AUXÍLIO DOENÇA | B30: =PREMISSAS!B16 -> EXPERIÊNCIA LIBERTAS AXD 2016
A32: OBS: Em caso de alteração das hipóteses utilizadas, o simulador deverá ser revisado, visto que os Fatores Atuariais utilizados para esta simulação estão vinculados às bases técnicas ora apresentadas.
A34: RESULTADOS (1)
A35: IDADE NA INSCRIÇÃO (anos) | B35: =ROUND('PARTICIPANTES - JOIA'!K8/12,2) -> 42
A36: TEMPO DE EMPRESA NA DATA DA INSCRIÇÃO (anos) | B36: =ROUND('PARTICIPANTES - JOIA'!L8/12,2) -> 18.08
A37: IDADE PREVISTA DE APOSENTADORIA (anos) | B37: =ROUND('PARTICIPANTES - JOIA'!N8/12,2) -> 64
A38: JOIA ATUARIAL | B38: =ROUND('PARTICIPANTES - JOIA'!W8,2) -> 64204.79
A39: JOIA MÍNIMA | B39: =ROUND('PARTICIPANTES - JOIA'!Z8,2) -> 84109.2
A40: JOIA FINAL TOTAL | B40: =ROUND('PARTICIPANTES - JOIA'!AA8,2) -> 84109.2
A41: FATOR CORRETIVO DE JOIA (2) | B41: =ROUND('PARTICIPANTES - JOIA'!AC8,6) -> 2.541478
A42: CONTRIB.EXTRAORDINÁRIA DE JOIA (3) | B42: =ROUND('PARTICIPANTES - JOIA'!AD8,2) -> 492.54
A43: CONTRIB. TOTAL (NORMAL + JOIA) | B43: =B12+B42 -> 686.34
A44: TEMPO DE CONTRIBUIÇÃO FUTURA (meses) | B44: =ROUND('PARTICIPANTES - JOIA'!O8,0) -> 264
A45: OBSERVAÇÕES:
A46: (1) Os resultados apresentados têm como base a data de inscrição do Participante no Plano e possuem vigência ao longo do mês de cálculo.
A47: É o valor, atuarialmente calculado, devido pelo Participante que venha a se inscrever no Plano, considerando a idade em que teria implementado as condições para recebimento do Benefício Pleno, observado o disposto em Regulamento.
A48: Conforme disposições Regulamentares, o valor da joia não poderá ser inferior ao resultado da multiplicação do valor da contribuição normal mensal do Participante, relativo ao mês da entrada do requerimento de inscrição, pelo dobro do número de meses durante os quais o interessado, apesar de funcionalmente vinculado à Patrocinadora, tenha se conservado voluntariamente desligado ao Plano
A49: Consiste no maior valor entre a Joia Atuarial e a Joia Mínima, descontado do Saldo de Conta de Recursos Portados - SCRP, caso exista.
A50: (2) Consiste no fator numérico aplicável ao valor da contribução normal mensal do Participante, sendo que este estará isento do pagamento da joia quando o fator corretivo for inferior a 0,01.
A51: (3) Corresponde ao valor a ser pago mensalmente pelo Participante, a título de joia, condicionado ao valor da contribuição normal mensal.
B55: =TODAY() -> 2018-06-11
A56: ='DADOS DE ENTRADA'!B9 -> NOME DO PARTICIPANTE
A57: ='DADOS DE ENTRADA'!A24 -> Versão 11/06/2018

Sheet BASES TÉCNICAS (hidden)
A1: Hipóteses utilizadas pelas funções
A3: talass = | B3: 0
A4: talpen = | B4: 0
A5: adm = | B5: =ROUND('DADOS DE ENTRADA'!B22,2) -> 0
A6: LSP = | B6: =3*B7 -> 12621.54
A7: TP = | B7: ='DADOS DE ENTRADA'!B21 -> 4207.18
A8: INSS = | B8: 5645.8
A9: TPC = | B9: ='DADOS DE ENTRADA'!B20 -> 4190.67
A10: BM = | B10: 0.1
A11: BMV = | B11: 0
A12: alfa = | B12: 0.0032
A13: g1 = | B13: 0.9808
A14: g2 = | B14: 1
A15: Pa1 = | B15: 0
A16: Pa2 = | B16: 0
A17: Pa3 = | B17: 0
A18: ts= | B18: 0.01615
A19: ROT
A20: i = | B20: 0.0437
A23: Bases Técnicas para o Cálculo da Idade Provável de Aposentadoria
A24: Idade Mínima TC | C24: 64 | D24: =C24*12 -> 768
A25: Idade Mínima Homens | C25: 65 | D25: =C25*12 -> 780
A26: Idade Mínima Mulheres | C26: 60 | D26: 720
A27: Tempo Mínimo INSS Ap TC Homens | C27: 35 | D27: 420
A28: Tempo Mínimo INSS Ap TC Mulheres | C28: 30 | D28: 360
A29: Tempo Mínimo INSS Ap Idade | C29: 15 | D29: 180
A30: Tempo de Contribuição Libertas | C30: 5 | D30: 60
A31: Tempo de Empresa | C31: 10 | D31: 120
A32: Idade de Entrada no Mercado de Trabalho | C32: 18 | D32: 216

Sheet PREMISSAS (hidden)
A1: Hipóteses utilizadas pelas funções
A2: Econômicas, Financeiras e Demográficas
A3: TPC | B3: ='DADOS DE ENTRADA'!B20 -> 4190.67
A4: ROTATIVIDADE | B4: Experiência Libertas MGS 2016 - ELMGS 2016
A5: TAXA DE JUROS | B5: ='BASES TÉCNICAS'!B20 -> 0.0437
A6: CRESCIMENTO SALARIAL | B6: ='BASES TÉCNICAS'!B12 -> 0.0032
A7: TP | B7: ='DADOS DE ENTRADA'!B21 -> 4207.18
A8: TAXA DE CARREGAMENTO | B8: ='DADOS DE ENTRADA'!B22 -> 0
A9: FATOR CAPACIDADE | B9: ='BASES TÉCNICAS'!B13 -> 0.9808
A12: Biométricas
A13: MORTALIDADE GERAL | B13: AT 2000 - M & F (suavizada em 10%) D10%
A14: MORTALIDADE DE INVÁLIDOS | B14: MI - 85 Female D20%
A15: ENTRADA EM INVALIDEZ | B15: LIGHT MÉDIA D40%
A16: MORBIDEZ | B16: EXPERIÊNCIA LIBERTAS AXD 2016

Sheet PARTICIPANTES - JOIA (hidden)
C1: Data - base | D1: ='DADOS DE ENTRADA'!B12 -> 2017-10-31 | S1: =TODAY() -> 2018-06-11 | T1: =S1/S1 -> 1 | AC1: tx de juros mensal | AD1: =((1+PREMISSAS!B5)^(1/12)) -> 1.003570701 | AMK1: =TODAY() -> 2018-06-11 | AML1: =AMK1/AMK1 -> 1
A3: 1 | B3: =A3+1 -> 2 | C3: =B3+1 -> 3 | D3: 4 | E3: 5 | F3: 6 | G3: 7 | H3: 8 | I3: 9 | J3: 10 | K3: 11 | L3: 12 | M3: 13 | N3: 14 | O3: 15 | P3: 16 | Q3: 17 | R3: 18 | S3: 19 | T3: 20 | U3: 21 | V3: 22 | W3: 23 | X3: 24 | Y3: 25 | Z3: 26 | AA3: 27 | AB3: 28 | AC3: 29 | AD3: 30
I4: =+I8/12 -> 42 | J4: 0.08333333333 | K4: 42 | L4: 18.08333333 | M4: 0 | N4: 64
Q5: CAPITALIZAÇÃO / AGREGADO | W5: CÁLCULO FINAL DA JOIA E DO RESPECTIVO FATOR
A6: Matrícula | B6: Situação | C6: Dt.Nasc. | D6: Dt.Adm. | E6: Dt.Insc. | F6: Sal. Partic. | G6: SRB | H6: SCRP | I6: Idade | J6: Sexo | K6: Idade de Insc | L6: TE | M6: TP | N6: IdadeApos | O6: TSF | P6: TVP | Q6: Aposentadoria Programada | R6: Aposentadoria Invalidez | S6: Auxílio Doença | T6: Resgate | U6: Contribuição Ativo | V6: Contribuição Patrocinadora | W6: JÓIA ATUARIAL INICIAL (JI) | X6: TEMPO SEM CONTRIB. | Y6: CONTRIB MENSAL | Z6: JÓIA MÍNIMA (JM) | AA6: JÓIA | AB6: JÓIA (12) | AC6: FATOR JOIA (F JOIA) | AD6: CONTRIB.EXTRAORDINÁRIA DE JOIA
A7: TOTAL | F7: =SUM(F8:F10000) -> 12000 | G7: =SUM(G8:G65536) -> 12000 | H7: =SUM(H8:H65536) -> 0 | Q7: =SUM(Q8:Q65536) -> 32115.93128 | R7: =SUM(R8:R65536) -> 50183.10419 | S7: 14394.08163 | T7: 7243.211398 | U7: =SUM(U8:U65536) -> 19865.77 | V7: 19865.77
A8: ='DADOS DE ENTRADA'!B8 -> 0 | B8: ATIVO | C8: ='DADOS DE ENTRADA'!B10 -> 1975-10-15 | D8: ='DADOS DE ENTRADA'!B11 -> 1999-09-30 | E8: ='DADOS DE ENTRADA'!B12 -> 2017-10-31 | F8: ='DADOS DE ENTRADA'!B13 -> 12000 | G8: ='DADOS DE ENTRADA'!B13 -> 12000 | H8: ='DADOS DE ENTRADA'!B16 -> 0 | I8: =DATEDIF(C8,$D$1,"M") -> 504 | J8: =IF('DADOS DE ENTRADA'!B15="M",1,2) -> 1 | K8: =DATEDIF(C8,E8,"M") -> 504 | L8: =DATEDIF(D8,$D$1,"M") -> 217 | M8: =DATEDIF(E8,$D$1,"M") -> 0 | N8: =I8+(MAX(MIN(IF(J8=1,'BASES TÉCNICAS'!$D$24-I8,'BASES TÉCNICAS'!$D$25-I8),IF(J8=1,'BASES TÉCNICAS'!$D$27-P8,'BASES TÉCNICAS'!$D$28-P8)),MIN(IF(J8=1,'BASES TÉCNICAS'!$D$25-I8,'BASES TÉCNICAS'!$D$26-I8),'BASES TÉCNICAS'!$D$24-I8),'BASES TÉCNICAS'!$D$30-M8,'BASES TÉCNICAS'!$D$31-L8,'BASES TÉCNICAS'!$D$29-P8,0))+'DADOS DE ENTRADA'!B14 -> 768 | O8: =MAX(N8-I8,0) -> 264 | P8: =MAX(0,I8-'BASES TÉCNICAS'!$D$32) -> 288 | Q8: =EAP(G8,I8,N8,J8)*$AML$1 -> 32115.93128 | R8: =VAEINV(I8,N8,J8,G8)*$AML$1 -> 50183.10419 | S8: =VAEAXD(I8,N8,J8,G8)*$AML$1 -> 14394.08163 | T8: =ERP(F8,I8,N8,M8,K8,J8)*$AML$1 -> 7243.211398 | U8: =ROUND(VACAT(F8,I8,N8,J8),2)*$AML$1 -> 19865.77 | V8: =+U8 -> 19865.77 | W8: =MAX(SUM(Q8:T8)-((SUM(U8:V8))*(1-'BASES TÉCNICAS'!$B$5)),0) -> 64204.78851 | X8: =L8-M8 -> 217 | Y8: =CONTRIB(F8,K8,N8,K8)*(1-'BASES TÉCNICAS'!$B$5) -> 193.8 | Z8: =2*X8*(Y8/(1-'BASES TÉCNICAS'!$B$5)) -> 84109.2 | AA8: =MAX(MAX(Z8,W8)-'DADOS DE ENTRADA'!B16,0) -> 84109.2 | AB8: =AA8/IF(O8=0,0,(1-(1/($AD$1))^MAX(O8,60))/($AD$1-1)) -> 492.5383689 | AC8: =IF(AB8/Y8<0.01,0,AB8/(Y8)) -> 2.541477652 | AD8: =Y8*AC8/(1-'BASES TÉCNICAS'!$B$5) -> 492.5383689

Sheet Masculino (hidden)
A1: Idade | B1: qx | C1: qxi | D1: Dx | E1: lxaa | F1: Dxaa | G1: lxpi | H1: Dxaapi | I1: ix | J1: vx | K1: ax | L1: cx | M1: Peculio Ax | N1: aix | O1: cix | P1: Peculio Aix | Q1: Hx masculino | R1: Wx | S1: pxai | V1: 2 | W1: =V1+1 -> 3 | X1: =W1+1 -> 4 | Y1: 5 | Z1: 6 | AA1: 7 | AB1: 8 | AC1: 9 | AD1: 10 | AE1: 11 | AF1: 12 | AG1: 13 | AH1: 14 | AI1: 15 | AJ1: 16 | AK1: 17 | AL1: 18 | AM1: 19 | AN1: 20
A2: 0 | B2: =W5 -> 0.001872 | C2: =Y5 -> 0.007289601 | D2: =AC5 -> 10000000 | E2: =AF5 -> 10000000 | F2: =AG5 -> 100000000000 | G2: =E2 -> 10000000 | H2: =F2 -> 100000000000 | I2: =X5 -> 0 | J2: =AN5 -> 0 | K2: =AE5 -> 22.36822333 | L2: =0 -> 0 | M2: =AL5 -> 0 | N2: =AI5 -> 19.42903333 | O2: =0 -> 0 | P2: =AK5 -> 0 | Q2: =0 -> 0 | R2: =Z5 -> 0 | S2: =AH5 -> 0 | U2: IDADE (em meses) | V2: AT-2000 (suavizada em 10%) D10% | X2: LIGHT MÉDIA D40% | Y2: MI - 85 Female D20% | Z2: Rotatividade
A3: 1 | B3: 0.001777125 | C3: 0.007290134 | D3: 9963613 | E3: 9998405 | F3: 99635800000 | G3: 9998405 | H3: 99635800000 | I3: 0 | J3: 0 | K3: 22.36825567 | L3: =0 -> 0 | M3: 0 | N3: 19.42699977 | O3: =0 -> 0 | P3: 0 | Q3: =0 -> 0 | R3: 0 | S3: 0
A4: 2 | B4: 0.00168225 | C4: 0.007290667 | D4: 9927227 | E4: 9996810 | F4: 99271600000 | G4: 9996810 | H4: 99271600000 | I4: 0 | J4: 0 | K4: 22.36827586 | L4: =0 -> 0 | M4: 0 | N4: 19.42493943 | O4: =0 -> 0 | P4: 0 | Q4: =0 -> 0 | R4: 0 | S4: 0 | V4: px | W4: qx | X4: ix | Y4: qxi | Z4: wx | AA4: vx | AB4: lx | AC4: Dx | AD4: Nx | AE4: ax(12) | AF4: lxaa | AG4: Dxaa | AH4: pxai | AI4: axi(12) | AK4: AxI | AL4: Ax | AN4: vx (morbidez)
A5: 3 | B5: 0.001587375 | C5: 0.007291201 | D5: 9890840 | E5: 9995216 | F5: 98907400000 | G5: 9995216 | H5: 98907400000 | I5: 0 | J5: 0 | K5: 22.36830862 | L5: =0 -> 0 | M5: 0 | N5: 19.42287425 | O5: =0 -> 0 | P5: 0 | Q5: =0 -> 0 | R5: 0 | S5: 0 | U5: 0 | V5: 0.998128 | W5: 0.001872 | X5: 0 | Y5: 0.007289601 | Z5: 0 | AA5: 1 | AB5: 10000000 | AC5: 10000000 | AD5: 229098900 | AE5: 22.36822333 | AF5: 10000000 | AG5: 100000000000 | AH5: 0 | AI5: 19.42903333 | AK5: 0 | AL5: 0 | AN5: 0
A6: 4 | B6: 0.0014925 | C6: 0.007291734 | D6: 9854454 | E6: 9993621 | F6: 98543200000 | G6: 9993621 | H6: 98543200000 | I6: 0 | J6: 0 | K6: 22.36833931 | L6: =0 -> 0 | M6: 0 | N6: 19.42078994 | O6: =0 -> 0 | P6: 0 | Q6: =0 -> 0 | R6: 0 | S6: 0 | U6: 1 | V6: 0.9982229 | W6: 0.001777125 | X6: 0 | Y6: 0.007290134 | Z6: 0 | AA6: 0.9964420037 | AB6: 9998440 | AC6: 9963613 | AD6: 228265600 | AE6: 22.36825567 | AF6: 9998405 | AG6: 99635800000 | AH6: 0 | AI6: 19.42699977 | AK6: 0 | AL6: 0 | AN6: 0
A7: 5 | B7: 0.001397625 | C7: 0.007292267 | D7: 9818067 | E7: 9992026 | F7: 98179000000 | G7: 9992026 | H7: 98179000000 | I7: 0 | J7: 0 | K7: 22.36836236 | L7: =0 -> 0 | M7: 0 | N7: 19.41867811 | O7: =0 -> 0 | P7: 0 | Q7: =0 -> 0 | R7: 0 | S7: 0 | U7: 2 | V7: 0.9983178 | W7: 0.00168225 | X7: 0 | Y7: 0.007290667 | Z7: 0 | AA7: 0.9928966668 | AB7: 9996880 | AC7: 9927227 | AD7: 227432200 | AE7: 22.36827586 | AF7: 9996810 | AG7: 99271600000 | AH7: 0 | AI7: 19.42493943 | AK7: 0 | AL7: 0 | AN7: 0
A8: 6 | B8: 0.00130275 | C8: 0.0072928 | D8: 9781680 | E8: 9990431 | F8: 97814810000 | G8: 9990431 | H8: 97814810000 | I8: 0 | J8: 0 | K8: 22.36839582 | L8: =0 -> 0 | M8: 0 | N8: 19.41656094 | O8: =0 -> 0 | P8: 0 | Q8: =0 -> 0 | R8: 0 | S8: 0 | U8: 3 | V8: 0.9984126 | W8: 0.001587375 | X8: 0 | Y8: 0.007291201 | Z8: 0 | AA8: 0.9893639442 | AB8: 9995320 | AC8: 9890840 | AD8: 226598900 | AE8: 22.36830862 | AF8: 9995216 | AG8: 98907400000 | AH8: 0 | AI8: 19.42287425 | AK8: 0 | AL8: 0 | AN8: 0
A9: 7 | B9: 0.001207875 | C9: 0.007293333 | D9: 9745294 | E9: 9988836 | F9: 97450610000 | G9: 9988836 | H9: 97450610000 | I9: 0 | J9: 0 | K9: 22.36842717 | L9: =0 -> 0 | M9: 0 | N9: 19.41442398 | O9: =0 -> 0 | P9: 0 | Q9: =0 -> 0 | R9: 0 | S9: 0 | U9: 4 | V9: 0.9985075 | W9: 0.0014925 | X9: 0 | Y9: 0.007291734 | Z9: 0 | AA9: 0.985843791 | AB9: 9993760 | AC9: 9854454 | AD9: 225765600 | AE9: 22.36833931 | AF9: 9993621 | AG9: 98543200000 | AH9: 0 | AI9: 19.42078994 | AK9: 0 | AL9: 0 | AN9: 0
A10: 8 | B10: 0.001113 | C10: 0.007293866 | D10: 9708907 | E10: 9987241 | F10: 97086410000 | G10: 9987241 | H10: 97086410000 | I10: 0 | J10: 0 | K10: 22.36845082 | L10: =0 -> 0 | M10: 0 | N10: 19.41225869 | O10: =0 -> 0 | P10: 0 | Q10: =0 -> 0 | R10: 0 | S10: 0 | U10: 5 | V10: 0.9986024 | W10: 0.001397625 | X10: 0 | Y10: 0.007292267 | Z10: 0 | AA10: 0.9823361624 | AB10: 9992200 | AC10: 9818067 | AD10: 224932200 | AE10: 22.36836236 | AF10: 9992026 | AG10: 98179000000 | AH10: 0 | AI10: 19.41867811 | AK10: 0 | AL10: 0 | AN10: 0
A11: 9 | B11: 0.001018125 | C11: 0.0072944 | D11: 9672521 | E11: 9985646 | F11: 96722210000 | G11: 9985646 | H11: 96722210000 | I11: 0 | J11: 0 | K11: 22.36848261 | L11: =0 -> 0 | M11: 0 | N11: 19.41008548 | O11: =0 -> 0 | P11: 0 | Q11: =0 -> 0 | R11: 0 | S11: 0 | U11: 6 | V11: 0.9986972 | W11: 0.00130275 | X11: 0 | Y11: 0.0072928 | Z11: 0 | AA11: 0.978841014 | AB11: 9990640 | AC11: 9781680 | AD11: 224098900 | AE11: 22.36839582 | AF11: 9990431 | AG11: 97814810000 | AH11: 0 | AI11: 19.41656094 | AK11: 0 | AL11: 0 | AN11: 0
A12: 10 | B12: 0.00092325 | C12: 0.007294933 | D12: 9636134 | E12: 9984052 | F12: 96358010000 | G12: 9984052 | H12: 96358010000 | I12: 0 | J12: 0 | K12: 22.36851702 | L12: =0 -> 0 | M12: 0 | N12: 19.40789383 | O12: =0 -> 0 | P12: 0 | Q12: =0 -> 0 | R12: 0 | S12: 0 | U12: 7 | V12: 0.9987921 | W12: 0.001207875 | X12: 0 | Y12: 0.007293333 | Z12: 0 | AA12: 0.9753583014 | AB12: 9989080 | AC12: 9745294 | AD12: 223265600 | AE12: 22.36842717 | AF12: 9988836 | AG12: 97450610000 | AH12: 0 | AI12: 19.41442398 | AK12: 0 | AL12: 0 | AN12: 0
A13: 11 | B13: 0.000828375 | C13: 0.007295466 | D13: 9599748 | E13: 9982457 | F13: 95993810000 | G13: 9982457 | H13: 95993810000 | I13: 0 | J13: 0 | K13: 22.36853889 | L13: =0 -> 0 | M13: 0 | N13: 19.40567511 | O13: =0 -> 0 | P13: 0 | Q13: =0 -> 0 | R13: 0 | S13: 0 | U13: 8 | V13: 0.998887 | W13: 0.001113 | X13: 0 | Y13: 0.007293866 | Z13: 0 | AA13: 0.9718879802 | AB13: 9987520 | AC13: 9708907 | AD13: 222432200 | AE13: 22.36845082 | AF13: 9987241 | AG13: 97086410000 | AH13: 0 | AI13: 19.41225869 | AK13: 0 | AL13: 0 | AN13: 0
A14: 12 | B14: 0.0007335 | C14: 0.007296 | D14: 9563361 | E14: 9980862 | F14: 95629610000 | G14: 9980862 | H14: 95629610000 | I14: 0 | J14: 0 | K14: 22.36857378 | L14: =0 -> 0 | M14: 0 | N14: 19.40344582 | O14: =0 -> 0 | P14: 0 | Q14: =0 -> 0 | R14: 0 | S14: 0 | U14: 9 | V14: 0.9989819 | W14: 0.001018125 | X14: 0 | Y14: 0.0072944 | Z14: 0 | AA14: 0.9684300064 | AB14: 9985960 | AC14: 9672521 | AD14: 221598900 | AE14: 22.36848261 | AF14: 9985646 | AG14: 96722210000 | AH14: 0 | AI14: 19.41008548 | AK14: 0 | AL14: 0 | AN14: 0
A15: 13 | B15: 0.000706425 | C15: 0.007296599 | D15: 9529432 | E15: 9980217 | F15: 95290020000 | G15: 9980217 | H15: 95290020000 | I15: 0 | J15: 0 | K15: 22.36651926 | L15: =0 -> 0 | M15: 0 | N15: 19.401317 | O15: =0 -> 0 | P15: 0 | Q15: =0 -> 0 | R15: 0 | S15: 0 | U15: 10 | V15: 0.9990767 | W15: 0.00092325 | X15: 0 | Y15: 0.007294933 | Z15: 0 | AA15: 0.964984336 | AB15: 9984400 | AC15: 9636134 | AD15: 220765600 | AE15: 22.36851702 | AF15: 9984052 | AG15: 96358010000 | AH15: 0 | AI15: 19.40789383 | AK15: 0 | AL15: 0 | AN15: 0
A16: 14 | B16: 0.00067935 | C16: 0.0072972 | D16: 9495504 | E16: 9979572 | F16: 94950420000 | G16: 9979572 | H16: 94950420000 | I16: 0 | J16: 0 | K16: 22.36443711 | L16: =0 -> 0 | M16: 0 | N16: 19.39917071 | O16: =0 -> 0 | P16: 0 | Q16: =0 -> 0 | R16: 0 | S16: 0 | U16: 11 | V16: 0.9991716 | W16: 0.000828375 | X16: 0 | Y16: 0.007295466 | Z16: 0 | AA16: 0.9615509254 | AB16: 9982840 | AC16: 9599748 | AD16: 219932200 | AE16: 22.36853889 | AF16: 9982457 | AG16: 95993810000 | AH16: 0 | AI16: 19.40567511 | AK16: 0 | AL16: 0 | AN16: 0
A17: 15 | B17: 0.000652275 | C17: 0.0072978 | D17: 9461576 | E17: 9978927 | F17: 94610830000 | G17: 9978927 | H17: 94610830000 | I17: 0 | J17: 0 | K17: 22.36235059 | L17: =0 -> 0 | M17: 0 | N17: 19.39700672 | O17: =0 -> 0 | P17: 0 | Q17: =0 -> 0 | R17: 0 | S17: 0 | U17: 12 | V17: 0.9992665 | W17: 0.0007335 | X17: 0 | Y17: 0.007296 | Z17: 0 | AA17: 0.9581297308 | AB17: 9981280 | AC17: 9563361 | AD17: 219098900 | AE17: 22.36857378 | AF17: 9980862 | AG17: 95629610000 | AH17: 0 | AI17: 19.40344582 | AK17: 0 | AL17: 0 | AN17: 0
A18: 16 | B18: 0.0006252 | C18: 0.0072984 | D18: 9427647 | E18: 9978282 | F18: 94271240000 | G18: 9978282 | H18: 94271240000 | I18: 0 | J18: 0 | K18: 22.36024088 | L18: =0 -> 0 | M18: 0 | N18: 19.39481413 | O18: =0 -> 0 | P18: 0 | Q18: =0 -> 0 | R18: 0 | S18: 0 | U18: 13 | V18: 0.9992936 | W18: 0.000706425 | X18: 0 | Y18: 0.007296599 | Z18: 0 | AA18: 0.9547207088 | AB18: 9980670 | AC18: 9529432 | AD18: 218302000 | AE18: 22.36651926 | AF18: 9980217 | AG18: 95290020000 | AH18: 0 | AI18: 19.401317 | AK18: 0 | AL18: 0 | AN18: 0
A19: 17 | B19: 0.000598125 | C19: 0.007298999 | D19: 9393718 | E19: 9977637 | F19: 93931650000 | G19: 9977637 | H19: 93931650000 | I19: 0 | J19: 0 | K19: 22.35812658 | L19: =0 -> 0 | M19: 0 | N19: 19.39261405 | O19: =0 -> 0 | P19: 0 | Q19: =0 -> 0 | R19: 0 | S19: 0 | U19: 14 | V19: 0.9993206 | W19: 0.00067935 | X19: 0 | Y19: 0.0072972 | Z19: 0 | AA19: 0.951323816 | AB19: 9980060 | AC19: 9495504 | AD19: 217505000 | AE19: 22.36443711 | AF19: 9979572 | AG19: 94950420000 | AH19: 0 | AI19: 19.39917071 | AK19: 0 | AL19: 0 | AN19: 0
A20: 18 | B20: 0.00057105 | C20: 0.0072996 | D20: 9359790 | E20: 9976992 | F20: 93592060000 | G20: 9976992 | H20: 93592060000 | I20: 0 | J20: 0 | K20: 22.35598381 | L20: =0 -> 0 | M20: 0 | N20: 19.39039775 | O20: =0 -> 0 | P20: 0 | Q20: =0 -> 0 | R20: 0 | S20: 0 | U20: 15 | V20: 0.9993477 | W20: 0.000652275 | X20: 0 | Y20: 0.0072978 | Z20: 0 | AA20: 0.9479390095 | AB20: 9979450 | AC20: 9461576 | AD20: 216708100 | AE20: 22.36235059 | AF20: 9978927 | AG20: 94610830000 | AH20: 0 | AI20: 19.39700672 | AK20: 0 | AL20: 0 | AN20: 0
A21: 19 | B21: 0.000543975 | C21: 0.0073002 | D21: 9325862 | E21: 9976348 | F21: 93252480000 | G21: 9976348 | H21: 93252480000 | I21: 0 | J21: 0 | K21: 22.35383618 | L21: =0 -> 0 | M21: 0 | N21: 19.38816071 | O21: =0 -> 0 | P21: 0 | Q21: =0 -> 0 | R21: 0 | S21: 0 | U21: 16 | V21: 0.9993748 | W21: 0.0006252 | X21: 0 | Y21: 0.0072984 | Z21: 0 | AA21: 0.944566246 | AB21: 9978840 | AC21: 9427647 | AD21: 215911100 | AE21: 22.36024088 | AF21: 9978282 | AG21: 94271240000 | AH21: 0 | AI21: 19.39481413 | AK21: 0 | AL21: 0 | AN21: 0
A22: 20 | B22: 0.0005169 | C22: 0.0073008 | D22: 9291933 | E22: 9975703 | F22: 92912890000 | G22: 9975703 | H22: 92912890000 | I22: 0 | J22: 0 | K22: 22.35166457 | L22: =0 -> 0 | M22: 0 | N22: 19.38590485 | O22: =0 -> 0 | P22: 0 | Q22: =0 -> 0 | R22: 0 | S22: 0 | U22: 17 | V22: 0.9994019 | W22: 0.000598125 | X22: 0 | Y22: 0.007298999 | Z22: 0 | AA22: 0.9412054828 | AB22: 9978230 | AC22: 9393718 | AD22: 215114200 | AE22: 22.35812658 | AF22: 9977637 | AG22: 93931650000 | AH22: 0 | AI22: 19.39261405 | AK22: 0 | AL22: 0 | AN22: 0
A23: 21 | B23: 0.000489825 | C23: 0.007301399 | D23: 9258004 | E23: 9975058 | F23: 92573290000 | G23: 9975058 | H23: 92573290000 | I23: 0 | J23: 0 | K23: 22.34948784 | L23: =0 -> 0 | M23: 0 | N23: 19.383619 | O23: =0 -> 0 | P23: 0 | Q23: =0 -> 0 | R23: 0 | S23: 0 | U23: 18 | V23: 0.9994289 | W23: 0.00057105 | X23: 0 | Y23: 0.0072996 | Z23: 0 | AA23: 0.9378566772 | AB23: 9977620 | AC23: 9359790 | AD23: 214317200 | AE23: 22.35598381 | AF23: 9976992 | AG23: 93592060000 | AH23: 0 | AI23: 19.39039775 | AK23: 0 | AL23: 0 | AN23: 0
A24: 22 | B24: 0.00046275 | C24: 0.007302 | D24: 9224076 | E24: 9974413 | F24: 92233700000 | G24: 9974413 | H24: 92233700000 | I24: 0 | J24: 0 | K24: 22.34728178 | L24: =0 -> 0 | M24: 0 | N24: 19.3813247 | O24: =0 -> 0 | P24: 0 | Q24: =0 -> 0 | R24: 0 | S24: 0 | U24: 19 | V24: 0.999456 | W24: 0.000543975 | X24: 0 | Y24: 0.0073002 | Z24: 0 | AA24: 0.9345197867 | AB24: 9977009 | AC24: 9325862 | AD24: 213520300 | AE24: 22.35383618 | AF24: 9976348 | AG24: 93252480000 | AH24: 0 | AI24: 19.38816071 | AK24: 0 | AL24: 0 | AN24: 0
A25: 23 | B25: 0.000435675 | C25: 0.0073026 | D25: 9190148 | E25: 9973768 | F25: 91894110000 | G25: 9973768 | H25: 91894110000 | I25: 0 | J25: 0 | K25: 22.3450703 | L25: =0 -> 0 | M25: 0 | N25: 19.37901085 | O25: =0 -> 0 | P25: 0 | Q25: =0 -> 0 | R25: 0 | S25: 0 | U25: 20 | V25: 0.9994831 | W25: 0.0005169 | X25: 0 | Y25: 0.0073008 | Z25: 0 | AA25: 0.9311947688 | AB25: 9976399 | AC25: 9291933 | AD25: 212723300 | AE25: 22.35166457 | AF25: 9975703 | AG25: 92912890000 | AH25: 0 | AI25: 19.38590485 | AK25: 0 | AL25: 0 | AN25: 0
A26: 24 | B26: 0.0004086 | C26: 0.0073032 | D26: 9156219 | E26: 9973123 | F26: 91554520000 | G26: 9973123 | H26: 91554520000 | I26: 0 | J26: 0 | K26: 22.34283402 | L26: =0 -> 0 | M26: 0 | N26: 19.37667718 | O26: =0 -> 0 | P26: 0 | Q26: =0 -> 0 | R26: 0 | S26: 0 | U26: 21 | V26: 0.9995102 | W26: 0.000489825 | X26: 0 | Y26: 0.007301399 | Z26: 0 | AA26: 0.9278815813 | AB26: 9975789 | AC26: 9258004 | AD26: 211926400 | AE26: 22.34948784 | AF26: 9975058 | AG26: 92573290000 | AH26: 0 | AI26: 19.383619 | AK26: 0 | AL26: 0 | AN26: 0
A27: 25 | B27: 0.000402075 | C27: 0.0073038 | D27: 9123972 | E27: 9972749 | F27: 91231780000 | G27: 9972749 | H27: 91231780000 | I27: 0 | J27: 0 | K27: 22.34008922 | L27: =0 -> 0 | M27: 0 | N27: 19.3744476 | O27: =0 -> 0 | P27: 0 | Q27: =0 -> 0 | R27: 0 | S27: 0 | U27: 22 | V27: 0.9995372 | W27: 0.00046275 | X27: 0 | Y27: 0.007302 | Z27: 0 | AA27: 0.9245801821 | AB27: 9975179 | AC27: 9224076 | AD27: 211129400 | AE27: 22.34728178 | AF27: 9974413 | AG27: 92233700000 | AH27: 0 | AI27: 19.3813247 | AK27: 0 | AL27: 0 | AN27: 0
A28: 26 | B28: 0.00039555 | C28: 0.0073044 | D28: 9091726 | E28: 9972374 | F28: 90909030000 | G28: 9972374 | H28: 90909030000 | I28: 0 | J28: 0 | K28: 22.33732243 | L28: =0 -> 0 | M28: 0 | N28: 19.3721997 | O28: =0 -> 0 | P28: 0 | Q28: =0 -> 0 | R28: 0 | S28: 0 | U28: 23 | V28: 0.9995643 | W28: 0.000435675 | X28: 0 | Y28: 0.0073026 | Z28: 0 | AA28: 0.9212905292 | AB28: 9974569 | AC28: 9190148 | AD28: 210332500 | AE28: 22.3450703 | AF28: 9973768 | AG28: 91894110000 | AH28: 0 | AI28: 19.37901085 | AK28: 0 | AL28: 0 | AN28: 0
A29: 27 | B29: 0.000389025 | C29: 0.007305 | D29: 9059480 | E29: 9972000 | F29: 90586290000 | G29: 9972000 | H29: 90586290000 | I29: 0 | J29: 0 | K29: 22.33453594 | L29: =0 -> 0 | M29: 0 | N29: 19.36993327 | O29: =0 -> 0 | P29: 0 | Q29: =0 -> 0 | R29: 0 | S29: 0 | U29: 24 | V29: 0.9995914 | W29: 0.0004086 | X29: 0 | Y29: 0.0073032 | Z29: 0 | AA29: 0.918012581 | AB29: 9973959 | AC29: 9156219 | AD29: 209535500 | AE29: 22.34283402 | AF29: 9973123 | AG29: 91554520000 | AH29: 0 | AI29: 19.37667718 | AK29: 0 | AL29: 0 | AN29: 0
A30: 28 | B30: 0.0003825 | C30: 0.0073056 | D30: 9027233 | E30: 9971626 | F30: 90263540000 | G30: 9971626 | H30: 90263540000 | I30: 0 | J30: 0 | K30: 22.33173208 | L30: =0 -> 0 | M30: 0 | N30: 19.36764808 | O30: =0 -> 0 | P30: 0 | Q30: =0 -> 0 | R30: 0 | S30: 0 | U30: 25 | V30: 0.9995979 | W30: 0.000402075 | X30: 0 | Y30: 0.0073038 | Z30: 0 | AA30: 0.9147462956 | AB30: 9973619 | AC30: 9123972 | AD30: 208772500 | AE30: 22.34008922 | AF30: 9972749 | AG30: 91231780000 | AH30: 0 | AI30: 19.3744476 | AK30: 0 | AL30: 0 | AN30: 0
A31: 29 | B31: 0.000375975 | C31: 0.0073062 | D31: 8994986 | E31: 9971251 | F31: 89940800000 | G31: 9971251 | H31: 89940800000 | I31: 0 | J31: 0 | K31: 22.328897 | L31: =0 -> 0 | M31: 0 | N31: 19.36534389 | O31: =0 -> 0 | P31: 0 | Q31: =0 -> 0 | R31: 0 | S31: 0 | U31: 26 | V31: 0.9996045 | W31: 0.00039555 | X31: 0 | Y31: 0.0073044 | Z31: 0 | AA31: 0.9114916317 | AB31: 9973280 | AC31: 9091726 | AD31: 208009500 | AE31: 22.33732243 | AF31: 9972374 | AG31: 90909030000 | AH31: 0 | AI31: 19.3721997 | AK31: 0 | AL31: 0 | AN31: 0
A32: 30 | B32: 0.00036945 | C32: 0.0073068 | D32: 8962740 | E32: 9970877 | F32: 89618060000 | G32: 9970877 | H32: 89618060000 | I32: 0 | J32: 0 | K32: 22.32605013 | L32: =0 -> 0 | M32: 0 | N32: 19.36302046 | O32: =0 -> 0 | P32: 0 | Q32: =0 -> 0 | R32: 0 | S32: 0 | U32: 27 | V32: 0.999611 | W32: 0.000389025 | X32: 0 | Y32: 0.007305 | Z32: 0 | AA32: 0.9082485479 | AB32: 9972940 | AC32: 9059480 | AD32: 207246500 | AE32: 22.33453594 | AF32: 9972000 | AG32: 90586290000 | AH32: 0 | AI32: 19.36993327 | AK32: 0 | AL32: 0 | AN32: 0
A33: 31 | B33: 0.000362925 | C33: 0.0073074 | D33: 8930494 | E33: 9970503 | F33: 89295310000 | G33: 9970503 | H33: 89295310000 | I33: 0 | J33: 0 | K33: 22.32318269 | L33: =0 -> 0 | M33: 0 | N33: 19.36067755 | O33: =0 -> 0 | P33: 0 | Q33: =0 -> 0 | R33: 0 | S33: 0 | U33: 28 | V33: 0.9996175 | W33: 0.0003825 | X33: 0 | Y33: 0.0073056 | Z33: 0 | AA33: 0.905017003 | AB33: 9972601 | AC33: 9027233 | AD33: 206483500 | AE33: 22.33173208 | AF33: 9971626 | AG33: 90263540000 | AH33: 0 | AI33: 19.36764808 | AK33: 0 | AL33: 0 | AN33: 0
A34: 32 | B34: 0.0003564 | C34: 0.007308 | D34: 8898247 | E34: 9970128 | F34: 88972570000 | G34: 9970128 | H34: 88972570000 | I34: 0 | J34: 0 | K34: 22.32029704 | L34: =0 -> 0 | M34: 0 | N34: 19.35831491 | O34: =0 -> 0 | P34: 0 | Q34: =0 -> 0 | R34: 0 | S34: 0 | U34: 29 | V34: 0.999624 | W34: 0.000375975 | X34: 0 | Y34: 0.0073062 | Z34: 0 | AA34: 0.9017969559 | AB34: 9972261 | AC34: 8994986 | AD34: 205720400 | AE34: 22.328897 | AF34: 9971251 | AG34: 89940800000 | AH34: 0 | AI34: 19.36534389 | AK34: 0 | AL34: 0 | AN34: 0
A35: 33 | B35: 0.000349875 | C35: 0.0073086 | D35: 8866000 | E35: 9969754 | F35: 88649830000 | G35: 9969754 | H35: 88649830000 | I35: 0 | J35: 0 | K35: 22.31739041 | L35: =0 -> 0 | M35: 0 | N35: 19.35593231 | O35: =0 -> 0 | P35: 0 | Q35: =0 -> 0 | R35: 0 | S35: 0 | U35: 30 | V35: 0.9996306 | W35: 0.00036945 | X35: 0 | Y35: 0.0073068 | Z35: 0 | AA35: 0.8985883657 | AB35: 9971922 | AC35: 8962740 | AD35: 204957400 | AE35: 22.32605013 | AF35: 9970877 | AG35: 89618060000 | AH35: 0 | AI35: 19.36302046 | AK35: 0 | AL35: 0 | AN35: 0
A36: 34 | B36: 0.00034335 | C36: 0.0073092 | D36: 8833754 | E36: 9969380 | F36: 88327090000 | G36: 9969380 | H36: 88327090000 | I36: 0 | J36: 0 | K36: 22.31444864 | L36: =0 -> 0 | M36: 0 | N36: 19.35354099 | O36: =0 -> 0 | P36: 0 | Q36: =0 -> 0 | R36: 0 | S36: 0 | U36: 31 | V36: 0.9996371 | W36: 0.000362925 | X36: 0 | Y36: 0.0073074 | Z36: 0 | AA36: 0.8953911916 | AB36: 9971582 | AC36: 8930494 | AD36: 204194400 | AE36: 22.32318269 | AF36: 9970503 | AG36: 89295310000 | AH36: 0 | AI36: 19.36067755 | AK36: 0 | AL36: 0 | AN36: 0
A37: 35 | B37: 0.000336825 | C37: 0.0073098 | D37: 8801508 | E37: 9969005 | F37: 88004340000 | G37: 9969005 | H37: 88004340000 | I37: 0 | J37: 0 | K37: 22.31149668 | L37: =0 -> 0 | M37: 0 | N37: 19.35111772 | O37: =0 -> 0 | P37: 0 | Q37: =0 -> 0 | R37: 0 | S37: 0 | U37: 32 | V37: 0.9996436 | W37: 0.0003564 | X37: 0 | Y37: 0.007308 | Z37: 0 | AA37: 0.8922053931 | AB37: 9971242 | AC37: 8898247 | AD37: 203431400 | AE37: 22.32029704 | AF37: 9970128 | AG37: 88972570000 | AH37: 0 | AI37: 19.35831491 | AK37: 0 | AL37: 0 | AN37: 0
A38: 36 | B38: 0.0003303 | C38: 0.0073104 | D38: 8769261 | E38: 9968631 | F38: 87681600000 | G38: 9968631 | H38: 87681600000 | I38: 0 | J38: 0 | K38: 22.30852561 | L38: =0 -> 0 | M38: 0 | N38: 19.34867369 | O38: =0 -> 0 | P38: 0 | Q38: =0 -> 0 | R38: 0 | S38: 0 | U38: 33 | V38: 0.9996501 | W38: 0.000349875 | X38: 0 | Y38: 0.0073086 | Z38: 0 | AA38: 0.8890309296 | AB38: 9970903 | AC38: 8866000 | AD38: 202668400 | AE38: 22.31739041 | AF38: 9969754 | AG38: 88649830000 | AH38: 0 | AI38: 19.35593231 | AK38: 0 | AL38: 0 | AN38: 0
A39: 37 | B39: 0.00032685 | C39: 0.007311067 | D39: 8738432 | E39: 9968322 | F39: 87373050000 | G39: 9968322 | H39: 87373050000 | I39: 0 | J39: 0 | K39: 22.30551004 | L39: =0 -> 0 | M39: 0 | N39: 19.34633715 | O39: =0 -> 0 | P39: 0 | Q39: =0 -> 0 | R39: 0 | S39: 0 | U39: 34 | V39: 0.9996567 | W39: 0.00034335 | X39: 0 | Y39: 0.0073092 | Z39: 0 | AA39: 0.8858677609 | AB39: 9970563 | AC39: 8833754 | AD39: 201905300 | AE39: 22.31444864 | AF39: 9969380 | AG39: 88327090000 | AH39: 0 | AI39: 19.35354099 | AK39: 0 | AL39: 0 | AN39: 0
A40: 38 | B40: 0.0003234 | C40: 0.007311733 | D40: 8707603 | E40: 9968013 | F40: 87064510000 | G40: 9968013 | H40: 87064510000 | I40: 0 | J40: 0 | K40: 22.30248459 | L40: =0 -> 0 | M40: 0 | N40: 19.34399081 | O40: =0 -> 0 | P40: 0 | Q40: =0 -> 0 | R40: 0 | S40: 0 | U40: 35 | V40: 0.9996632 | W40: 0.000336825 | X40: 0 | Y40: 0.0073098 | Z40: 0 | AA40: 0.8827158467 | AB40: 9970224 | AC40: 8801508 | AD40: 201142300 | AE40: 22.31149668 | AF40: 9969005 | AG40: 88004340000 | AH40: 0 | AI40: 19.35111772 | AK40: 0 | AL40: 0 | AN40: 0
A41: 39 | B41: 0.00031995 | C41: 0.0073124 | D41: 8676774 | E41: 9967704 | F41: 86755970000 | G41: 9967704 | H41: 86755970000 | I41: 0 | J41: 0 | K41: 22.29942612 | L41: =0 -> 0 | M41: 0 | N41: 19.3416157 | O41: =0 -> 0 | P41: 0 | Q41: =0 -> 0 | R41: 0 | S41: 0 | U41: 36 | V41: 0.9996697 | W41: 0.0003303 | X41: 0 | Y41: 0.0073104 | Z41: 0 | AA41: 0.8795751471 | AB41: 9969884 | AC41: 8769261 | AD41: 200379300 | AE41: 22.30852561 | AF41: 9968631 | AG41: 87681600000 | AH41: 0 | AI41: 19.34867369 | AK41: 0 | AL41: 0 | AN41: 0
A42: 40 | B42: 0.0003165 | C42: 0.007313067 | D42: 8645946 | E42: 9967394 | F42: 86447420000 | G42: 9967394 | H42: 86447420000 | I42: 0 | J42: 0 | K42: 22.29634319 | L42: =0 -> 0 | M42: 0 | N42: 19.33923038 | O42: =0 -> 0 | P42: 0 | Q42: =0 -> 0 | R42: 0 | S42: 0 | U42: 37 | V42: 0.9996731 | W42: 0.00032685 | X42: 0 | Y42: 0.007311067 | Z42: 0 | AA42: 0.876445622 | AB42: 9969610 | AC42: 8738432 | AD42: 199648500 | AE42: 22.30551004 | AF42: 9968322 | AG42: 87373050000 | AH42: 0 | AI42: 19.34633715 | AK42: 0 | AL42: 0 | AN42: 0
A43: 41 | B43: 0.00031305 | C43: 0.007313733 | D43: 8615117 | E43: 9967085 | F43: 86138880000 | G43: 9967085 | H43: 86138880000 | I43: 0 | J43: 0 | K43: 22.29324086 | L43: =0 -> 0 | M43: 0 | N43: 19.33681573 | O43: =0 -> 0 | P43: 0 | Q43: =0 -> 0 | R43: 0 | S43: 0 | U43: 38 | V43: 0.9996766 | W43: 0.0003234 | X43: 0 | Y43: 0.007311733 | Z43: 0 | AA43: 0.8733272317 | AB43: 9969335 | AC43: 8707603 | AD43: 198917800 | AE43: 22.30248459 | AF43: 9968013 | AG43: 87064510000 | AH43: 0 | AI43: 19.34399081 | AK43: 0 | AL43: 0 | AN43: 0
A44: 42 | B44: 0.0003096 | C44: 0.0073144 | D44: 8584288 | E44: 9966776 | F44: 85830340000 | G44: 9966776 | H44: 85830340000 | I44: 0 | J44: 0 | K44: 22.29012789 | L44: =0 -> 0 | M44: 0 | N44: 19.33439283 | O44: =0 -> 0 | P44: 0 | Q44: =0 -> 0 | R44: 0 | S44: 0 | U44: 39 | V44: 0.99968 | W44: 0.00031995 | X44: 0 | Y44: 0.0073124 | Z44: 0 | AA44: 0.8702199367 | AB44: 9969061 | AC44: 8676774 | AD44: 198187000 | AE44: 22.29942612 | AF44: 9967704 | AG44: 86755970000 | AH44: 0 | AI44: 19.3416157 | AK44: 0 | AL44: 0 | AN44: 0
A45: 43 | B45: 0.00030615 | C45: 0.007315067 | D45: 8553459 | E45: 9966467 | F45: 85521790000 | G45: 9966467 | H45: 85521790000 | I45: 0 | J45: 0 | K45: 22.28698078 | L45: =0 -> 0 | M45: 0 | N45: 19.33193527 | O45: =0 -> 0 | P45: 0 | Q45: =0 -> 0 | R45: 0 | S45: 0 | U45: 40 | V45: 0.9996835 | W45: 0.0003165 | X45: 0 | Y45: 0.007313067 | Z45: 0 | AA45: 0.8671236974 | AB45: 9968786 | AC45: 8645946 | AD45: 197456200 | AE45: 22.29634319 | AF45: 9967394 | AG45: 86447420000 | AH45: 0 | AI45: 19.33923038 | AK45: 0 | AL45: 0 | AN45: 0
A46: 44 | B46: 0.0003027 | C46: 0.007315733 | D46: 8522630 | E46: 9966158 | F46: 85213250000 | G46: 9966158 | H46: 85213250000 | I46: 0 | J46: 0 | K46: 22.28381091 | L46: =0 -> 0 | M46: 0 | N46: 19.32946903 | O46: =0 -> 0 | P46: 0 | Q46: =0 -> 0 | R46: 0 | S46: 0 | U46: 41 | V46: 0.999687 | W46: 0.00031305 | X46: 0 | Y46: 0.007313733 | Z46: 0 | AA46: 0.8640384745 | AB46: 9968512 | AC46: 8615117 | AD46: 196725400 | AE46: 22.29324086 | AF46: 9967085 | AG46: 86138880000 | AH46: 0 | AI46: 19.33681573 | AK46: 0 | AL46: 0 | AN46: 0
A47: 45 | B47: 0.00029925 | C47: 0.0073164 | D47: 8491802 | E47: 9965848 | F47: 84904710000 | G47: 9965848 | H47: 84904710000 | I47: 0 | J47: 0 | K47: 22.28062712 | L47: =0 -> 0 | M47: 0 | N47: 19.32697227 | O47: =0 -> 0 | P47: 0 | Q47: =0 -> 0 | R47: 0 | S47: 0 | U47: 42 | V47: 0.9996904 | W47: 0.0003096 | X47: 0 | Y47: 0.0073144 | Z47: 0 | AA47: 0.8609642289 | AB47: 9968238 | AC47: 8584288 | AD47: 195994700 | AE47: 22.29012789 | AF47: 9966776 | AG47: 85830340000 | AH47: 0 | AI47: 19.33439283 | AK47: 0 | AL47: 0 | AN47: 0
A48: 46 | B48: 0.0002958 | C48: 0.007317067 | D48: 8460973 | E48: 9965539 | F48: 84596160000 | G48: 9965539 | H48: 84596160000 | I48: 0 | J48: 0 | K48: 22.277411 | L48: =0 -> 0 | M48: 0 | N48: 19.32446642 | O48: =0 -> 0 | P48: 0 | Q48: =0 -> 0 | R48: 0 | S48: 0 | U48: 43 | V48: 0.9996939 | W48: 0.00030615 | X48: 0 | Y48: 0.007315067 | Z48: 0 | AA48: 0.8579009214 | AB48: 9967963 | AC48: 8553459 | AD48: 195263900 | AE48: 22.28698078 | AF48: 9966467 | AG48: 85521790000 | AH48: 0 | AI48: 19.33193527 | AK48: 0 | AL48: 0 | AN48: 0
A49: 47 | B49: 0.00029235 | C49: 0.007317733 | D49: 8430144 | E49: 9965230 | F49: 84287620000 | G49: 9965230 | H49: 84287620000 | I49: 0 | J49: 0 | K49: 22.27417135 | L49: =0 -> 0 | M49: 0 | N49: 19.32192462 | O49: =0 -> 0 | P49: 0 | Q49: =0 -> 0 | R49: 0 | S49: 0 | U49: 44 | V49: 0.9996973 | W49: 0.0003027 | X49: 0 | Y49: 0.007315733 | Z49: 0 | AA49: 0.8548485131 | AB49: 9967689 | AC49: 8522630 | AD49: 194533100 | AE49: 22.28381091 | AF49: 9966158 | AG49: 85213250000 | AH49: 0 | AI49: 19.32946903 | AK49: 0 | AL49: 0 | AN49: 0
A50: 48 | B50: 0.0002889 | C50: 0.0073184 | D50: 8399315 | E50: 9964921 | F50: 83979080000 | G50: 9964921 | H50: 83979080000 | I50: 0 | J50: 0 | K50: 22.27090793 | L50: =0 -> 0 | M50: 0 | N50: 19.3193757 | O50: =0 -> 0 | P50: 0 | Q50: =0 -> 0 | R50: 0 | S50: 0 | U50: 45 | V50: 0.9997007 | W50: 0.00029925 | X50: 0 | Y50: 0.0073164 | Z50: 0 | AA50: 0.8518069653 | AB50: 9967414 | AC50: 8491802 | AD50: 193802400 | AE50: 22.28062712 | AF50: 9965848 | AG50: 84904710000 | AH50: 0 | AI50: 19.32697227 | AK50: 0 | AL50: 0 | AN50: 0
A51: 49 | B51: 0.00028665 | C51: 0.007319133 | D51: 8369815 | E51: 9964646 | F51: 83683840000 | G51: 9964646 | H51: 83683840000 | I51: 0 | J51: 0 | K51: 22.26769053 | L51: =0 -> 0 | M51: 0 | N51: 19.3169253 | O51: =0 -> 0 | P51: 0 | Q51: =0 -> 0 | R51: 0 | S51: 0 | U51: 46 | V51: 0.9997042 | W51: 0.0002958 | X51: 0 | Y51: 0.007317067 | Z51: 0 | AA51: 0.8487762393 | AB51: 9967140 | AC51: 8460973 | AD51: 193071600 | AE51: 22.277411 | AF51: 9965539 | AG51: 84596160000 | AH51: 0 | AI51: 19.32446642 | AK51: 0 | AL51: 0 | AN51: 0
A52: 50 | B52: 0.0002844 | C52: 0.007319867 | D52: 8340314 | E52: 9964372 | F52: 83388600000 | G52: 9964372 | H52: 83388600000 | I52: 0 | J52: 0 | K52: 22.26444111 | L52: =0 -> 0 | M52: 0 | N52: 19.31446709 | O52: =0 -> 0 | P52: 0 | Q52: =0 -> 0 | R52: 0 | S52: 0 | U52: 47 | V52: 0.9997076 | W52: 0.00029235 | X52: 0 | Y52: 0.007317733 | Z52: 0 | AA52: 0.8457562966 | AB52: 9966865 | AC52: 8430144 | AD52: 192340800 | AE52: 22.27417135 | AF52: 9965230 | AG52: 84287620000 | AH52: 0 | AI52: 19.32192462 | AK52: 0 | AL52: 0 | AN52: 0
A53: 51 | B53: 0.00028215 | C53: 0.0073206 | D53: 8310813 | E53: 9964097 | F53: 83093360000 | G53: 9964097 | H53: 83093360000 | I53: 0 | J53: 0 | K53: 22.26118066 | L53: =0 -> 0 | M53: 0 | N53: 19.31198861 | O53: =0 -> 0 | P53: 0 | Q53: =0 -> 0 | R53: 0 | S53: 0 | U53: 48 | V53: 0.9997111 | W53: 0.0002889 | X53: 0 | Y53: 0.0073184 | Z53: 0 | AA53: 0.8427470988 | AB53: 9966591 | AC53: 8399315 | AD53: 191610000 | AE53: 22.27090793 | AF53: 9964921 | AG53: 83979080000 | AH53: 0 | AI53: 19.3193757 | AK53: 0 | AL53: 0 | AN53: 0
A54: 52 | B54: 0.0002799 | C54: 0.007321333 | D54: 8281313 | E54: 9963822 | F54: 82798130000 | G54: 9963822 | H54: 82798130000 | I54: 0 | J54: 0 | K54: 22.25789422 | L54: =0 -> 0 | M54: 0 | N54: 19.3094896 | O54: =0 -> 0 | P54: 0 | Q54: =0 -> 0 | R54: 0 | S54: 0 | U54: 49 | V54: 0.9997134 | W54: 0.00028665 | X54: 0 | Y54: 0.007319133 | Z54: 0 | AA54: 0.8397486078 | AB54: 9966351 | AC54: 8369815 | AD54: 190910100 | AE54: 22.26769053 | AF54: 9964646 | AG54: 83683840000 | AH54: 0 | AI54: 19.3169253 | AK54: 0 | AL54: 0 | AN54: 0
A55: 53 | B55: 0.00027765 | C55: 0.007322066 | D55: 8251812 | E55: 9963548 | F55: 82502890000 | G55: 9963548 | H55: 82502890000 | I55: 0 | J55: 0 | K55: 22.25457493 | L55: =0 -> 0 | M55: 0 | N55: 19.3069698 | O55: =0 -> 0 | P55: 0 | Q55: =0 -> 0 | R55: 0 | S55: 0 | U55: 50 | V55: 0.9997156 | W55: 0.0002844 | X55: 0 | Y55: 0.007319867 | Z55: 0 | AA55: 0.8367607854 | AB55: 9966111 | AC55: 8340314 | AD55: 190210100 | AE55: 22.26444111 | AF55: 9964372 | AG55: 83388600000 | AH55: 0 | AI55: 19.31446709 | AK55: 0 | AL55: 0 | AN55: 0
A56: 54 | B56: 0.0002754 | C56: 0.0073228 | D56: 8222312 | E56: 9963273 | F56: 82207650000 | G56: 9963273 | H56: 82207650000 | I56: 0 | J56: 0 | K56: 22.25124122 | L56: =0 -> 0 | M56: 0 | N56: 19.30442897 | O56: =0 -> 0 | P56: 0 | Q56: =0 -> 0 | R56: 0 | S56: 0 | U56: 51 | V56: 0.9997178 | W56: 0.00028215 | X56: 0 | Y56: 0.0073206 | Z56: 0 | AA56: 0.8337835936 | AB56: 9965871 | AC56: 8310813 | AD56: 189510200 | AE56: 22.26118066 | AF56: 9964097 | AG56: 83093360000 | AH56: 0 | AI56: 19.31198861 | AK56: 0 | AL56: 0 | AN56: 0
A57: 55 | B57: 0.00027315 | C57: 0.007323533 | D57: 8192811 | E57: 9962998 | F57: 81912410000 | G57: 9962998 | H57: 81912410000 | I57: 0 | J57: 0 | K57: 22.24787407 | L57: =0 -> 0 | M57: 0 | N57: 19.30186682 | O57: =0 -> 0 | P57: 0 | Q57: =0 -> 0 | R57: 0 | S57: 0 | U57: 52 | V57: 0.9997201 | W57: 0.0002799 | X57: 0 | Y57: 0.007321333 | Z57: 0 | AA57: 0.8308169947 | AB57: 9965631 | AC57: 8281313 | AD57: 188810300 | AE57: 22.25789422 | AF57: 9963822 | AG57: 82798130000 | AH57: 0 | AI57: 19.3094896 | AK57: 0 | AL57: 0 | AN57: 0
A58: 56 | B58: 0.0002709 | C58: 0.007324267 | D58: 8163311 | E58: 9962724 | F58: 81617180000 | G58: 9962724 | H58: 81617180000 | I58: 0 | J58: 0 | K58: 22.24449204 | L58: =0 -> 0 | M58: 0 | N58: 19.2992831 | O58: =0 -> 0 | P58: 0 | Q58: =0 -> 0 | R58: 0 | S58: 0 | U58: 53 | V58: 0.9997224 | W58: 0.00027765 | X58: 0 | Y58: 0.007322066 | Z58: 0 | AA58: 0.827860951 | AB58: 9965391 | AC58: 8251812 | AD58: 188110300 | AE58: 22.25457493 | AF58: 9963548 | AG58: 82502890000 | AH58: 0 | AI58: 19.3069698 | AK58: 0 | AL58: 0 | AN58: 0
A59: 57 | B59: 0.00026865 | C59: 0.007325 | D59: 8133810 | E59: 9962449 | F59: 81321940000 | G59: 9962449 | H59: 81321940000 | I59: 0 | J59: 0 | K59: 22.24108828 | L59: =0 -> 0 | M59: 0 | N59: 19.29667753 | O59: =0 -> 0 | P59: 0 | Q59: =0 -> 0 | R59: 0 | S59: 0 | U59: 54 | V59: 0.9997246 | W59: 0.0002754 | X59: 0 | Y59: 0.0073228 | Z59: 0 | AA59: 0.8249154248 | AB59: 9965152 | AC59: 8222312 | AD59: 187410400 | AE59: 22.25124122 | AF59: 9963273 | AG59: 82207650000 | AH59: 0 | AI59: 19.30442897 | AK59: 0 | AL59: 0 | AN59: 0
A60: 58 | B60: 0.0002664 | C60: 0.007325733 | D60: 8104309 | E60: 9962174 | F60: 81026700000 | G60: 9962174 | H60: 81026700000 | I60: 0 | J60: 0 | K60: 22.2376474 | L60: =0 -> 0 | M60: 0 | N60: 19.29404983 | O60: =0 -> 0 | P60: 0 | Q60: =0 -> 0 | R60: 0 | S60: 0 | U60: 55 | V60: 0.9997268 | W60: 0.00027315 | X60: 0 | Y60: 0.007323533 | Z60: 0 | AA60: 0.8219803788 | AB60: 9964912 | AC60: 8192811 | AD60: 186710400 | AE60: 22.24787407 | AF60: 9962998 | AG60: 81912410000 | AH60: 0 | AI60: 19.30186682 | AK60: 0 | AL60: 0 | AN60: 0
A61: 59 | B61: 0.00026415 | C61: 0.007326466 | D61: 8074809 | E61: 9961900 | F61: 80731470000 | G61: 9961900 | H61: 80731470000 | I61: 0 | J61: 0 | K61: 22.23419094 | L61: =0 -> 0 | M61: 0 | N61: 19.29139972 | O61: =0 -> 0 | P61: 0 | Q61: =0 -> 0 | R61: 0 | S61: 0 | U61: 56 | V61: 0.9997291 | W61: 0.0002709 | X61: 0 | Y61: 0.007324267 | Z61: 0 | AA61: 0.8190557757 | AB61: 9964672 | AC61: 8163311 | AD61: 186010500 | AE61: 22.24449204 | AF61: 9962724 | AG61: 81617180000 | AH61: 0 | AI61: 19.2992831 | AK61: 0 | AL61: 0 | AN61: 0
A62: 60 | B62: 0.0002619 | C62: 0.0073272 | D62: 8045308 | E62: 9961625 | F62: 80436230000 | G62: 9961625 | H62: 80436230000 | I62: 0 | J62: 0 | K62: 22.23069954 | L62: =0 -> 0 | M62: 0 | N62: 19.2887269 | O62: =0 -> 0 | P62: 0 | Q62: =0 -> 0 | R62: 0 | S62: 0 | U62: 57 | V62: 0.9997314 | W62: 0.00026865 | X62: 0 | Y62: 0.007325 | Z62: 0 | AA62: 0.8161415783 | AB62: 9964432 | AC62: 8133810 | AD62: 185310600 | AE62: 22.24108828 | AF62: 9962449 | AG62: 81321940000 | AH62: 0 | AI62: 19.29667753 | AK62: 0 | AL62: 0 | AN62: 0
A63: 61 | B63: 0.000260325 | C63: 0.007328 | D63: 8017068 | E63: 9961373 | F63: 80153620000 | G63: 9961373 | H63: 80153620000 | I63: 0 | J63: 0 | K63: 22.22729326 | L63: =0 -> 0 | M63: 0 | N63: 19.28617297 | O63: =0 -> 0 | P63: 0 | Q63: =0 -> 0 | R63: 0 | S63: 0 | U63: 58 | V63: 0.9997336 | W63: 0.0002664 | X63: 0 | Y63: 0.007325733 | Z63: 0 | AA63: 0.8132377496 | AB63: 9964192 | AC63: 8104309 | AD63: 184610600 | AE63: 22.2376474 | AF63: 9962174 | AG63: 81026700000 | AH63: 0 | AI63: 19.29404983 | AK63: 0 | AL63: 0 | AN63: 0
A64: 62 | B64: 0.00025875 | C64: 0.0073288 | D64: 7988828 | E64: 9961121 | F64: 79871020000 | G64: 9961121 | H64: 79871020000 | I64: 0 | J64: 0 | K64: 22.2238629 | L64: =0 -> 0 | M64: 0 | N64: 19.28359548 | O64: =0 -> 0 | P64: 0 | Q64: =0 -> 0 | R64: 0 | S64: 0 | U64: 59 | V64: 0.9997358 | W64: 0.00026415 | X64: 0 | Y64: 0.007326466 | Z64: 0 | AA64: 0.8103442527 | AB64: 9963952 | AC64: 8074809 | AD64: 183910700 | AE64: 22.23419094 | AF64: 9961900 | AG64: 80731470000 | AH64: 0 | AI64: 19.29139972 | AK64: 0 | AL64: 0 | AN64: 0
A65: 63 | B65: 0.000257175 | C65: 0.0073296 | D65: 7960589 | E65: 9960868 | F65: 79588410000 | G65: 9960868 | H65: 79588410000 | I65: 0 | J65: 0 | K65: 22.22039277 | L65: =0 -> 0 | M65: 0 | N65: 19.28099931 | O65: =0 -> 0 | P65: 0 | Q65: =0 -> 0 | R65: 0 | S65: 0 | U65: 60 | V65: 0.9997381 | W65: 0.0002619 | X65: 0 | Y65: 0.0073272 | Z65: 0 | AA65: 0.8074610509 | AB65: 9963712 | AC65: 8045308 | AD65: 183210700 | AE65: 22.23069954 | AF65: 9961625 | AG65: 80436230000 | AH65: 0 | AI65: 19.2887269 | AK65: 0 | AL65: 0 | AN65: 0
A66: 64 | B66: =W69 -> 0.0002556 | C66: =Y69 -> 0.0073304 | D66: =AC69 -> 7932349 | E66: =AF69 -> 9960616 | F66: =AG69 -> 79305800000 | G66: =E66 -> 9960616 | H66: =F66 -> 79305800000 | I66: =X69 -> 0 | J66: =AN69 -> 0 | K66: =AE69 -> 22.21691342 | L66: =0 -> 0 | M66: =AL69 -> 0 | N66: =AI69 -> 19.2783947 | O66: =0 -> 0 | P66: =AK69 -> 0 | Q66: =0 -> 0 | R66: =Z69 -> 0 | S66: =AH69 -> 0 | U66: 61 | V66: 0.9997396 | W66: 0.000260325 | X66: 0 | Y66: 0.007328 | Z66: 0 | AA66: 0.8045881075 | AB66: 9963494 | AC66: 8017068 | AD66: 182540300 | AE66: 22.22729326 | AF66: 9961373 | AG66: 80153620000 | AH66: 0 | AI66: 19.28617297 | AK66: 0 | AL66: 0 | AN66: 0
A67: 65 | B67: 0.000254025 | C67: 0.0073312 | D67: 7904109 | E67: 9960364 | F67: 79023190000 | G67: 9960364 | H67: 79023190000 | I67: 0 | J67: 0 | K67: 22.21339655 | L67: =0 -> 0 | M67: 0 | N67: 19.2757553 | O67: =0 -> 0 | P67: 0 | Q67: =0 -> 0 | R67: 0 | S67: 0 | U67: 62 | V67: 0.9997413 | W67: 0.00025875 | X67: 0 | Y67: 0.0073288 | Z67: 0 | AA67: 0.801725386 | AB67: 9963277 | AC67: 7988828 | AD67: 181869900 | AE67: 22.2238629 | AF67: 9961121 | AG67: 79871020000 | AH67: 0 | AI67: 19.28359548 | AK67: 0 | AL67: 0 | AN67: 0
A68: 66 | B68: 0.00025245 | C68: 0.007332 | D68: 7875869 | E68: 9960112 | F68: 78740590000 | G68: 9960112 | H68: 78740590000 | I68: 0 | J68: 0 | K68: 22.20986716 | L68: =0 -> 0 | M68: 0 | N68: 19.27309386 | O68: =0 -> 0 | P68: 0 | Q68: =0 -> 0 | R68: 0 | S68: 0 | U68: 63 | V68: 0.9997428 | W68: 0.000257175 | X68: 0 | Y68: 0.0073296 | Z68: 0 | AA68: 0.7988728501 | AB68: 9963060 | AC68: 7960589 | AD68: 181199400 | AE68: 22.22039277 | AF68: 9960868 | AG68: 79588410000 | AH68: 0 | AI68: 19.28099931 | AK68: 0 | AL68: 0 | AN68: 0
A69: 67 | B69: 0.000250875 | C69: 0.0073328 | D69: 7847629 | E69: 9959860 | F69: 78457970000 | G69: 9959860 | H69: 78457970000 | I69: 0 | J69: 0 | K69: 22.20629963 | L69: =0 -> 0 | M69: 0 | N69: 19.27042332 | O69: =0 -> 0 | P69: 0 | Q69: =0 -> 0 | R69: 0 | S69: 0 | U69: 64 | V69: 0.9997444 | W69: 0.0002556 | X69: 0 | Y69: 0.0073304 | Z69: 0 | AA69: 0.7960304635 | AB69: 9962842 | AC69: 7932349 | AD69: 180529000 | AE69: 22.21691342 | AF69: 9960616 | AG69: 79305800000 | AH69: 0 | AI69: 19.2783947 | AK69: 0 | AL69: 0 | AN69: 0
A70: 68 | B70: 0.0002493 | C70: 0.0073336 | D70: 7819389 | E70: 9959608 | F70: 78175360000 | G70: 9959608 | H70: 78175360000 | I70: 0 | J70: 0 | K70: 22.20271912 | L70: =0 -> 0 | M70: 0 | N70: 19.26771438 | O70: =0 -> 0 | P70: 0 | Q70: =0 -> 0 | R70: 0 | S70: 0 | U70: 65 | V70: 0.999746 | W70: 0.000254025 | X70: 0 | Y70: 0.0073312 | Z70: 0 | AA70: 0.7931981901 | AB70: 9962624 | AC70: 7904109 | AD70: 179858500 | AE70: 22.21339655 | AF70: 9960364 | AG70: 79023190000 | AH70: 0 | AI70: 19.2757553 | AK70: 0 | AL70: 0 | AN70: 0
A71: 69 | B71: 0.000247725 | C71: 0.0073344 | D71: 7791149 | E71: 9959356 | F71: 77892760000 | G71: 9959356 | H71: 77892760000 | I71: 0 | J71: 0 | K71: 22.19911265 | L71: =0 -> 0 | M71: 0 | N71: 19.26498516 | O71: =0 -> 0 | P71: 0 | Q71: =0 -> 0 | R71: 0 | S71: 0 | U71: 66 | V71: 0.9997476 | W71: 0.00025245 | X71: 0 | Y71: 0.007332 | Z71: 0 | AA71: 0.7903759939 | AB71: 9962407 | AC71: 7875869 | AD71: 179188100 | AE71: 22.20986716 | AF71: 9960112 | AG71: 78740590000 | AH71: 0 | AI71: 19.27309386 | AK71: 0 | AL71: 0 | AN71: 0
A72: 70 | B72: 0.00024615 | C72: 0.0073352 | D72: 7762909 | E72: 9959103 | F72: 77610150000 | G72: 9959103 | H72: 77610150000 | I72: 0 | J72: 0 | K72: 22.19546705 | L72: =0 -> 0 | M72: 0 | N72: 19.26224616 | O72: =0 -> 0 | P72: 0 | Q72: =0 -> 0 | R72: 0 | S72: 0 | U72: 67 | V72: 0.9997491 | W72: 0.000250875 | X72: 0 | Y72: 0.0073328 | Z72: 0 | AA72: 0.787563839 | AB72: 9962190 | AC72: 7847629 | AD72: 178517600 | AE72: 22.20629963 | AF72: 9959860 | AG72: 78457970000 | AH72: 0 | AI72: 19.27042332 | AK72: 0 | AL72: 0 | AN72: 0
A73: 71 | B73: 0.000244575 | C73: 0.007336 | D73: 7734670 | E73: 9958851 | F73: 77327540000 | G73: 9958851 | H73: 77327540000 | I73: 0 | J73: 0 | K73: 22.19180483 | L73: =0 -> 0 | M73: 0 | N73: 19.25947034 | O73: =0 -> 0 | P73: 0 | Q73: =0 -> 0 | R73: 0 | S73: 0 | U73: 68 | V73: 0.9997507 | W73: 0.0002493 | X73: 0 | Y73: 0.0073336 | Z73: 0 | AA73: 0.7847616898 | AB73: 9961972 | AC73: 7819389 | AD73: 177847200 | AE73: 22.20271912 | AF73: 9959608 | AG73: 78175360000 | AH73: 0 | AI73: 19.26771438 | AK73: 0 | AL73: 0 | AN73: 0
A74: 72 | B74: 0.000243 | C74: 0.0073368 | D74: 7706430 | E74: 9958599 | F74: 77044930000 | G74: 9958599 | H74: 77044930000 | I74: 0 | J74: 0 | K74: 22.18810574 | L74: =0 -> 0 | M74: 0 | N74: 19.25667073 | O74: =0 -> 0 | P74: 0 | Q74: =0 -> 0 | R74: 0 | S74: 0 | U74: 69 | V74: 0.9997523 | W74: 0.000247725 | X74: 0 | Y74: 0.0073344 | Z74: 0 | AA74: 0.7819695107 | AB74: 9961754 | AC74: 7791149 | AD74: 177176800 | AE74: 22.19911265 | AF74: 9959356 | AG74: 77892760000 | AH74: 0 | AI74: 19.26498516 | AK74: 0 | AL74: 0 | AN74: 0
A75: 73 | B75: 0.000242025 | C75: 0.0073376 | D75: 7679391 | E75: 9958363 | F75: 76774360000 | G75: 9958363 | H75: 76774360000 | I75: 0 | J75: 0 | K75: 22.18451045 | L75: =0 -> 0 | M75: 0 | N75: 19.25401195 | O75: =0 -> 0 | P75: 0 | Q75: =0 -> 0 | R75: 0 | S75: 0 | U75: 70 | V75: 0.9997538 | W75: 0.00024615 | X75: 0 | Y75: 0.0073352 | Z75: 0 | AA75: 0.7791872661 | AB75: 9961537 | AC75: 7762909 | AD75: 176506300 | AE75: 22.19546705 | AF75: 9959103 | AG75: 77610150000 | AH75: 0 | AI75: 19.26224616 | AK75: 0 | AL75: 0 | AN75: 0
A76: 74 | B76: 0.00024105 | C76: 0.0073384 | D76: 7652352 | E76: 9958126 | F76: 76503780000 | G76: 9958126 | H76: 76503780000 | I76: 0 | J76: 0 | K76: 22.18088974 | L76: =0 -> 0 | M76: 0 | N76: 19.2513177 | O76: =0 -> 0 | P76: 0 | Q76: =0 -> 0 | R76: 0 | S76: 0 | U76: 71 | V76: 0.9997554 | W76: 0.000244575 | X76: 0 | Y76: 0.007336 | Z76: 0 | AA76: 0.7764149207 | AB76: 9961320 | AC76: 7734670 | AD76: 175835900 | AE76: 22.19180483 | AF76: 9958851 | AG76: 77327540000 | AH76: 0 | AI76: 19.25947034 | AK76: 0 | AL76: 0 | AN76: 0
A77: 75 | B77: 0.000240075 | C77: 0.0073392 | D77: 7625313 | E77: 9957890 | F77: 76233200000 | G77: 9957890 | H77: 76233200000 | I77: 0 | J77: 0 | K77: 22.17724336 | L77: =0 -> 0 | M77: 0 | N77: 19.2486149 | O77: =0 -> 0 | P77: 0 | Q77: =0 -> 0 | R77: 0 | S77: 0 | U77: 72 | V77: 0.999757 | W77: 0.000243 | X77: 0 | Y77: 0.0073368 | Z77: 0 | AA77: 0.7736524393 | AB77: 9961102 | AC77: 7706430 | AD77: 175165400 | AE77: 22.18810574 | AF77: 9958599 | AG77: 77044930000 | AH77: 0 | AI77: 19.25667073 | AK77: 0 | AL77: 0 | AN77: 0
A78: 76 | B78: 0.0002391 | C78: 0.00734 | D78: 7598275 | E78: 9957653 | F78: 75962620000 | G78: 9957653 | H78: 75962620000 | I78: 0 | J78: 0 | K78: 22.17356804 | L78: =0 -> 0 | M78: 0 | N78: 19.24587597 | O78: =0 -> 0 | P78: 0 | Q78: =0 -> 0 | R78: 0 | S78: 0 | U78: 73 | V78: 0.9997579 | W78: 0.000242025 | X78: 0 | Y78: 0.0073376 | Z78: 0 | AA78: 0.7708997868 | AB78: 9960900 | AC78: 7679391 | AD78: 174523200 | AE78: 22.18451045 | AF78: 9958363 | AG78: 76774360000 | AH78: 0 | AI78: 19.25401195 | AK78: 0 | AL78: 0 | AN78: 0
A79: 77 | B79: 0.000238125 | C79: 0.0073408 | D79: 7571236 | E79: 9957417 | F79: 75692050000 | G79: 9957417 | H79: 75692050000 | I79: 0 | J79: 0 | K79: 22.16986947 | L79: =0 -> 0 | M79: 0 | N79: 19.24312805 | O79: =0 -> 0 | P79: 0 | Q79: =0 -> 0 | R79: 0 | S79: 0 | U79: 74 | V79: 0.999759 | W79: 0.00024105 | X79: 0 | Y79: 0.0073384 | Z79: 0 | AA79: 0.7681569283 | AB79: 9960698 | AC79: 7652352 | AD79: 173881000 | AE79: 22.18088974 | AF79: 9958126 | AG79: 76503780000 | AH79: 0 | AI79: 19.2513177 | AK79: 0 | AL79: 0 | AN79: 0
A80: 78 | B80: 0.00023715 | C80: 0.0073416 | D80: 7544197 | E80: 9957180 | F80: 75421470000 | G80: 9957180 | H80: 75421470000 | I80: 0 | J80: 0 | K80: 22.16614438 | L80: =0 -> 0 | M80: 0 | N80: 19.24034332 | O80: =0 -> 0 | P80: 0 | Q80: =0 -> 0 | R80: 0 | S80: 0 | U80: 75 | V80: 0.9997599 | W80: 0.000240075 | X80: 0 | Y80: 0.0073392 | Z80: 0 | AA80: 0.7654238288 | AB80: 9960497 | AC80: 7625313 | AD80: 173238800 | AE80: 22.17724336 | AF80: 9957890 | AG80: 76233200000 | AH80: 0 | AI80: 19.2486149 | AK80: 0 | AL80: 0 | AN80: 0
A81: 79 | B81: 0.000236175 | C81: 0.0073424 | D81: 7517158 | E81: 9956944 | F81: 75150890000 | G81: 9956944 | H81: 75150890000 | I81: 0 | J81: 0 | K81: 22.1623925 | L81: =0 -> 0 | M81: 0 | N81: 19.23754914 | O81: =0 -> 0 | P81: 0 | Q81: =0 -> 0 | R81: 0 | S81: 0 | U81: 76 | V81: 0.9997609 | W81: 0.0002391 | X81: 0 | Y81: 0.00734 | Z81: 0 | AA81: 0.7627004537 | AB81: 9960295 | AC81: 7598275 | AD81: 172596600 | AE81: 22.17356804 | AF81: 9957653 | AG81: 75962620000 | AH81: 0 | AI81: 19.24587597 | AK81: 0 | AL81: 0 | AN81: 0
A82: 80 | B82: 0.0002352 | C82: 0.0073432 | D82: 7490120 | E82: 9956708 | F82: 74880320000 | G82: 9956708 | H82: 74880320000 | I82: 0 | J82: 0 | K82: 22.1586105 | L82: =0 -> 0 | M82: 0 | N82: 19.23471745 | O82: =0 -> 0 | P82: 0 | Q82: =0 -> 0 | R82: 0 | S82: 0 | U82: 77 | V82: 0.9997619 | W82: 0.000238125 | X82: 0 | Y82: 0.0073408 | Z82: 0 | AA82: 0.7599867683 | AB82: 9960093 | AC82: 7571236 | AD82: 171954400 | AE82: 22.16986947 | AF82: 9957417 | AG82: 75692050000 | AH82: 0 | AI82: 19.24312805 | AK82: 0 | AL82: 0 | AN82: 0
A83: 81 | B83: 0.000234225 | C83: 0.007344 | D83: 7463081 | E83: 9956471 | F83: 74609740000 | G83: 9956471 | H83: 74609740000 | I83: 0 | J83: 0 | K83: 22.15480413 | L83: =0 -> 0 | M83: 0 | N83: 19.23187583 | O83: =0 -> 0 | P83: 0 | Q83: =0 -> 0 | R83: 0 | S83: 0 | U83: 78 | V83: 0.9997628 | W83: 0.00023715 | X83: 0 | Y83: 0.0073416 | Z83: 0 | AA83: 0.7572827382 | AB83: 9959892 | AC83: 7544197 | AD83: 171312200 | AE83: 22.16614438 | AF83: 9957180 | AG83: 75421470000 | AH83: 0 | AI83: 19.24034332 | AK83: 0 | AL83: 0 | AN83: 0
A84: 82 | B84: 0.00023325 | C84: 0.0073448 | D84: 7436042 | E84: 9956235 | F84: 74339160000 | G84: 9956235 | H84: 74339160000 | I84: 0 | J84: 0 | K84: 22.15097009 | L84: =0 -> 0 | M84: 0 | N84: 19.22899598 | O84: =0 -> 0 | P84: 0 | Q84: =0 -> 0 | R84: 0 | S84: 0 | U84: 79 | V84: 0.9997638 | W84: 0.000236175 | X84: 0 | Y84: 0.0073424 | Z84: 0 | AA84: 0.7545883291 | AB84: 9959690 | AC84: 7517158 | AD84: 170670000 | AE84: 22.1623925 | AF84: 9956944 | AG84: 75150890000 | AH84: 0 | AI84: 19.23754914 | AK84: 0 | AL84: 0 | AN84: 0
A85: 83 | B85: 0.000232275 | C85: 0.0073456 | D85: 7409003 | E85: 9955998 | F85: 74068580000 | G85: 9955998 | H85: 74068580000 | I85: 0 | J85: 0 | K85: 22.14710806 | L85: =0 -> 0 | M85: 0 | N85: 19.2261057 | O85: =0 -> 0 | P85: 0 | Q85: =0 -> 0 | R85: 0 | S85: 0 | U85: 80 | V85: 0.9997648 | W85: 0.0002352 | X85: 0 | Y85: 0.0073432 | Z85: 0 | AA85: 0.7519035066 | AB85: 9959488 | AC85: 7490120 | AD85: 170027800 | AE85: 22.1586105 | AF85: 9956708 | AG85: 74880320000 | AH85: 0 | AI85: 19.23471745 | AK85: 0 | AL85: 0 | AN85: 0
A86: 84 | B86: 0.0002313 | C86: 0.0073464 | D86: 7381965 | E86: 9955762 | F86: 73798010000 | G86: 9955762 | H86: 73798010000 | I86: 0 | J86: 0 | K86: 22.14321466 | L86: =0 -> 0 | M86: 0 | N86: 19.22317645 | O86: =0 -> 0 | P86: 0 | Q86: =0 -> 0 | R86: 0 | S86: 0 | U86: 81 | V86: 0.9997658 | W86: 0.000234225 | X86: 0 | Y86: 0.007344 | Z86: 0 | AA86: 0.7492282367 | AB86: 9959286 | AC86: 7463081 | AD86: 169385600 | AE86: 22.15480413 | AF86: 9956471 | AG86: 74609740000 | AH86: 0 | AI86: 19.23187583 | AK86: 0 | AL86: 0 | AN86: 0
A87: 85 | B87: 0.000234075 | C87: 0.007347333 | D87: 7356071 | E87: 9955535 | F87: 73538900000 | G87: 9955535 | H87: 73538900000 | I87: 0 | J87: 0 | K87: 22.13943579 | L87: =0 -> 0 | M87: 0 | N87: 19.22038599 | O87: =0 -> 0 | P87: 0 | Q87: =0 -> 0 | R87: 0 | S87: 0 | U87: 82 | V87: 0.9997668 | W87: 0.00023325 | X87: 0 | Y87: 0.0073448 | Z87: 0 | AA87: 0.7465624855 | AB87: 9959084 | AC87: 7436042 | AD87: 168743400 | AE87: 22.15097009 | AF87: 9956235 | AG87: 74339160000 | AH87: 0 | AI87: 19.22899598 | AK87: 0 | AL87: 0 | AN87: 0
A88: 86 | B88: 0.00023685 | C88: 0.007348267 | D88: 7330178 | E88: 9955309 | F88: 73279800000 | G88: 9955309 | H88: 73279800000 | I88: 0 | J88: 0 | K88: 22.13564076 | L88: =0 -> 0 | M88: 0 | N88: 19.21758691 | O88: =0 -> 0 | P88: 0 | Q88: =0 -> 0 | R88: 0 | S88: 0 | U88: 83 | V88: 0.9997677 | W88: 0.000232275 | X88: 0 | Y88: 0.0073456 | Z88: 0 | AA88: 0.7439062189 | AB88: 9958883 | AC88: 7409003 | AD88: 168101200 | AE88: 22.14710806 | AF88: 9955998 | AG88: 74068580000 | AH88: 0 | AI88: 19.2261057 | AK88: 0 | AL88: 0 | AN88: 0
A89: 87 | B89: 0.000239625 | C89: 0.0073492 | D89: 7304284 | E89: 9955082 | F89: 73020690000 | G89: 9955082 | H89: 73020690000 | I89: 0 | J89: 0 | K89: 22.13180824 | L89: =0 -> 0 | M89: 0 | N89: 19.21475035 | O89: =0 -> 0 | P89: 0 | Q89: =0 -> 0 | R89: 0 | S89: 0 | U89: 84 | V89: 0.9997687 | W89: 0.0002313 | X89: 0 | Y89: 0.0073464 | Z89: 0 | AA89: 0.7412594034 | AB89: 9958681 | AC89: 7381965 | AD89: 167459000 | AE89: 22.14321466 | AF89: 9955762 | AG89: 73798010000 | AH89: 0 | AI89: 19.22317645 | AK89: 0 | AL89: 0 | AN89: 0
A90: 88 | B90: 0.0002424 | C90: 0.007350133 | D90: 7278391 | E90: 9954855 | F90: 72761590000 | G90: 9954855 | H90: 72761590000 | I90: 0 | J90: 0 | K90: 22.12794534 | L90: =0 -> 0 | M90: 0 | N90: 19.21189029 | O90: =0 -> 0 | P90: 0 | Q90: =0 -> 0 | R90: 0 | S90: 0 | U90: 85 | V90: 0.9997659 | W90: 0.000234075 | X90: 0 | Y90: 0.007347333 | Z90: 0 | AA90: 0.7386220052 | AB90: 9958489 | AC90: 7356071 | AD90: 166843800 | AE90: 22.13943579 | AF90: 9955535 | AG90: 73538900000 | AH90: 0 | AI90: 19.22038599 | AK90: 0 | AL90: 0 | AN90: 0
A91: 89 | B91: 0.000245175 | C91: 0.007351067 | D91: 7252497 | E91: 9954629 | F91: 72502480000 | G91: 9954629 | H91: 72502480000 | I91: 0 | J91: 0 | K91: 22.12407177 | L91: =0 -> 0 | M91: 0 | N91: 19.20900643 | O91: =0 -> 0 | P91: 0 | Q91: =0 -> 0 | R91: 0 | S91: 0 | U91: 86 | V91: 0.9997631 | W91: 0.00023685 | X91: 0 | Y91: 0.007348267 | Z91: 0 | AA91: 0.7359939909 | AB91: 9958297 | AC91: 7330178 | AD91: 166228700 | AE91: 22.13564076 | AF91: 9955309 | AG91: 73279800000 | AH91: 0 | AI91: 19.21758691 | AK91: 0 | AL91: 0 | AN91: 0
A92: 90 | B92: 0.00024795 | C92: 0.007352 | D92: 7226604 | E92: 9954402 | F92: 72243380000 | G92: 9954402 | H92: 72243380000 | I92: 0 | J92: 0 | K92: 22.12015346 | L92: =0 -> 0 | M92: 0 | N92: 19.20610135 | O92: =0 -> 0 | P92: 0 | Q92: =0 -> 0 | R92: 0 | S92: 0 | U92: 87 | V92: 0.9997604 | W92: 0.000239625 | X92: 0 | Y92: 0.0073492 | Z92: 0 | AA92: 0.733375327 | AB92: 9958105 | AC92: 7304284 | AD92: 165613500 | AE92: 22.13180824 | AF92: 9955082 | AG92: 73020690000 | AH92: 0 | AI92: 19.21475035 | AK92: 0 | AL92: 0 | AN92: 0
A93: 91 | B93: 0.000250725 | C93: 0.007352933 | D93: 7200711 | E93: 9954175 | F93: 71984270000 | G93: 9954175 | H93: 71984270000 | I93: 0 | J93: 0 | K93: 22.11620698 | L93: =0 -> 0 | M93: 0 | N93: 19.20316901 | O93: =0 -> 0 | P93: 0 | Q93: =0 -> 0 | R93: 0 | S93: 0 | U93: 88 | V93: 0.9997576 | W93: 0.0002424 | X93: 0 | Y93: 0.007350133 | Z93: 0 | AA93: 0.7307659803 | AB93: 9957913 | AC93: 7278391 | AD93: 164998300 | AE93: 22.12794534 | AF93: 9954855 | AG93: 72761590000 | AH93: 0 | AI93: 19.21189029 | AK93: 0 | AL93: 0 | AN93: 0
A94: 92 | B94: 0.0002535 | C94: 0.007353867 | D94: 7174817 | E94: 9953949 | F94: 71725160000 | G94: 9953949 | H94: 71725160000 | I94: 0 | J94: 0 | K94: 22.11224911 | L94: =0 -> 0 | M94: 0 | N94: 19.20021195 | O94: =0 -> 0 | P94: 0 | Q94: =0 -> 0 | R94: 0 | S94: 0 | U94: 89 | V94: 0.9997548 | W94: 0.000245175 | X94: 0 | Y94: 0.007351067 | Z94: 0 | AA94: 0.7281659177 | AB94: 9957721 | AC94: 7252497 | AD94: 164383200 | AE94: 22.12407177 | AF94: 9954629 | AG94: 72502480000 | AH94: 0 | AI94: 19.20900643 | AK94: 0 | AL94: 0 | AN94: 0
A95: 93 | B95: 0.000256275 | C95: 0.0073548 | D95: 7148924 | E95: 9953722 | F95: 71466060000 | G95: 9953722 | H95: 71466060000 | I95: 0 | J95: 0 | K95: 22.1082454 | L95: =0 -> 0 | M95: 0 | N95: 19.19722988 | O95: =0 -> 0 | P95: 0 | Q95: =0 -> 0 | R95: 0 | S95: 0 | U95: 90 | V95: 0.999752 | W95: 0.00024795 | X95: 0 | Y95: 0.007352 | Z95: 0 | AA95: 0.7255751061 | AB95: 9957529 | AC95: 7226604 | AD95: 163768000 | AE95: 22.12015346 | AF95: 9954402 | AG95: 72243380000 | AH95: 0 | AI95: 19.20610135 | AK95: 0 | AL95: 0 | AN95: 0
A96: 94 | B96: 0.00025905 | C96: 0.007355733 | D96: 7123030 | E96: 9953495 | F96: 71206950000 | G96: 9953495 | H96: 71206950000 | I96: 0 | J96: 0 | K96: 22.10422981 | L96: =0 -> 0 | M96: 0 | N96: 19.19422246 | O96: =0 -> 0 | P96: 0 | Q96: =0 -> 0 | R96: 0 | S96: 0 | U96: 91 | V96: 0.9997493 | W96: 0.000250725 | X96: 0 | Y96: 0.007352933 | Z96: 0 | AA96: 0.7229935126 | AB96: 9957337 | AC96: 7200711 | AD96: 163152800 | AE96: 22.11620698 | AF96: 9954175 | AG96: 71984270000 | AH96: 0 | AI96: 19.20316901 | AK96: 0 | AL96: 0 | AN96: 0
A97: 95 | B97: 0.000261825 | C97: 0.007356667 | D97: 7097137 | E97: 9953269 | F97: 70947850000 | G97: 9953269 | H97: 70947850000 | I97: 0 | J97: 0 | K97: 22.10016764 | L97: =0 -> 0 | M97: 0 | N97: 19.19120424 | O97: =0 -> 0 | P97: 0 | Q97: =0 -> 0 | R97: 0 | S97: 0 | U97: 92 | V97: 0.9997465 | W97: 0.0002535 | X97: 0 | Y97: 0.007353867 | Z97: 0 | AA97: 0.7204211043 | AB97: 9957145 | AC97: 7174817 | AD97: 162537700 | AE97: 22.11224911 | AF97: 9953949 | AG97: 71725160000 | AH97: 0 | AI97: 19.20021195 | AK97: 0 | AL97: 0 | AN97: 0
A98: 96 | B98: 0.0002646 | C98: 0.0073576 | D98: 7071243 | E98: 9953042 | F98: 70688740000 | G98: 9953042 | H98: 70688740000 | I98: 0 | J98: 0 | K98: 22.09607892 | L98: =0 -> 0 | M98: 0 | N98: 19.18814523 | O98: =0 -> 0 | P98: 0 | Q98: =0 -> 0 | R98: 0 | S98: 0 | U98: 93 | V98: 0.9997437 | W98: 0.000256275 | X98: 0 | Y98: 0.0073548 | Z98: 0 | AA98: 0.7178578487 | AB98: 9956953 | AC98: 7148924 | AD98: 161922500 | AE98: 22.1082454 | AF98: 9953722 | AG98: 71466060000 | AH98: 0 | AI98: 19.19722988 | AK98: 0 | AL98: 0 | AN98: 0
A99: 97 | B99: 0.000266925 | C99: 0.0073586 | D99: 7046421 | E99: 9952788 | F99: 70440370000 | G99: 9952788 | H99: 70440370000 | I99: 0 | J99: 0 | K99: 22.09220661 | L99: =0 -> 0 | M99: 0 | N99: 19.18523107 | O99: =0 -> 0 | P99: 0 | Q99: =0 -> 0 | R99: 0 | S99: 0 | U99: 94 | V99: 0.999741 | W99: 0.00025905 | X99: 0 | Y99: 0.007355733 | Z99: 0 | AA99: 0.7153037132 | AB99: 9956761 | AC99: 7123030 | AD99: 161307400 | AE99: 22.10422981 | AF99: 9953495 | AG99: 71206950000 | AH99: 0 | AI99: 19.19422246 | AK99: 0 | AL99: 0 | AN99: 0
A100: 98 | B100: 0.00026925 | C100: 0.0073596 | D100: 7021599 | E100: 9952534 | F100: 70191990000 | G100: 9952534 | H100: 70191990000 | I100: 0 | J100: 0 | K100: 22.08829269 | L100: =0 -> 0 | M100: 0 | N100: 19.18228998 | O100: =0 -> 0 | P100: 0 | Q100: =0 -> 0 | R100: 0 | S100: 0 | U100: 95 | V100: 0.9997382 | W100: 0.000261825 | X100: 0 | Y100: 0.007356667 | Z100: 0 | AA100: 0.7127586653 | AB100: 9956569 | AC100: 7097137 | AD100: 160692200 | AE100: 22.10016764 | AF100: 9953269 | AG100: 70947850000 | AH100: 0 | AI100: 19.19120424 | AK100: 0 | AL100: 0 | AN100: 0
A101: 99 | B101: 0.000271575 | C101: 0.0073606 | D101: 6996776 | E101: 9952280 | F101: 69943620000 | G101: 9952280 | H101: 69943620000 | I101: 0 | J101: 0 | K101: 22.08435423 | L101: =0 -> 0 | M101: 0 | N101: 19.17932761 | O101: =0 -> 0 | P101: 0 | Q101: =0 -> 0 | R101: 0 | S101: 0 | U101: 96 | V101: 0.9997354 | W101: 0.0002646 | X101: 0 | Y101: 0.0073576 | Z101: 0 | AA101: 0.7102226726 | AB101: 9956377 | AC101: 7071243 | AD101: 160077000 | AE101: 22.09607892 | AF101: 9953042 | AG101: 70688740000 | AH101: 0 | AI101: 19.18814523 | AK101: 0 | AL101: 0 | AN101: 0
A102: 100 | B102: 0.0002739 | C102: 0.0073616 | D102: 6971954 | E102: 9952025 | F102: 69695240000 | G102: 9952025 | H102: 69695240000 | I102: 0 | J102: 0 | K102: 22.08039883 | L102: =0 -> 0 | M102: 0 | N102: 19.17633768 | O102: =0 -> 0 | P102: 0 | Q102: =0 -> 0 | R102: 0 | S102: 0 | U102: 97 | V102: 0.9997331 | W102: 0.000266925 | X102: 0 | Y102: 0.0073586 | Z102: 0 | AA102: 0.707695703 | AB102: 9956158 | AC102: 7046421 | AD102: 159487800 | AE102: 22.09220661 | AF102: 9952788 | AG102: 70440370000 | AH102: 0 | AI102: 19.18523107 | AK102: 0 | AL102: 0 | AN102: 0
A103: 101 | B103: 0.000276225 | C103: 0.0073626 | D103: 6947132 | E103: 9951771 | F103: 69446860000 | G103: 9951771 | H103: 69446860000 | I103: 0 | J103: 0 | K103: 22.07640076 | L103: =0 -> 0 | M103: 0 | N103: 19.17332587 | O103: =0 -> 0 | P103: 0 | Q103: =0 -> 0 | R103: 0 | S103: 0 | U103: 98 | V103: 0.9997308 | W103: 0.00026925 | X103: 0 | Y103: 0.0073596 | Z103: 0 | AA103: 0.7051777243 | AB103: 9955938 | AC103: 7021599 | AD103: 158898500 | AE103: 22.08829269 | AF103: 9952534 | AG103: 70191990000 | AH103: 0 | AI103: 19.18228998 | AK103: 0 | AL103: 0 | AN103: 0
A104: 102 | B104: 0.00027855 | C104: 0.0073636 | D104: 6922309 | E104: 9951517 | F104: 69198490000 | G104: 9951517 | H104: 69198490000 | I104: 0 | J104: 0 | K104: 22.07237729 | L104: =0 -> 0 | M104: 0 | N104: 19.17030118 | O104: =0 -> 0 | P104: 0 | Q104: =0 -> 0 | R104: 0 | S104: 0 | U104: 99 | V104: 0.9997284 | W104: 0.000271575 | X104: 0 | Y104: 0.0073606 | Z104: 0 | AA104: 0.7026687046 | AB104: 9955718 | AC104: 6996776 | AD104: 158309200 | AE104: 22.08435423 | AF104: 9952280 | AG104: 69943620000 | AH104: 0 | AI104: 19.17932761 | AK104: 0 | AL104: 0 | AN104: 0
A105: 103 | B105: 0.000280875 | C105: 0.0073646 | D105: 6897487 | E105: 9951263 | F105: 68950110000 | G105: 9951263 | H105: 68950110000 | I105: 0 | J105: 0 | K105: 22.06833608 | L105: =0 -> 0 | M105: 0 | N105: 19.16723574 | O105: =0 -> 0 | P105: 0 | Q105: =0 -> 0 | R105: 0 | S105: 0 | U105: 100 | V105: 0.9997261 | W105: 0.0002739 | X105: 0 | Y105: 0.0073616 | Z105: 0 | AA105: 0.700168612 | AB105: 9955499 | AC105: 6971954 | AD105: 157720000 | AE105: 22.08039883 | AF105: 9952025 | AG105: 69695240000 | AH105: 0 | AI105: 19.17633768 | AK105: 0 | AL105: 0 | AN105: 0
A106: 104 | B106: 0.0002832 | C106: 0.0073656 | D106: 6872665 | E106: 9951009 | F106: 68701740000 | G106: 9951009 | H106: 68701740000 | I106: 0 | J106: 0 | K106: 22.06425113 | L106: =0 -> 0 | M106: 0 | N106: 19.1641475 | O106: =0 -> 0 | P106: 0 | Q106: =0 -> 0 | R106: 0 | S106: 0 | U106: 101 | V106: 0.9997238 | W106: 0.000276225 | X106: 0 | Y106: 0.0073626 | Z106: 0 | AA106: 0.6976774147 | AB106: 9955280 | AC106: 6947132 | AD106: 157130700 | AE106: 22.07640076 | AF106: 9951771 | AG106: 69446860000 | AH106: 0 | AI106: 19.17332587 | AK106: 0 | AL106: 0 | AN106: 0
A107: 105 | B107: 0.000285525 | C107: 0.0073666 | D107: 6847843 | E107: 9950754 | F107: 68453360000 | G107: 9950754 | H107: 68453360000 | I107: 0 | J107: 0 | K107: 22.06013656 | L107: =0 -> 0 | M107: 0 | N107: 19.16103007 | O107: =0 -> 0 | P107: 0 | Q107: =0 -> 0 | R107: 0 | S107: 0 | U107: 102 | V107: 0.9997215 | W107: 0.00027855 | X107: 0 | Y107: 0.0073636 | Z107: 0 | AA107: 0.695195081 | AB107: 9955060 | AC107: 6922309 | AD107: 156541400 | AE107: 22.07237729 | AF107: 9951517 | AG107: 69198490000 | AH107: 0 | AI107: 19.17030118 | AK107: 0 | AL107: 0 | AN107: 0
A108: 106 | B108: 0.00028785 | C108: 0.0073676 | D108: 6823020 | E108: 9950500 | F108: 68204980000 | G108: 9950500 | H108: 68204980000 | I108: 0 | J108: 0 | K108: 22.05601002 | L108: =0 -> 0 | M108: 0 | N108: 19.1578892 | O108: =0 -> 0 | P108: 0 | Q108: =0 -> 0 | R108: 0 | S108: 0 | U108: 103 | V108: 0.9997191 | W108: 0.000280875 | X108: 0 | Y108: 0.0073646 | Z108: 0 | AA108: 0.6927215795 | AB108: 9954840 | AC108: 6897487 | AD108: 155952200 | AE108: 22.06833608 | AF108: 9951263 | AG108: 68950110000 | AH108: 0 | AI108: 19.16723574 | AK108: 0 | AL108: 0 | AN108: 0
A109: 107 | B109: 0.000290175 | C109: 0.0073686 | D109: 6798198 | E109: 9950246 | F109: 67956610000 | G109: 9950246 | H109: 67956610000 | I109: 0 | J109: 0 | K109: 22.05183532 | L109: =0 -> 0 | M109: 0 | N109: 19.15471845 | O109: =0 -> 0 | P109: 0 | Q109: =0 -> 0 | R109: 0 | S109: 0 | U109: 104 | V109: 0.9997168 | W109: 0.0002832 | X109: 0 | Y109: 0.0073656 | Z109: 0 | AA109: 0.6902568787 | AB109: 9954621 | AC109: 6872665 | AD109: 155362900 | AE109: 22.06425113 | AF109: 9951009 | AG109: 68701740000 | AH109: 0 | AI109: 19.1641475 | AK109: 0 | AL109: 0 | AN109: 0
A110: 108 | B110: 0.0002925 | C110: 0.0073696 | D110: 6773376 | E110: 9949992 | F110: 67708230000 | G110: 9949992 | H110: 67708230000 | I110: 0 | J110: 0 | K110: 22.04763001 | L110: =0 -> 0 | M110: 0 | N110: 19.15152361 | O110: =0 -> 0 | P110: 0 | Q110: =0 -> 0 | R110: 0 | S110: 0 | U110: 105 | V110: 0.9997145 | W110: 0.000285525 | X110: 0 | Y110: 0.0073666 | Z110: 0 | AA110: 0.6878009473 | AB110: 9954402 | AC110: 6847843 | AD110: 154773600 | AE110: 22.06013656 | AF110: 9950754 | AG110: 68453360000 | AH110: 0 | AI110: 19.16103007 | AK110: 0 | AL110: 0 | AN110: 0
A111: 109 | B111: 0.000294375 | C111: 0.007370667 | D111: 6749584 | E111: 9949715 | F111: 67470180000 | G111: 9949715 | H111: 67470180000 | I111: 0 | J111: 0 | K111: 22.04363637 | L111: =0 -> 0 | M111: 0 | N111: 19.14849238 | O111: =0 -> 0 | P111: 0 | Q111: =0 -> 0 | R111: 0 | S111: 0 | U111: 106 | V111: 0.9997122 | W111: 0.00028785 | X111: 0 | Y111: 0.0073676 | Z111: 0 | AA111: 0.6853537541 | AB111: 9954182 | AC111: 6823020 | AD111: 154184400 | AE111: 22.05601002 | AF111: 9950500 | AG111: 68204980000 | AH111: 0 | AI111: 19.1578892 | AK111: 0 | AL111: 0 | AN111: 0
A112: 110 | B112: 0.00029625 | C112: 0.007371733 | D112: 6725792 | E112: 9949438 | F112: 67232120000 | G112: 9949438 | H112: 67232120000 | I112: 0 | J112: 0 | K112: 22.0395996 | L112: =0 -> 0 | M112: 0 | N112: 19.14542039 | O112: =0 -> 0 | P112: 0 | Q112: =0 -> 0 | R112: 0 | S112: 0 | U112: 107 | V112: 0.9997098 | W112: 0.000290175 | X112: 0 | Y112: 0.0073686 | Z112: 0 | AA112: 0.682915268 | AB112: 9953962 | AC112: 6798198 | AD112: 153595100 | AE112: 22.05183532 | AF112: 9950246 | AG112: 67956610000 | AH112: 0 | AI112: 19.15471845 | AK112: 0 | AL112: 0 | AN112: 0
A113: 111 | B113: 0.000298125 | C113: 0.0073728 | D113: 6702000 | E113: 9949160 | F113: 66994070000 | G113: 9949160 | H113: 66994070000 | I113: 0 | J113: 0 | K113: 22.03554909 | L113: =0 -> 0 | M113: 0 | N113: 19.14232304 | O113: =0 -> 0 | P113: 0 | Q113: =0 -> 0 | R113: 0 | S113: 0 | U113: 108 | V113: 0.9997075 | W113: 0.0002925 | X113: 0 | Y113: 0.0073696 | Z113: 0 | AA113: 0.6804854581 | AB113: 9953743 | AC113: 6773376 | AD113: 153005800 | AE113: 22.04763001 | AF113: 9949992 | AG113: 67708230000 | AH113: 0 | AI113: 19.15152361 | AK113: 0 | AL113: 0 | AN113: 0
A114: 112 | B114: 0.0003 | C114: 0.007373867 | D114: 6678209 | E114: 9948883 | F114: 66756010000 | G114: 9948883 | H114: 66756010000 | I114: 0 | J114: 0 | K114: 22.03145137 | L114: =0 -> 0 | M114: 0 | N114: 19.13920002 | O114: =0 -> 0 | P114: 0 | Q114: =0 -> 0 | R114: 0 | S114: 0 | U114: 109 | V114: 0.9997056 | W114: 0.000294375 | X114: 0 | Y114: 0.007370667 | Z114: 0 | AA114: 0.6780642934 | AB114: 9953500 | AC114: 6749584 | AD114: 152441400 | AE114: 22.04363637 | AF114: 9949715 | AG114: 67470180000 | AH114: 0 | AI114: 19.14849238 | AK114: 0 | AL114: 0 | AN114: 0
A115: 113 | B115: 0.000301875 | C115: 0.007374933 | D115: 6654417 | E115: 9948606 | F115: 66517960000 | G115: 9948606 | H115: 66517960000 | I115: 0 | J115: 0 | K115: 22.02734276 | L115: =0 -> 0 | M115: 0 | N115: 19.13605099 | O115: =0 -> 0 | P115: 0 | Q115: =0 -> 0 | R115: 0 | S115: 0 | U115: 110 | V115: 0.9997038 | W115: 0.00029625 | X115: 0 | Y115: 0.007371733 | Z115: 0 | AA115: 0.6756517431 | AB115: 9953258 | AC115: 6725792 | AD115: 151876900 | AE115: 22.0395996 | AF115: 9949438 | AG115: 67232120000 | AH115: 0 | AI115: 19.14542039 | AK115: 0 | AL115: 0 | AN115: 0
A116: 114 | B116: 0.00030375 | C116: 0.007376 | D116: 6630625 | E116: 9948328 | F116: 66279900000 | G116: 9948328 | H116: 66279900000 | I116: 0 | J116: 0 | K116: 22.02318959 | L116: =0 -> 0 | M116: 0 | N116: 19.13287564 | O116: =0 -> 0 | P116: 0 | Q116: =0 -> 0 | R116: 0 | S116: 0 | U116: 111 | V116: 0.9997019 | W116: 0.000298125 | X116: 0 | Y116: 0.0073728 | Z116: 0 | AA116: 0.6732477768 | AB116: 9953015 | AC116: 6702000 | AD116: 151312500 | AE116: 22.03554909 | AF116: 9949160 | AG116: 66994070000 | AH116: 0 | AI116: 19.14232304 | AK116: 0 | AL116: 0 | AN116: 0
A117: 115 | B117: 0.000305625 | C117: 0.007377067 | D117: 6606833 | E117: 9948051 | F117: 66041850000 | G117: 9948051 | H117: 66041850000 | I117: 0 | J117: 0 | K117: 22.01902164 | L117: =0 -> 0 | M117: 0 | N117: 19.12967364 | O117: =0 -> 0 | P117: 0 | Q117: =0 -> 0 | R117: 0 | S117: 0 | U117: 112 | V117: 0.9997 | W117: 0.0003 | X117: 0 | Y117: 0.007373867 | Z117: 0 | AA117: 0.6708523637 | AB117: 9952773 | AC117: 6678209 | AD117: 150748000 | AE117: 22.03145137 | AF117: 9948883 | AG117: 66756010000 | AH117: 0 | AI117: 19.13920002 | AK117: 0 | AL117: 0 | AN117: 0
A118: 116 | B118: 0.0003075 | C118: 0.007378133 | D118: 6583042 | E118: 9947774 | F118: 65803790000 | G118: 9947774 | H118: 65803790000 | I118: 0 | J118: 0 | K118: 22.01480495 | L118: =0 -> 0 | M118: 0 | N118: 19.12646087 | O118: =0 -> 0 | P118: 0 | Q118: =0 -> 0 | R118: 0 | S118: 0 | U118: 113 | V118: 0.9996981 | W118: 0.000301875 | X118: 0 | Y118: 0.007374933 | Z118: 0 | AA118: 0.6684654735 | AB118: 9952530 | AC118: 6654417 | AD118: 150183600 | AE118: 22.02734276 | AF118: 9948606 | AG118: 66517960000 | AH118: 0 | AI118: 19.13605099 | AK118: 0 | AL118: 0 | AN118: 0
A119: 117 | B119: 0.000309375 | C119: 0.0073792 | D119: 6559250 | E119: 9947497 | F119: 65565740000 | G119: 9947497 | H119: 65565740000 | I119: 0 | J119: 0 | K119: 22.01057635 | L119: =0 -> 0 | M119: 0 | N119: 19.1232046 | O119: =0 -> 0 | P119: 0 | Q119: =0 -> 0 | R119: 0 | S119: 0 | U119: 114 | V119: 0.9996963 | W119: 0.00030375 | X119: 0 | Y119: 0.007376 | Z119: 0 | AA119: 0.6660870758 | AB119: 9952288 | AC119: 6630625 | AD119: 149619100 | AE119: 22.02318959 | AF119: 9948328 | AG119: 66279900000 | AH119: 0 | AI119: 19.13287564 | AK119: 0 | AL119: 0 | AN119: 0
A120: 118 | B120: 0.00031125 | C120: 0.007380267 | D120: 6535458 | E120: 9947220 | F120: 65327690000 | G120: 9947220 | H120: 65327690000 | I120: 0 | J120: 0 | K120: 22.00630166 | L120: =0 -> 0 | M120: 0 | N120: 19.11992065 | O120: =0 -> 0 | P120: 0 | Q120: =0 -> 0 | R120: 0 | S120: 0 | U120: 115 | V120: 0.9996943 | W120: 0.000305625 | X120: 0 | Y120: 0.007377067 | Z120: 0 | AA120: 0.6637171405 | AB120: 9952045 | AC120: 6606833 | AD120: 149054700 | AE120: 22.01902164 | AF120: 9948051 | AG120: 66041850000 | AH120: 0 | AI120: 19.12967364 | AK120: 0 | AL120: 0 | AN120: 0
A121: 119 | B121: 0.000313125 | C121: 0.007381334 | D121: 6511666 | E121: 9946942 | F121: 65089630000 | G121: 9946942 | H121: 65089630000 | I121: 0 | J121: 0 | K121: 22.0020111 | L121: =0 -> 0 | M121: 0 | N121: 19.11660865 | O121: =0 -> 0 | P121: 0 | Q121: =0 -> 0 | R121: 0 | S121: 0 | U121: 116 | V121: 0.9996925 | W121: 0.0003075 | X121: 0 | Y121: 0.007378133 | Z121: 0 | AA121: 0.6613556374 | AB121: 9951802 | AC121: 6583042 | AD121: 148490200 | AE121: 22.01480495 | AF121: 9947774 | AG121: 65803790000 | AH121: 0 | AI121: 19.12646087 | AK121: 0 | AL121: 0 | AN121: 0
A122: 120 | B122: 0.000315 | C122: 0.0073824 | D122: 6487875 | E122: 9946665 | F122: 64851570000 | G122: 9946665 | H122: 64851570000 | I122: 0 | J122: 0 | K122: 21.99767017 | L122: =0 -> 0 | M122: 0 | N122: 19.11326826 | O122: =0 -> 0 | P122: 0 | Q122: =0 -> 0 | R122: 0 | S122: 0 | U122: 117 | V122: 0.9996907 | W122: 0.000309375 | X122: 0 | Y122: 0.0073792 | Z122: 0 | AA122: 0.6590025365 | AB122: 9951560 | AC122: 6559250 | AD122: 147925800 | AE122: 22.01057635 | AF122: 9947497 | AG122: 65565740000 | AH122: 0 | AI122: 19.1232046 | AK122: 0 | AL122: 0 | AN122: 0
A123: 121 | B123: 0.000316575 | C123: 0.007383534 | D123: 6465074 | E123: 9946369 | F123: 64623450000 | G123: 9946369 | H123: 64623450000 | I123: 0 | J123: 0 | K123: 21.99354329 | L123: =0 -> 0 | M123: 0 | N123: 19.11008819 | O123: =0 -> 0 | P123: 0 | Q123: =0 -> 0 | R123: 0 | S123: 0 | U123: 118 | V123: 0.9996887 | W123: 0.00031125 | X123: 0 | Y123: 0.007380267 | Z123: 0 | AA123: 0.6566578079 | AB123: 9951317 | AC123: 6535458 | AD123: 147361300 | AE123: 22.00630166 | AF123: 9947220 | AG123: 65327690000 | AH123: 0 | AI123: 19.11992065 | AK123: 0 | AL123: 0 | AN123: 0
A124: 122 | B124: 0.00031815 | C124: 0.007384667 | D124: 6442273 | E124: 9946074 | F124: 64395320000 | G124: 9946074 | H124: 64395320000 | I124: 0 | J124: 0 | K124: 21.98937168 | L124: =0 -> 0 | M124: 0 | N124: 19.10688524 | O124: =0 -> 0 | P124: 0 | Q124: =0 -> 0 | R124: 0 | S124: 0 | U124: 119 | V124: 0.9996869 | W124: 0.000313125 | X124: 0 | Y124: 0.007381334 | Z124: 0 | AA124: 0.6543214219 | AB124: 9951075 | AC124: 6511666 | AD124: 146796900 | AE124: 22.0020111 | AF124: 9946942 | AG124: 65089630000 | AH124: 0 | AI124: 19.11660865 | AK124: 0 | AL124: 0 | AN124: 0
A125: 123 | B125: 0.000319725 | C125: 0.0073858 | D125: 6419473 | E125: 9945778 | F125: 64167190000 | G125: 9945778 | H125: 64167190000 | I125: 0 | J125: 0 | K125: 21.9851825 | L125: =0 -> 0 | M125: 0 | N125: 19.10365255 | O125: =0 -> 0 | P125: 0 | Q125: =0 -> 0 | R125: 0 | S125: 0 | U125: 120 | V125: 0.999685 | W125: 0.000315 | X125: 0 | Y125: 0.0073824 | Z125: 0 | AA125: 0.6519933487 | AB125: 9950832 | AC125: 6487875 | AD125: 146232400 | AE125: 21.99767017 | AF125: 9946665 | AG125: 64851570000 | AH125: 0 | AI125: 19.11326826 | AK125: 0 | AL125: 0 | AN125: 0
A126: 124 | B126: 0.0003213 | C126: 0.007386934 | D126: 6396672 | E126: 9945482 | F126: 63939070000 | G126: 9945482 | H126: 63939070000 | I126: 0 | J126: 0 | K126: 21.98095134 | L126: =0 -> 0 | M126: 0 | N126: 19.10039305 | O126: =0 -> 0 | P126: 0 | Q126: =0 -> 0 | R126: 0 | S126: 0 | U126: 121 | V126: 0.9996834 | W126: 0.000316575 | X126: 0 | Y126: 0.007383534 | Z126: 0 | AA126: 0.6496735588 | AB126: 9950571 | AC126: 6465074 | AD126: 145691800 | AE126: 21.99354329 | AF126: 9946369 | AG126: 64623450000 | AH126: 0 | AI126: 19.11008819 | AK126: 0 | AL126: 0 | AN126: 0
A127: 125 | B127: 0.000322875 | C127: 0.007388067 | D127: 6373872 | E127: 9945186 | F127: 63710940000 | G127: 9945186 | H127: 63710940000 | I127: 0 | J127: 0 | K127: 21.97670207 | L127: =0 -> 0 | M127: 0 | N127: 19.09710972 | O127: =0 -> 0 | P127: 0 | Q127: =0 -> 0 | R127: 0 | S127: 0 | U127: 122 | V127: 0.9996818 | W127: 0.00031815 | X127: 0 | Y127: 0.007384667 | Z127: 0 | AA127: 0.6473620227 | AB127: 9950310 | AC127: 6442273 | AD127: 145151100 | AE127: 21.98937168 | AF127: 9946074 | AG127: 64395320000 | AH127: 0 | AI127: 19.10688524 | AK127: 0 | AL127: 0 | AN127: 0
A128: 126 | B128: 0.00032445 | C128: 0.0073892 | D128: 6351071 | E128: 9944890 | F128: 63482810000 | G128: 9944890 | H128: 63482810000 | I128: 0 | J128: 0 | K128: 21.97241009 | L128: =0 -> 0 | M128: 0 | N128: 19.0937787 | O128: =0 -> 0 | P128: 0 | Q128: =0 -> 0 | R128: 0 | S128: 0 | U128: 123 | V128: 0.9996803 | W128: 0.000319725 | X128: 0 | Y128: 0.0073858 | Z128: 0 | AA128: 0.6450587111 | AB128: 9950048 | AC128: 6419473 | AD128: 144610500 | AE128: 21.9851825 | AF128: 9945778 | AG128: 64167190000 | AH128: 0 | AI128: 19.10365255 | AK128: 0 | AL128: 0 | AN128: 0
A129: 127 | B129: 0.000326025 | C129: 0.007390333 | D129: 6328270 | E129: 9944595 | F129: 63254680000 | G129: 9944595 | H129: 63254680000 | I129: 0 | J129: 0 | K129: 21.96810299 | L129: =0 -> 0 | M129: 0 | N129: 19.09043669 | O129: =0 -> 0 | P129: 0 | Q129: =0 -> 0 | R129: 0 | S129: 0 | U129: 124 | V129: 0.9996787 | W129: 0.0003213 | X129: 0 | Y129: 0.007386934 | Z129: 0 | AA129: 0.6427635946 | AB129: 9949787 | AC129: 6396672 | AD129: 144069800 | AE129: 21.98095134 | AF129: 9945482 | AG129: 63939070000 | AH129: 0 | AI129: 19.10039305 | AK129: 0 | AL129: 0 | AN129: 0
A130: 128 | B130: =W133 -> 0.0003276 | C130: =Y133 -> 0.007391467 | D130: =AC133 -> 6305470 | E130: =AF133 -> 9944299 | F130: =AG133 -> 63026560000 | G130: =E130 -> 9944299 | H130: =F130 -> 63026560000 | I130: =X133 -> 0 | J130: =AN133 -> 0 | K130: =AE133 -> 21.9637453 | L130: =0 -> 0 | M130: =AL133 -> 0 | N130: =AI133 -> 19.08706985 | O130: =0 -> 0 | P130: =AK133 -> 0 | Q130: =0 -> 0 | R130: =Z133 -> 0 | S130: =AH133 -> 0 | U130: 125 | V130: 0.9996771 | W130: 0.000322875 | X130: 0 | Y130: 0.007388067 | Z130: 0 | AA130: 0.6404766441 | AB130: 9949526 | AC130: 6373872 | AD130: 143529200 | AE130: 21.97670207 | AF130: 9945186 | AG130: 63710940000 | AH130: 0 | AI130: 19.09710972 | AK130: 0 | AL130: 0 | AN130: 0
A131: 129 | B131: 0.000329175 | C131: 0.0073926 | D131: 6282669 | E131: 9944003 | F131: 62798430000 | G131: 9944003 | H131: 62798430000 | I131: 0 | J131: 0 | K131: 21.95937549 | L131: =0 -> 0 | M131: 0 | N131: 19.08367114 | O131: =0 -> 0 | P131: 0 | Q131: =0 -> 0 | R131: 0 | S131: 0 | U131: 126 | V131: 0.9996756 | W131: 0.00032445 | X131: 0 | Y131: 0.0073892 | Z131: 0 | AA131: 0.6381978306 | AB131: 9949264 | AC131: 6351071 | AD131: 142988500 | AE131: 21.97241009 | AF131: 9944890 | AG131: 63482810000 | AH131: 0 | AI131: 19.0937787 | AK131: 0 | AL131: 0 | AN131: 0
A132: 130 | B132: 0.00033075 | C132: 0.007393734 | D132: 6259868 | E132: 9943708 | F132: 62570300000 | G132: 9943708 | H132: 62570300000 | I132: 0 | J132: 0 | K132: 21.95495786 | L132: =0 -> 0 | M132: 0 | N132: 19.08024691 | O132: =0 -> 0 | P132: 0 | Q132: =0 -> 0 | R132: 0 | S132: 0 | U132: 127 | V132: 0.999674 | W132: 0.000326025 | X132: 0 | Y132: 0.007390333 | Z132: 0 | AA132: 0.6359271251 | AB132: 9949003 | AC132: 6328270 | AD132: 142447900 | AE132: 21.96810299 | AF132: 9944595 | AG132: 63254680000 | AH132: 0 | AI132: 19.09043669 | AK132: 0 | AL132: 0 | AN132: 0
A133: 131 | B133: 0.000332325 | C133: 0.007394867 | D133: 6237068 | E133: 9943412 | F133: 62342180000 | G133: 9943412 | H133: 62342180000 | I133: 0 | J133: 0 | K133: 21.95050433 | L133: =0 -> 0 | M133: 0 | N133: 19.07679003 | O133: =0 -> 0 | P133: 0 | Q133: =0 -> 0 | R133: 0 | S133: 0 | U133: 128 | V133: 0.9996724 | W133: 0.0003276 | X133: 0 | Y133: 0.007391467 | Z133: 0 | AA133: 0.6336644988 | AB133: 9948742 | AC133: 6305470 | AD133: 141907200 | AE133: 21.9637453 | AF133: 9944299 | AG133: 63026560000 | AH133: 0 | AI133: 19.08706985 | AK133: 0 | AL133: 0 | AN133: 0
A134: 132 | B134: 0.0003339 | C134: 0.007396 | D134: 6214267 | E134: 9943116 | F134: 62114050000 | G134: 9943116 | H134: 62114050000 | I134: 0 | J134: 0 | K134: 21.94603784 | L134: =0 -> 0 | M134: 0 | N134: 19.07330351 | O134: =0 -> 0 | P134: 0 | Q134: =0 -> 0 | R134: 0 | S134: 0 | U134: 129 | V134: 0.9996708 | W134: 0.000329175 | X134: 0 | Y134: 0.0073926 | Z134: 0 | AA134: 0.6314099229 | AB134: 9948481 | AC134: 6282669 | AD134: 141366600 | AE134: 21.95937549 | AF134: 9944003 | AG134: 62798430000 | AH134: 0 | AI134: 19.08367114 | AK134: 0 | AL134: 0 | AN134: 0
A135: 133 | B135: 0.000335175 | C135: 0.0073972 | D135: 6192419 | E135: 9942805 | F135: 61895460000 | G135: 9942805 | H135: 61895460000 | I135: 0 | J135: 0 | K135: 21.9417441 | L135: =0 -> 0 | M135: 0 | N135: 19.06998338 | O135: =0 -> 0 | P135: 0 | Q135: =0 -> 0 | R135: 0 | S135: 0 | U135: 130 | V135: 0.9996693 | W135: 0.00033075 | X135: 0 | Y135: 0.007393734 | Z135: 0 | AA135: 0.6291633687 | AB135: 9948220 | AC135: 6259868 | AD135: 140825900 | AE135: 21.95495786 | AF135: 9943708 | AG135: 62570300000 | AH135: 0 | AI135: 19.08024691 | AK135: 0 | AL135: 0 | AN135: 0
A136: 134 | B136: 0.00033645 | C136: 0.0073984 | D136: 6170570 | E136: 9942493 | F136: 61676870000 | G136: 9942493 | H136: 61676870000 | I136: 0 | J136: 0 | K136: 21.9374398 | L136: =0 -> 0 | M136: 0 | N136: 19.0666325 | O136: =0 -> 0 | P136: 0 | Q136: =0 -> 0 | R136: 0 | S136: 0 | U136: 131 | V136: 0.9996677 | W136: 0.000332325 | X136: 0 | Y136: 0.007394867 | Z136: 0 | AA136: 0.6269248078 | AB136: 9947958 | AC136: 6237068 | AD136: 140285200 | AE136: 21.95050433 | AF136: 9943412 | AG136: 62342180000 | AH136: 0 | AI136: 19.07679003 | AK136: 0 | AL136: 0 | AN136: 0
A137: 135 | B137: 0.000337725 | C137: 0.0073996 | D137: 6148722 | E137: 9942182 | F137: 61458280000 | G137: 9942182 | H137: 61458280000 | I137: 0 | J137: 0 | K137: 21.933085 | L137: =0 -> 0 | M137: 0 | N137: 19.06325395 | O137: =0 -> 0 | P137: 0 | Q137: =0 -> 0 | R137: 0 | S137: 0 | U137: 132 | V137: 0.9996661 | W137: 0.0003339 | X137: 0 | Y137: 0.007396 | Z137: 0 | AA137: 0.6246942117 | AB137: 9947697 | AC137: 6214267 | AD137: 139744600 | AE137: 21.94603784 | AF137: 9943116 | AG137: 62114050000 | AH137: 0 | AI137: 19.07330351 | AK137: 0 | AL137: 0 | AN137: 0
A138: 136 | B138: 0.000339 | C138: 0.0074008 | D138: 6126873 | E138: 9941871 | F138: 61239690000 | G138: 9941871 | H138: 61239690000 | I138: 0 | J138: 0 | K138: 21.92871912 | L138: =0 -> 0 | M138: 0 | N138: 19.05983318 | O138: =0 -> 0 | P138: 0 | Q138: =0 -> 0 | R138: 0 | S138: 0 | U138: 133 | V138: 0.9996648 | W138: 0.000335175 | X138: 0 | Y138: 0.0073972 | Z138: 0 | AA138: 0.622471552 | AB138: 9947420 | AC138: 6192419 | AD138: 139226700 | AE138: 21.9417441 | AF138: 9942805 | AG138: 61895460000 | AH138: 0 | AI138: 19.06998338 | AK138: 0 | AL138: 0 | AN138: 0
A139: 137 | B139: 0.000340275 | C139: 0.007402 | D139: 6105025 | E139: 9941559 | F139: 61021090000 | G139: 9941559 | H139: 61021090000 | I139: 0 | J139: 0 | K139: 21.92430194 | L139: =0 -> 0 | M139: 0 | N139: 19.05639816 | O139: =0 -> 0 | P139: 0 | Q139: =0 -> 0 | R139: 0 | S139: 0 | U139: 134 | V139: 0.9996635 | W139: 0.00033645 | X139: 0 | Y139: 0.0073984 | Z139: 0 | AA139: 0.6202568006 | AB139: 9947143 | AC139: 6170570 | AD139: 138708900 | AE139: 21.9374398 | AF139: 9942493 | AG139: 61676870000 | AH139: 0 | AI139: 19.0666325 | AK139: 0 | AL139: 0 | AN139: 0
A140: 138 | B140: 0.00034155 | C140: 0.0074032 | D140: 6083176 | E140: 9941248 | F140: 60802500000 | G140: 9941248 | H140: 60802500000 | I140: 0 | J140: 0 | K140: 21.91987316 | L140: =0 -> 0 | M140: 0 | N140: 19.05293791 | O140: =0 -> 0 | P140: 0 | Q140: =0 -> 0 | R140: 0 | S140: 0 | U140: 135 | V140: 0.9996623 | W140: 0.000337725 | X140: 0 | Y140: 0.0073996 | Z140: 0 | AA140: 0.6180499292 | AB140: 9946866 | AC140: 6148722 | AD140: 138191000 | AE140: 21.933085 | AF140: 9942182 | AG140: 61458280000 | AH140: 0 | AI140: 19.06325395 | AK140: 0 | AL140: 0 | AN140: 0
A141: 139 | B141: 0.000342825 | C141: 0.007404401 | D141: 6061328 | E141: 9940937 | F141: 60583910000 | G141: 9940937 | H141: 60583910000 | I141: 0 | J141: 0 | K141: 21.91539225 | L141: =0 -> 0 | M141: 0 | N141: 19.04944508 | O141: =0 -> 0 | P141: 0 | Q141: =0 -> 0 | R141: 0 | S141: 0 | U141: 136 | V141: 0.999661 | W141: 0.000339 | X141: 0 | Y141: 0.0074008 | Z141: 0 | AA141: 0.6158509098 | AB141: 9946590 | AC141: 6126873 | AD141: 137673200 | AE141: 21.92871912 | AF141: 9941871 | AG141: 61239690000 | AH141: 0 | AI141: 19.05983318 | AK141: 0 | AL141: 0 | AN141: 0
A142: 140 | B142: 0.0003441 | C142: 0.007405601 | D142: 6039480 | E142: 9940625 | F142: 60365320000 | G142: 9940625 | H142: 60365320000 | I142: 0 | J142: 0 | K142: 21.91089547 | L142: =0 -> 0 | M142: 0 | N142: 19.0459228 | O142: =0 -> 0 | P142: 0 | Q142: =0 -> 0 | R142: 0 | S142: 0 | U142: 137 | V142: 0.9996597 | W142: 0.000340275 | X142: 0 | Y142: 0.007402 | Z142: 0 | AA142: 0.6136597146 | AB142: 9946313 | AC142: 6105025 | AD142: 137155300 | AE142: 21.92430194 | AF142: 9941559 | AG142: 61021090000 | AH142: 0 | AI142: 19.05639816 | AK142: 0 | AL142: 0 | AN142: 0
A143: 141 | B143: 0.000345375 | C143: 0.007406801 | D143: 6017631 | E143: 9940314 | F143: 60146730000 | G143: 9940314 | H143: 60146730000 | I143: 0 | J143: 0 | K143: 21.90635316 | L143: =0 -> 0 | M143: 0 | N143: 19.04237421 | O143: =0 -> 0 | P143: 0 | Q143: =0 -> 0 | R143: 0 | S143: 0 | U143: 138 | V143: 0.9996585 | W143: 0.00034155 | X143: 0 | Y143: 0.0074032 | Z143: 0 | AA143: 0.6114763156 | AB143: 9946036 | AC143: 6083176 | AD143: 136637500 | AE143: 21.91987316 | AF143: 9941248 | AG143: 60802500000 | AH143: 0 | AI143: 19.05293791 | AK143: 0 | AL143: 0 | AN143: 0
A144: 142 | B144: 0.00034665 | C144: 0.007408001 | D144: 5995783 | E144: 9940003 | F144: 59928140000 | G144: 9940003 | H144: 59928140000 | I144: 0 | J144: 0 | K144: 21.901774 | L144: =0 -> 0 | M144: 0 | N144: 19.03879189 | O144: =0 -> 0 | P144: 0 | Q144: =0 -> 0 | R144: 0 | S144: 0 | U144: 139 | V144: 0.9996572 | W144: 0.000342825 | X144: 0 | Y144: 0.007404401 | Z144: 0 | AA144: 0.6093006852 | AB144: 9945759 | AC144: 6061328 | AD144: 136119600 | AE144: 21.91539225 | AF144: 9940937 | AG144: 60583910000 | AH144: 0 | AI144: 19.04944508 | AK144: 0 | AL144: 0 | AN144: 0
A145: 143 | B145: 0.000347925 | C145: 0.007409201 | D145: 5973934 | E145: 9939691 | F145: 59709550000 | G145: 9939691 | H145: 59709550000 | I145: 0 | J145: 0 | K145: 21.89718184 | L145: =0 -> 0 | M145: 0 | N145: 19.03517897 | O145: =0 -> 0 | P145: 0 | Q145: =0 -> 0 | R145: 0 | S145: 0 | U145: 140 | V145: 0.9996559 | W145: 0.0003441 | X145: 0 | Y145: 0.007405601 | Z145: 0 | AA145: 0.6071327956 | AB145: 9945482 | AC145: 6039480 | AD145: 135601800 | AE145: 21.91089547 | AF145: 9940625 | AG145: 60365320000 | AH145: 0 | AI145: 19.0459228 | AK145: 0 | AL145: 0 | AN145: 0
A146: 144 | B146: 0.0003492 | C146: 0.007410401 | D146: 5952086 | E146: 9939380 | F146: 59490960000 | G146: 9939380 | H146: 59490960000 | I146: 0 | J146: 0 | K146: 21.89253539 | L146: =0 -> 0 | M146: 0 | N146: 19.03153862 | O146: =0 -> 0 | P146: 0 | Q146: =0 -> 0 | R146: 0 | S146: 0 | U146: 141 | V146: 0.9996547 | W146: 0.000345375 | X146: 0 | Y146: 0.007406801 | Z146: 0 | AA146: 0.6049726194 | AB146: 9945206 | AC146: 6017631 | AD146: 135083900 | AE146: 21.90635316 | AF146: 9940314 | AG146: 60146730000 | AH146: 0 | AI146: 19.04237421 | AK146: 0 | AL146: 0 | AN146: 0
A147: 145 | B147: 0.00035025 | C147: 0.007411734 | D147: 5931152 | E147: 9939056 | F147: 59281520000 | G147: 9939056 | H147: 59281520000 | I147: 0 | J147: 0 | K147: 21.88809066 | L147: =0 -> 0 | M147: 0 | N147: 19.02806718 | O147: =0 -> 0 | P147: 0 | Q147: =0 -> 0 | R147: 0 | S147: 0 | U147: 142 | V147: 0.9996533 | W147: 0.00034665 | X147: 0 | Y147: 0.007408001 | Z147: 0 | AA147: 0.6028201291 | AB147: 9944929 | AC147: 5995783 | AD147: 134566000 | AE147: 21.901774 | AF147: 9940003 | AG147: 59928140000 | AH147: 0 | AI147: 19.03879189 | AK147: 0 | AL147: 0 | AN147: 0
A148: 146 | B148: 0.0003513 | C148: 0.007413067 | D148: 5910218 | E148: 9938732 | F148: 59072090000 | G148: 9938732 | H148: 59072090000 | I148: 0 | J148: 0 | K148: 21.88361443 | L148: =0 -> 0 | M148: 0 | N148: 19.02456718 | O148: =0 -> 0 | P148: 0 | Q148: =0 -> 0 | R148: 0 | S148: 0 | U148: 143 | V148: 0.9996521 | W148: 0.000347925 | X148: 0 | Y148: 0.007409201 | Z148: 0 | AA148: 0.6006752973 | AB148: 9944652 | AC148: 5973934 | AD148: 134048200 | AE148: 21.89718184 | AF148: 9939691 | AG148: 59709550000 | AH148: 0 | AI148: 19.03517897 | AK148: 0 | AL148: 0 | AN148: 0
A149: 147 | B149: 0.00035235 | C149: 0.007414401 | D149: 5889284 | E149: 9938408 | F149: 58862660000 | G149: 9938408 | H149: 58862660000 | I149: 0 | J149: 0 | K149: 21.87910638 | L149: =0 -> 0 | M149: 0 | N149: 19.02103825 | O149: =0 -> 0 | P149: 0 | Q149: =0 -> 0 | R149: 0 | S149: 0 | U149: 144 | V149: 0.9996508 | W149: 0.0003492 | X149: 0 | Y149: 0.007410401 | Z149: 0 | AA149: 0.5985380968 | AB149: 9944375 | AC149: 5952086 | AD149: 133530300 | AE149: 21.89253539 | AF149: 9939380 | AG149: 59490960000 | AH149: 0 | AI149: 19.03153862 | AK149: 0 | AL149: 0 | AN149: 0
A150: 148 | B150: 0.0003534 | C150: 0.007415734 | D150: 5868350 | E150: 9938084 | F150: 58653220000 | G150: 9938084 | H150: 58653220000 | I150: 0 | J150: 0 | K150: 21.87456618 | L150: =0 -> 0 | M150: 0 | N150: 19.01747642 | O150: =0 -> 0 | P150: 0 | Q150: =0 -> 0 | R150: 0 | S150: 0 | U150: 145 | V150: 0.9996498 | W150: 0.00035025 | X150: 0 | Y150: 0.007411734 | Z150: 0 | AA150: 0.5964085005 | AB150: 9944086 | AC150: 5931152 | AD150: 133034300 | AE150: 21.88809066 | AF150: 9939056 | AG150: 59281520000 | AH150: 0 | AI150: 19.02806718 | AK150: 0 | AL150: 0 | AN150: 0
A151: 149 | B151: 0.00035445 | C151: 0.007417067 | D151: 5847416 | E151: 9937760 | F151: 58443790000 | G151: 9937760 | H151: 58443790000 | I151: 0 | J151: 0 | K151: 21.86999346 | L151: =0 -> 0 | M151: 0 | N151: 19.01388856 | O151: =0 -> 0 | P151: 0 | Q151: =0 -> 0 | R151: 0 | S151: 0 | U151: 146 | V151: 0.9996487 | W151: 0.0003513 | X151: 0 | Y151: 0.007413067 | Z151: 0 | AA151: 0.5942864813 | AB151: 9943796 | AC151: 5910218 | AD151: 132538300 | AE151: 21.88361443 | AF151: 9938732 | AG151: 59072090000 | AH151: 0 | AI151: 19.02456718 | AK151: 0 | AL151: 0 | AN151: 0
A152: 150 | B152: 0.0003555 | C152: 0.0074184 | D152: 5826482 | E152: 9937436 | F152: 58234360000 | G152: 9937436 | H152: 58234360000 | I152: 0 | J152: 0 | K152: 21.86538788 | L152: =0 -> 0 | M152: 0 | N152: 19.01027068 | O152: =0 -> 0 | P152: 0 | Q152: =0 -> 0 | R152: 0 | S152: 0 | U152: 147 | V152: 0.9996477 | W152: 0.00035235 | X152: 0 | Y152: 0.007414401 | Z152: 0 | AA152: 0.5921720122 | AB152: 9943507 | AC152: 5889284 | AD152: 132042300 | AE152: 21.87910638 | AF152: 9938408 | AG152: 58862660000 | AH152: 0 | AI152: 19.02103825 | AK152: 0 | AL152: 0 | AN152: 0
A153: 151 | B153: 0.00035655 | C153: 0.007419733 | D153: 5805548 | E153: 9937113 | F153: 58024920000 | G153: 9937113 | H153: 58024920000 | I153: 0 | J153: 0 | K153: 21.86074909 | L153: =0 -> 0 | M153: 0 | N153: 19.0066224 | O153: =0 -> 0 | P153: 0 | Q153: =0 -> 0 | R153: 0 | S153: 0 | U153: 148 | V153: 0.9996466 | W153: 0.0003534 | X153: 0 | Y153: 0.007415734 | Z153: 0 | AA153: 0.5900650664 | AB153: 9943217 | AC153: 5868350 | AD153: 131546300 | AE153: 21.87456618 | AF153: 9938084 | AG153: 58653220000 | AH153: 0 | AI153: 19.01747642 | AK153: 0 | AL153: 0 | AN153: 0
A154: 152 | B154: 0.0003576 | C154: 0.007421067 | D154: 5784614 | E154: 9936789 | F154: 57815490000 | G154: 9936789 | H154: 57815490000 | I154: 0 | J154: 0 | K154: 21.85607673 | L154: =0 -> 0 | M154: 0 | N154: 19.00294334 | O154: =0 -> 0 | P154: 0 | Q154: =0 -> 0 | R154: 0 | S154: 0 | U154: 149 | V154: 0.9996455 | W154: 0.00035445 | X154: 0 | Y154: 0.007417067 | Z154: 0 | AA154: 0.5879656171 | AB154: 9942928 | AC154: 5847416 | AD154: 131050300 | AE154: 21.86999346 | AF154: 9937760 | AG154: 58443790000 | AH154: 0 | AI154: 19.01388856 | AK154: 0 | AL154: 0 | AN154: 0
A155: 153 | B155: 0.00035865 | C155: 0.0074224 | D155: 5763680 | E155: 9936465 | F155: 57606060000 | G155: 9936465 | H155: 57606060000 | I155: 0 | J155: 0 | K155: 21.85137042 | L155: =0 -> 0 | M155: 0 | N155: 18.9992331 | O155: =0 -> 0 | P155: 0 | Q155: =0 -> 0 | R155: 0 | S155: 0 | U155: 150 | V155: 0.9996445 | W155: 0.0003555 | X155: 0 | Y155: 0.0074184 | Z155: 0 | AA155: 0.5858736377 | AB155: 9942638 | AC155: 5826482 | AD155: 130554300 | AE155: 21.86538788 | AF155: 9937436 | AG155: 58234360000 | AH155: 0 | AI155: 19.01027068 | AK155: 0 | AL155: 0 | AN155: 0
A156: 154 | B156: 0.0003597 | C156: 0.007423733 | D156: 5742746 | E156: 9936141 | F156: 57396630000 | G156: 9936141 | H156: 57396630000 | I156: 0 | J156: 0 | K156: 21.8466298 | L156: =0 -> 0 | M156: 0 | N156: 18.9954913 | O156: =0 -> 0 | P156: 0 | Q156: =0 -> 0 | R156: 0 | S156: 0 | U156: 151 | V156: 0.9996434 | W156: 0.00035655 | X156: 0 | Y156: 0.007419733 | Z156: 0 | AA156: 0.5837891014 | AB156: 9942349 | AC156: 5805548 | AD156: 130058300 | AE156: 21.86074909 | AF156: 9937113 | AG156: 58024920000 | AH156: 0 | AI156: 19.0066224 | AK156: 0 | AL156: 0 | AN156: 0
A157: 155 | B157: 0.00036075 | C157: 0.007425067 | D157: 5721812 | E157: 9935817 | F157: 57187190000 | G157: 9935817 | H157: 57187190000 | I157: 0 | J157: 0 | K157: 21.84183702 | L157: =0 -> 0 | M157: 0 | N157: 18.99171752 | O157: =0 -> 0 | P157: 0 | Q157: =0 -> 0 | R157: 0 | S157: 0 | U157: 152 | V157: 0.9996424 | W157: 0.0003576 | X157: 0 | Y157: 0.007421067 | Z157: 0 | AA157: 0.581711982 | AB157: 9942060 | AC157: 5784614 | AD157: 129562300 | AE157: 21.85607673 | AF157: 9936789 | AG157: 57815490000 | AH157: 0 | AI157: 19.00294334 | AK157: 0 | AL157: 0 | AN157: 0
A158: 156 | B158: 0.0003618 | C158: 0.0074264 | D158: 5700878 | E158: 9935493 | F158: 56977760000 | G158: 9935493 | H158: 56977760000 | I158: 0 | J158: 0 | K158: 21.83702658 | L158: =0 -> 0 | M158: 0 | N158: 18.98791136 | O158: =0 -> 0 | P158: 0 | Q158: =0 -> 0 | R158: 0 | S158: 0 | U158: 153 | V158: 0.9996414 | W158: 0.00035865 | X158: 0 | Y158: 0.0074224 | Z158: 0 | AA158: 0.5796422529 | AB158: 9941770 | AC158: 5763680 | AD158: 129066300 | AE158: 21.85137042 | AF158: 9936465 | AG158: 57606060000 | AH158: 0 | AI158: 18.9992331 | AK158: 0 | AL158: 0 | AN158: 0
A159: 157 | B159: 0.0003627 | C159: 0.007427867 | D159: 5680822 | E159: 9935159 | F159: 56777120000 | G159: 9935159 | H159: 56777120000 | I159: 0 | J159: 0 | K159: 21.83241934 | L159: =0 -> 0 | M159: 0 | N159: 18.98427211 | O159: =0 -> 0 | P159: 0 | Q159: =0 -> 0 | R159: 0 | S159: 0 | U159: 154 | V159: 0.9996403 | W159: 0.0003597 | X159: 0 | Y159: 0.007423733 | Z159: 0 | AA159: 0.577579888 | AB159: 9941481 | AC159: 5742746 | AD159: 128570300 | AE159: 21.8466298 | AF159: 9936141 | AG159: 57396630000 | AH159: 0 | AI159: 18.9954913 | AK159: 0 | AL159: 0 | AN159: 0
A160: 158 | B160: 0.0003636 | C160: 0.007429333 | D160: 5660766 | E160: 9934825 | F160: 56576480000 | G160: 9934825 | H160: 56576480000 | I160: 0 | J160: 0 | K160: 21.82776178 | L160: =0 -> 0 | M160: 0 | N160: 18.98062603 | O160: =0 -> 0 | P160: 0 | Q160: =0 -> 0 | R160: 0 | S160: 0 | U160: 155 | V160: 0.9996393 | W160: 0.00036075 | X160: 0 | Y160: 0.007425067 | Z160: 0 | AA160: 0.5755248609 | AB160: 9941191 | AC160: 5721812 | AD160: 128074200 | AE160: 21.84183702 | AF160: 9935817 | AG160: 57187190000 | AH160: 0 | AI160: 18.99171752 | AK160: 0 | AL160: 0 | AN160: 0
A161: 159 | B161: 0.0003645 | C161: 0.0074308 | D161: 5640710 | E161: 9934490 | F161: 56375830000 | G161: 9934490 | H161: 56375830000 | I161: 0 | J161: 0 | K161: 21.82307111 | L161: =0 -> 0 | M161: 0 | N161: 18.97694981 | O161: =0 -> 0 | P161: 0 | Q161: =0 -> 0 | R161: 0 | S161: 0 | U161: 156 | V161: 0.9996382 | W161: 0.0003618 | X161: 0 | Y161: 0.0074264 | Z161: 0 | AA161: 0.5734771456 | AB161: 9940902 | AC161: 5700878 | AD161: 127578200 | AE161: 21.83702658 | AF161: 9935493 | AG161: 56977760000 | AH161: 0 | AI161: 18.98791136 | AK161: 0 | AL161: 0 | AN161: 0
A162: 160 | B162: 0.0003654 | C162: 0.007432267 | D162: 5620654 | E162: 9934156 | F162: 56175190000 | G162: 9934156 | H162: 56175190000 | I162: 0 | J162: 0 | K162: 21.81836475 | L162: =0 -> 0 | M162: 0 | N162: 18.97321976 | O162: =0 -> 0 | P162: 0 | Q162: =0 -> 0 | R162: 0 | S162: 0 | U162: 157 | V162: 0.9996373 | W162: 0.0003627 | X162: 0 | Y162: 0.007427867 | Z162: 0 | AA162: 0.571436716 | AB162: 9940602 | AC162: 5680822 | AD162: 127103200 | AE162: 21.83241934 | AF162: 9935159 | AG162: 56777120000 | AH162: 0 | AI162: 18.98427211 | AK162: 0 | AL162: 0 | AN162: 0
A163: 161 | B163: 0.0003663 | C163: 0.007433733 | D163: 5600597 | E163: 9933822 | F163: 55974550000 | G163: 9933822 | H163: 55974550000 | I163: 0 | J163: 0 | K163: 21.81361082 | L163: =0 -> 0 | M163: 0 | N163: 18.96947812 | O163: =0 -> 0 | P163: 0 | Q163: =0 -> 0 | R163: 0 | S163: 0 | U163: 158 | V163: 0.9996364 | W163: 0.0003636 | X163: 0 | Y163: 0.007429333 | Z163: 0 | AA163: 0.5694035463 | AB163: 9940302 | AC163: 5660766 | AD163: 126628100 | AE163: 21.82776178 | AF163: 9934825 | AG163: 56576480000 | AH163: 0 | AI163: 18.98062603 | AK163: 0 | AL163: 0 | AN163: 0
A164: 162 | B164: 0.0003672 | C164: 0.0074352 | D164: 5580541 | E164: 9933488 | F164: 55773900000 | G164: 9933488 | H164: 55773900000 | I164: 0 | J164: 0 | K164: 21.80881871 | L164: =0 -> 0 | M164: 0 | N164: 18.96570123 | O164: =0 -> 0 | P164: 0 | Q164: =0 -> 0 | R164: 0 | S164: 0 | U164: 159 | V164: 0.9996355 | W164: 0.0003645 | X164: 0 | Y164: 0.0074308 | Z164: 0 | AA164: 0.5673776107 | AB164: 9940003 | AC164: 5640710 | AD164: 126153000 | AE164: 21.82307111 | AF164: 9934490 | AG164: 56375830000 | AH164: 0 | AI164: 18.97694981 | AK164: 0 | AL164: 0 | AN164: 0
A165: 163 | B165: 0.0003681 | C165: 0.007436667 | D165: 5560485 | E165: 9933154 | F165: 55573270000 | G165: 9933154 | H165: 55573270000 | I165: 0 | J165: 0 | K165: 21.80399203 | L165: =0 -> 0 | M165: 0 | N165: 18.96188875 | O165: =0 -> 0 | P165: 0 | Q165: =0 -> 0 | R165: 0 | S165: 0 | U165: 160 | V165: 0.9996346 | W165: 0.0003654 | X165: 0 | Y165: 0.007432267 | Z165: 0 | AA165: 0.5653588832 | AB165: 9939703 | AC165: 5620654 | AD165: 125678000 | AE165: 21.81836475 | AF165: 9934156 | AG165: 56175190000 | AH165: 0 | AI165: 18.97321976 | AK165: 0 | AL165: 0 | AN165: 0
A166: 164 | B166: 0.000369 | C166: 0.007438133 | D166: 5540429 | E166: 9932820 | F166: 55372620000 | G166: 9932820 | H166: 55372620000 | I166: 0 | J166: 0 | K166: 21.79914846 | L166: =0 -> 0 | M166: 0 | N166: 18.95804796 | O166: =0 -> 0 | P166: 0 | Q166: =0 -> 0 | R166: 0 | S166: 0 | U166: 161 | V166: 0.9996337 | W166: 0.0003663 | X166: 0 | Y166: 0.007433733 | Z166: 0 | AA166: 0.5633473384 | AB166: 9939403 | AC166: 5600597 | AD166: 125202900 | AE166: 21.81361082 | AF166: 9933822 | AG166: 55974550000 | AH166: 0 | AI166: 18.96947812 | AK166: 0 | AL166: 0 | AN166: 0
A167: 165 | B167: 0.0003699 | C167: 0.0074396 | D167: 5520373 | E167: 9932486 | F167: 55171980000 | G167: 9932486 | H167: 55171980000 | I167: 0 | J167: 0 | K167: 21.79425158 | L167: =0 -> 0 | M167: 0 | N167: 18.95417461 | O167: =0 -> 0 | P167: 0 | Q167: =0 -> 0 | R167: 0 | S167: 0 | U167: 162 | V167: 0.9996328 | W167: 0.0003672 | X167: 0 | Y167: 0.0074352 | Z167: 0 | AA167: 0.5613429507 | AB167: 9939104 | AC167: 5580541 | AD167: 124727800 | AE167: 21.80881871 | AF167: 9933488 | AG167: 55773900000 | AH167: 0 | AI167: 18.96570123 | AK167: 0 | AL167: 0 | AN167: 0
A168: 166 | B168: 0.0003708 | C168: 0.007441067 | D168: 5500317 | E168: 9932151 | F168: 54971340000 | G168: 9932151 | H168: 54971340000 | I168: 0 | J168: 0 | K168: 21.78931898 | L168: =0 -> 0 | M168: 0 | N168: 18.9502624 | O168: =0 -> 0 | P168: 0 | Q168: =0 -> 0 | R168: 0 | S168: 0 | U168: 163 | V168: 0.9996319 | W168: 0.0003681 | X168: 0 | Y168: 0.007436667 | Z168: 0 | AA168: 0.5593456946 | AB168: 9938804 | AC168: 5560485 | AD168: 124252700 | AE168: 21.80399203 | AF168: 9933154 | AG168: 55573270000 | AH168: 0 | AI168: 18.96188875 | AK168: 0 | AL168: 0 | AN168: 0
A169: 167 | B169: 0.0003717 | C169: 0.007442534 | D169: 5480260 | E169: 9931817 | F169: 54770700000 | G169: 9931817 | H169: 54770700000 | I169: 0 | J169: 0 | K169: 21.78435436 | L169: =0 -> 0 | M169: 0 | N169: 18.94632266 | O169: =0 -> 0 | P169: 0 | Q169: =0 -> 0 | R169: 0 | S169: 0 | U169: 164 | V169: 0.999631 | W169: 0.000369 | X169: 0 | Y169: 0.007438133 | Z169: 0 | AA169: 0.5573555447 | AB169: 9938504 | AC169: 5540429 | AD169: 123777700 | AE169: 21.79914846 | AF169: 9932820 | AG169: 55372620000 | AH169: 0 | AI169: 18.95804796 | AK169: 0 | AL169: 0 | AN169: 0
A170: 168 | B170: 0.0003726 | C170: 0.007444 | D170: 5460204 | E170: 9931483 | F170: 54570050000 | G170: 9931483 | H170: 54570050000 | I170: 0 | J170: 0 | K170: 21.77936749 | L170: =0 -> 0 | M170: 0 | N170: 18.94234911 | O170: =0 -> 0 | P170: 0 | Q170: =0 -> 0 | R170: 0 | S170: 0 | U170: 165 | V170: 0.9996301 | W170: 0.0003699 | X170: 0 | Y170: 0.0074396 | Z170: 0 | AA170: 0.5553724758 | AB170: 9938204 | AC170: 5520373 | AD170: 123302600 | AE170: 21.79425158 | AF170: 9932486 | AG170: 55171980000 | AH170: 0 | AI170: 18.95417461 | AK170: 0 | AL170: 0 | AN170: 0
A171: 169 | B171: 0.000373425 | C171: 0.007445534 | D171: 5440990 | E171: 9931140 | F171: 54377840000 | G171: 9931140 | H171: 54377840000 | I171: 3.5e-06 | J171: 0 | K171: 21.77456622 | L171: =0 -> 0 | M171: 0 | N171: 18.93856189 | O171: =0 -> 0 | P171: 0 | Q171: =0 -> 0 | R171: 0 | S171: 3.486970316e-06 | U171: 166 | V171: 0.9996292 | W171: 0.0003708 | X171: 0 | Y171: 0.007441067 | Z171: 0 | AA171: 0.5533964626 | AB171: 9937904 | AC171: 5500317 | AD171: 122827500 | AE171: 21.78931898 | AF171: 9932151 | AG171: 54971340000 | AH171: 0 | AI171: 18.9502624 | AK171: 0 | AL171: 0 | AN171: 0
A172: 170 | B172: 0.00037425 | C172: 0.007447067 | D172: 5421776 | E172: 9930797 | F172: 54185630000 | G172: 9930797 | H172: 54185630000 | I172: 7e-06 | J172: 0 | K172: 21.76971248 | L172: =0 -> 0 | M172: 0 | N172: 18.93474541 | O172: =0 -> 0 | P172: 0 | Q172: =0 -> 0 | R172: 0 | S172: 6.973935265e-06 | U172: 167 | V172: 0.9996283 | W172: 0.0003717 | X172: 0 | Y172: 0.007442534 | Z172: 0 | AA172: 0.55142748 | AB172: 9937605 | AC172: 5480260 | AD172: 122352400 | AE172: 21.78435436 | AF172: 9931817 | AG172: 54770700000 | AH172: 0 | AI172: 18.94632266 | AK172: 0 | AL172: 0 | AN172: 0
A173: 171 | B173: 0.000375075 | C173: 0.0074486 | D173: 5402562 | E173: 9930454 | F173: 53993420000 | G173: 9930454 | H173: 53993420000 | I173: 1.05e-05 | J173: 0 | K173: 21.76484273 | L173: =0 -> 0 | M173: 0 | N173: 18.93090146 | O173: =0 -> 0 | P173: 0 | Q173: =0 -> 0 | R173: 0 | S173: 1.046089485e-05 | U173: 168 | V173: 0.9996274 | W173: 0.0003726 | X173: 0 | Y173: 0.007444 | Z173: 0 | AA173: 0.5494655031 | AB173: 9937305 | AC173: 5460204 | AD173: 121877400 | AE173: 21.77936749 | AF173: 9931483 | AG173: 54570050000 | AH173: 0 | AI173: 18.94234911 | AK173: 0 | AL173: 0 | AN173: 0
A174: 172 | B174: 0.0003759 | C174: 0.007450134 | D174: 5383348 | E174: 9930111 | F174: 53801210000 | G174: 9930111 | H174: 53801210000 | I174: 1.4e-05 | J174: 0 | K174: 21.75993821 | L174: =0 -> 0 | M174: 0 | N174: 18.92701955 | O174: =0 -> 0 | P174: 0 | Q174: =0 -> 0 | R174: 0 | S174: 1.394784906e-05 | U174: 169 | V174: 0.9996266 | W174: 0.000373425 | X174: 3.5e-06 | Y174: 0.007445534 | Z174: 0 | AA174: 0.5475105069 | AB174: 9936996 | AC174: 5440990 | AD174: 121422400 | AE174: 21.77456622 | AF174: 9931140 | AG174: 54377840000 | AH174: 3.486970316e-06 | AI174: 18.93856189 | AK174: 0 | AL174: 0 | AN174: 0
A175: 173 | B175: 0.000376725 | C175: 0.007451667 | D175: 5364134 | E175: 9929768 | F175: 53609000000 | G175: 9929768 | H175: 53609000000 | I175: 1.75e-05 | J175: 0 | K175: 21.75499855 | L175: =0 -> 0 | M175: 0 | N175: 18.92310722 | O175: =0 -> 0 | P175: 0 | Q175: =0 -> 0 | R175: 0 | S175: 1.743479791e-05 | U175: 170 | V175: 0.9996257 | W175: 0.00037425 | X175: 7e-06 | Y175: 0.007447067 | Z175: 0 | AA175: 0.5455624666 | AB175: 9936688 | AC175: 5421776 | AD175: 120967300 | AE175: 21.76971248 | AF175: 9930797 | AG175: 54185630000 | AH175: 6.973935265e-06 | AI175: 18.93474541 | AK175: 0 | AL175: 0 | AN175: 0
A176: 174 | B176: 0.00037755 | C176: 0.0074532 | D176: 5344919 | E176: 9929425 | F176: 53416790000 | G176: 9929425 | H176: 53416790000 | I176: 2.1e-05 | J176: 0 | K176: 21.75002756 | L176: =0 -> 0 | M176: 0 | N176: 18.91916018 | O176: =0 -> 0 | P176: 0 | Q176: =0 -> 0 | R176: 0 | S176: 2.09217414e-05 | U176: 171 | V176: 0.9996249 | W176: 0.000375075 | X176: 1.05e-05 | Y176: 0.0074486 | Z176: 0 | AA176: 0.5436213573 | AB176: 9936379 | AC176: 5402562 | AD176: 120512300 | AE176: 21.76484273 | AF176: 9930454 | AG176: 53993420000 | AH176: 1.046089485e-05 | AI176: 18.93090146 | AK176: 0 | AL176: 0 | AN176: 0
A177: 175 | B177: 0.000378375 | C177: 0.007454733 | D177: 5325705 | E177: 9929082 | F177: 53224570000 | G177: 9929082 | H177: 53224570000 | I177: 2.45e-05 | J177: 0 | K177: 21.74499773 | L177: =0 -> 0 | M177: 0 | N177: 18.91518608 | O177: =0 -> 0 | P177: 0 | Q177: =0 -> 0 | R177: 0 | S177: 2.440867952e-05 | U177: 172 | V177: 0.9996241 | W177: 0.0003759 | X177: 1.4e-05 | Y177: 0.007450134 | Z177: 0 | AA177: 0.5416871546 | AB177: 9936071 | AC177: 5383348 | AD177: 120057300 | AE177: 21.75993821 | AF177: 9930111 | AG177: 53801210000 | AH177: 1.394784906e-05 | AI177: 18.92701955 | AK177: 0 | AL177: 0 | AN177: 0
A178: 176 | B178: 0.0003792 | C178: 0.007456267 | D178: 5306491 | E178: 9928739 | F178: 53032360000 | G178: 9928739 | H178: 53032360000 | I178: 2.8e-05 | J178: 0 | K178: 21.73995032 | L178: =0 -> 0 | M178: 0 | N178: 18.9111702 | O178: =0 -> 0 | P178: 0 | Q178: =0 -> 0 | R178: 0 | S178: 2.789561226e-05 | U178: 173 | V178: 0.9996233 | W178: 0.000376725 | X178: 1.75e-05 | Y178: 0.007451667 | Z178: 0 | AA178: 0.5397598337 | AB178: 9935762 | AC178: 5364134 | AD178: 119602300 | AE178: 21.75499855 | AF178: 9929768 | AG178: 53609000000 | AH178: 1.743479791e-05 | AI178: 18.92310722 | AK178: 0 | AL178: 0 | AN178: 0
A179: 177 | B179: 0.000380025 | C179: 0.0074578 | D179: 5287277 | E179: 9928396 | F179: 52840150000 | G179: 9928396 | H179: 52840150000 | I179: 3.15e-05 | J179: 0 | K179: 21.73486623 | L179: =0 -> 0 | M179: 0 | N179: 18.90712643 | O179: =0 -> 0 | P179: 0 | Q179: =0 -> 0 | R179: 0 | S179: 3.138253965e-05 | U179: 174 | V179: 0.9996225 | W179: 0.00037755 | X179: 2.1e-05 | Y179: 0.0074532 | Z179: 0 | AA179: 0.5378393702 | AB179: 9935454 | AC179: 5344919 | AD179: 119147300 | AE179: 21.75002756 | AF179: 9929425 | AG179: 53416790000 | AH179: 2.09217414e-05 | AI179: 18.91916018 | AK179: 0 | AL179: 0 | AN179: 0
A180: 178 | B180: 0.00038085 | C180: 0.007459333 | D180: 5268063 | E180: 9928053 | F180: 52647940000 | G180: 9928053 | H180: 52647940000 | I180: 3.5e-05 | J180: 0 | K180: 21.72974505 | L180: =0 -> 0 | M180: 0 | N180: 18.90304823 | O180: =0 -> 0 | P180: 0 | Q180: =0 -> 0 | R180: 0 | S180: 3.486946167e-05 | U180: 175 | V180: 0.9996216 | W180: 0.000378375 | X180: 2.45e-05 | Y180: 0.007454733 | Z180: 0 | AA180: 0.5359257398 | AB180: 9935145 | AC180: 5325705 | AD180: 118692200 | AE180: 21.74499773 | AF180: 9929082 | AG180: 53224570000 | AH180: 2.440867952e-05 | AI180: 18.91518608 | AK180: 0 | AL180: 0 | AN180: 0
A181: 179 | B181: 0.000381675 | C181: 0.007460867 | D181: 5248849 | E181: 9927710 | F181: 52455730000 | G181: 9927710 | H181: 52455730000 | I181: 3.85e-05 | J181: 0 | K181: 21.72458637 | L181: =0 -> 0 | M181: 0 | N181: 18.89893106 | O181: =0 -> 0 | P181: 0 | Q181: =0 -> 0 | R181: 0 | S181: 3.835637831e-05 | U181: 176 | V181: 0.9996208 | W181: 0.0003792 | X181: 2.8e-05 | Y181: 0.007456267 | Z181: 0 | AA181: 0.534018918 | AB181: 9934836 | AC181: 5306491 | AD181: 118237200 | AE181: 21.73995032 | AF181: 9928739 | AG181: 53032360000 | AH181: 2.789561226e-05 | AI181: 18.9111702 | AK181: 0 | AL181: 0 | AN181: 0
A182: 180 | B182: 0.0003825 | C182: 0.0074624 | D182: 5229635 | E182: 9927367 | F182: 52263520000 | G182: 9927367 | H182: 52263520000 | I182: 4.2e-05 | J182: 0 | K182: 21.71938979 | L182: =0 -> 0 | M182: 0 | N182: 18.89478264 | O182: =0 -> 0 | P182: 0 | Q182: =0 -> 0 | R182: 0 | S182: 4.18432896e-05 | U182: 177 | V182: 0.99962 | W182: 0.000380025 | X182: 3.15e-05 | Y182: 0.0074578 | Z182: 0 | AA182: 0.5321188807 | AB182: 9934528 | AC182: 5287277 | AD182: 117782200 | AE182: 21.73486623 | AF182: 9928396 | AG182: 52840150000 | AH182: 3.138253965e-05 | AI182: 18.90712643 | AK182: 0 | AL182: 0 | AN182: 0
A183: 181 | B183: 0.0003834 | C183: 0.007464067 | D183: 5211228 | E183: 9927016 | F183: 52079390000 | G183: 9927016 | H183: 52079390000 | I183: 4.3e-05 | J183: 2.690310833e-05 | K183: 21.71439275 | L183: =0 -> 0 | M183: 0 | N183: 18.89083052 | O183: =0 -> 0 | P183: 0 | Q183: =0 -> 0 | R183: 0 | S183: 4.283952256e-05 | U183: 178 | V183: 0.9996191 | W183: 0.00038085 | X183: 3.5e-05 | Y183: 0.007459333 | Z183: 0 | AA183: 0.5302256037 | AB183: 9934219 | AC183: 5268063 | AD183: 117327200 | AE183: 21.72974505 | AF183: 9928053 | AG183: 52647940000 | AH183: 3.486946167e-05 | AI183: 18.90304823 | AK183: 0 | AL183: 0 | AN183: 0
A184: 182 | B184: 0.0003843 | C184: 0.007465733 | D184: 5192821 | E184: 9926665 | F184: 51895260000 | G184: 9926665 | H184: 51895260000 | I184: 4.4e-05 | J184: 5.380621667e-05 | K184: 21.70934102 | L184: =0 -> 0 | M184: 0 | N184: 18.88685012 | O184: =0 -> 0 | P184: 0 | Q184: =0 -> 0 | R184: 0 | S184: 4.383575387e-05 | U184: 179 | V184: 0.9996184 | W184: 0.000381675 | X184: 3.85e-05 | Y184: 0.007460867 | Z184: 0 | AA184: 0.528339063 | AB184: 9933911 | AC184: 5248849 | AD184: 116872200 | AE184: 21.72458637 | AF184: 9927710 | AG184: 52455730000 | AH184: 3.835637831e-05 | AI184: 18.89893106 | AK184: 0 | AL184: 0 | AN184: 0
A185: 183 | B185: 0.0003852 | C185: 0.0074674 | D185: 5174414 | E185: 9926314 | F185: 51711140000 | G185: 9926314 | H185: 51711140000 | I185: 4.5e-05 | J185: 8.0709325e-05 | K185: 21.70427268 | L185: =0 -> 0 | M185: 0 | N185: 18.88282832 | O185: =0 -> 0 | P185: 0 | Q185: =0 -> 0 | R185: 0 | S185: 4.48319835e-05 | U185: 180 | V185: 0.9996175 | W185: 0.0003825 | X185: 4.2e-05 | Y185: 0.0074624 | Z185: 0 | AA185: 0.5264592346 | AB185: 9933602 | AC185: 5229635 | AD185: 116417200 | AE185: 21.71938979 | AF185: 9927367 | AG185: 52263520000 | AH185: 4.18432896e-05 | AI185: 18.89478264 | AK185: 0 | AL185: 0 | AN185: 0
A186: 184 | B186: 0.0003861 | C186: 0.007469066 | D186: 5156007 | E186: 9925963 | F186: 51527010000 | G186: 9925963 | H186: 51527010000 | I186: 4.6e-05 | J186: 0.0001076124333 | K186: 21.69916815 | L186: =0 -> 0 | M186: 0 | N186: 18.87877731 | O186: =0 -> 0 | P186: 0 | Q186: =0 -> 0 | R186: 0 | S186: 4.582821148e-05 | U186: 181 | V186: 0.9996166 | W186: 0.0003834 | X186: 4.3e-05 | Y186: 0.007464067 | Z186: 0 | AA186: 0.5245860946 | AB186: 9933285 | AC186: 5211228 | AD186: 115981400 | AE186: 21.71439275 | AF186: 9927016 | AG186: 52079390000 | AH186: 4.283952256e-05 | AI186: 18.89083052 | AK186: 0 | AL186: 0 | AN186: 2.690310833e-05
A187: 185 | B187: 0.000387 | C187: 0.007470733 | D187: 5137600 | E187: 9925612 | F187: 51342880000 | G187: 9925612 | H187: 51342880000 | I187: 4.7e-05 | J187: 0.0001345155417 | K187: 21.69402704 | L187: =0 -> 0 | M187: 0 | N187: 18.87469685 | O187: =0 -> 0 | P187: 0 | Q187: =0 -> 0 | R187: 0 | S187: 4.682443777e-05 | U187: 182 | V187: 0.9996157 | W187: 0.0003843 | X187: 4.4e-05 | Y187: 0.007465733 | Z187: 0 | AA187: 0.5227196192 | AB187: 9932969 | AC187: 5192821 | AD187: 115545500 | AE187: 21.70934102 | AF187: 9926665 | AG187: 51895260000 | AH187: 4.383575387e-05 | AI187: 18.88685012 | AK187: 0 | AL187: 0 | AN187: 5.380621667e-05
A188: 186 | B188: 0.0003879 | C188: 0.0074724 | D188: 5119193 | E188: 9925261 | F188: 51158750000 | G188: 9925261 | H188: 51158750000 | I188: 4.8e-05 | J188: 0.00016141865 | K188: 21.68884896 | L188: =0 -> 0 | M188: 0 | N188: 18.87057786 | O188: =0 -> 0 | P188: 0 | Q188: =0 -> 0 | R188: 0 | S188: 4.78206624e-05 | U188: 183 | V188: 0.9996148 | W188: 0.0003852 | X188: 4.5e-05 | Y188: 0.0074674 | Z188: 0 | AA188: 0.5208597847 | AB188: 9932652 | AC188: 5174414 | AD188: 115109700 | AE188: 21.70427268 | AF188: 9926314 | AG188: 51711140000 | AH188: 4.48319835e-05 | AI188: 18.88282832 | AK188: 0 | AL188: 0 | AN188: 8.0709325e-05
A189: 187 | B189: 0.0003888 | C189: 0.007474067 | D189: 5100786 | E189: 9924910 | F189: 50974620000 | G189: 9924910 | H189: 50974620000 | I189: 4.9e-05 | J189: 0.0001883217583 | K189: 21.68363351 | L189: =0 -> 0 | M189: 0 | N189: 18.86642423 | O189: =0 -> 0 | P189: 0 | Q189: =0 -> 0 | R189: 0 | S189: 4.881688536e-05 | U189: 184 | V189: 0.9996139 | W189: 0.0003861 | X189: 4.6e-05 | Y189: 0.007469066 | Z189: 0 | AA189: 0.5190065676 | AB189: 9932336 | AC189: 5156007 | AD189: 114673900 | AE189: 21.69916815 | AF189: 9925963 | AG189: 51527010000 | AH189: 4.582821148e-05 | AI189: 18.87877731 | AK189: 0 | AL189: 0 | AN189: 0.0001076124333
A190: 188 | B190: 0.0003897 | C190: 0.007475733 | D190: 5082379 | E190: 9924559 | F190: 50790490000 | G190: 9924559 | H190: 50790490000 | I190: 5e-05 | J190: 0.0002152248667 | K190: 21.67838028 | L190: =0 -> 0 | M190: 0 | N190: 18.8622399 | O190: =0 -> 0 | P190: 0 | Q190: =0 -> 0 | R190: 0 | S190: 4.981310667e-05 | U190: 185 | V190: 0.999613 | W190: 0.000387 | X190: 4.7e-05 | Y190: 0.007470733 | Z190: 0 | AA190: 0.5171599441 | AB190: 9932019 | AC190: 5137600 | AD190: 114238100 | AE190: 21.69402704 | AF190: 9925612 | AG190: 51342880000 | AH190: 4.682443777e-05 | AI190: 18.87469685 | AK190: 0 | AL190: 0 | AN190: 0.0001345155417
A191: 189 | B191: 0.0003906 | C191: 0.0074774 | D191: 5063972 | E191: 9924208 | F191: 50606370000 | G191: 9924208 | H191: 50606370000 | I191: 5.1e-05 | J191: 0.000242127975 | K191: 21.67308887 | L191: =0 -> 0 | M191: 0 | N191: 18.85801568 | O191: =0 -> 0 | P191: 0 | Q191: =0 -> 0 | R191: 0 | S191: 5.08093263e-05 | U191: 186 | V191: 0.9996121 | W191: 0.0003879 | X191: 4.8e-05 | Y191: 0.0074724 | Z191: 0 | AA191: 0.515319891 | AB191: 9931702 | AC191: 5119193 | AD191: 113802300 | AE191: 21.68884896 | AF191: 9925261 | AG191: 51158750000 | AH191: 4.78206624e-05 | AI191: 18.87057786 | AK191: 0 | AL191: 0 | AN191: 0.00016141865
A192: 190 | B192: 0.0003915 | C192: 0.007479066 | D192: 5045566 | E192: 9923857 | F192: 50422240000 | G192: 9923857 | H192: 50422240000 | I192: 5.2e-05 | J192: 0.0002690310833 | K192: 21.66775444 | L192: =0 -> 0 | M192: 0 | N192: 18.85375547 | O192: =0 -> 0 | P192: 0 | Q192: =0 -> 0 | R192: 0 | S192: 5.180554428e-05 | U192: 187 | V192: 0.9996112 | W192: 0.0003888 | X192: 4.9e-05 | Y192: 0.007474067 | Z192: 0 | AA192: 0.5134863848 | AB192: 9931386 | AC192: 5100786 | AD192: 113366500 | AE192: 21.68363351 | AF192: 9924910 | AG192: 50974620000 | AH192: 4.881688536e-05 | AI192: 18.86642423 | AK192: 0 | AL192: 0 | AN192: 0.0001883217583
A193: 191 | B193: 0.0003924 | C193: 0.007480733 | D193: 5027159 | E193: 9923506 | F193: 50238110000 | G193: 9923506 | H193: 50238110000 | I193: 5.3e-05 | J193: 0.0002959341917 | K193: 21.66238536 | L193: =0 -> 0 | M193: 0 | N193: 18.84945896 | O193: =0 -> 0 | P193: 0 | Q193: =0 -> 0 | R193: 0 | S193: 5.280176058e-05 | U193: 188 | V193: 0.9996103 | W193: 0.0003897 | X193: 5e-05 | Y193: 0.007475733 | Z193: 0 | AA193: 0.5116594021 | AB193: 9931069 | AC193: 5082379 | AD193: 112930700 | AE193: 21.67838028 | AF193: 9924559 | AG193: 50790490000 | AH193: 4.981310667e-05 | AI193: 18.8622399 | AK193: 0 | AL193: 0 | AN193: 0.0002152248667
A194: 192 | B194: =W197 -> 0.0003933 | C194: =Y197 -> 0.0074824 | D194: =AC197 -> 5008752 | E194: =AF197 -> 9923155 | F194: =AG197 -> 50053980000 | G194: =E194 -> 9923155 | H194: =F194 -> 50053980000 | I194: =X197 -> 5.4e-05 | J194: =AN197 -> 0.0003228373 | K194: =AE197 -> 21.65697683 | L194: =0 -> 0 | M194: =AL197 -> 0 | N194: =AI197 -> 18.8451254 | O194: =0 -> 0 | P194: =AK197 -> 0 | Q194: =0 -> 0 | R194: =Z197 -> 0 | S194: =AH197 -> 5.37979752e-05 | U194: 189 | V194: 0.9996094 | W194: 0.0003906 | X194: 5.1e-05 | Y194: 0.0074774 | Z194: 0 | AA194: 0.5098389199 | AB194: 9930753 | AC194: 5063972 | AD194: 112494900 | AE194: 21.67308887 | AF194: 9924208 | AG194: 50606370000 | AH194: 5.08093263e-05 | AI194: 18.85801568 | AK194: 0 | AL194: 0 | AN194: 0.000242127975
A195: 193 | B195: 0.0003942 | C195: 0.007484199 | D195: 4991118 | E195: 9922785 | F195: 49877550000 | G195: 9922785 | H195: 49877550000 | I195: 5.5e-05 | J195: 0.00039223875 | K195: 21.65177777 | L195: =0 -> 0 | M195: 0 | N195: 18.84100493 | O195: =0 -> 0 | P195: 0 | Q195: =0 -> 0 | R195: 0 | S195: 5.479418453e-05 | U195: 190 | V195: 0.9996085 | W195: 0.0003915 | X195: 5.2e-05 | Y195: 0.007479066 | Z195: 0 | AA195: 0.5080249149 | AB195: 9930436 | AC195: 5045566 | AD195: 112059100 | AE195: 21.66775444 | AF195: 9923857 | AG195: 50422240000 | AH195: 5.180554428e-05 | AI195: 18.85375547 | AK195: 0 | AL195: 0 | AN195: 0.0002690310833
A196: 194 | B196: 0.0003951 | C196: 0.007486 | D196: 4973484 | E196: 9922416 | F196: 49701110000 | G196: 9922416 | H196: 49701110000 | I196: 5.6e-05 | J196: 0.0004616402 | K196: 21.64654184 | L196: =0 -> 0 | M196: 0 | N196: 18.83684616 | O196: =0 -> 0 | P196: 0 | Q196: =0 -> 0 | R196: 0 | S196: 5.5790392e-05 | U196: 191 | V196: 0.9996076 | W196: 0.0003924 | X196: 5.3e-05 | Y196: 0.007480733 | Z196: 0 | AA196: 0.5062173642 | AB196: 9930120 | AC196: 5027159 | AD196: 111623300 | AE196: 21.66238536 | AF196: 9923506 | AG196: 50238110000 | AH196: 5.280176058e-05 | AI196: 18.84945896 | AK196: 0 | AL196: 0 | AN196: 0.0002959341917
A197: 195 | B197: 0.000396 | C197: 0.0074878 | D197: 4955850 | E197: 9922046 | F197: 49524680000 | G197: 9922046 | H197: 49524680000 | I197: 5.7e-05 | J197: 0.00053104165 | K197: 21.64126865 | L197: =0 -> 0 | M197: 0 | N197: 18.83265296 | O197: =0 -> 0 | P197: 0 | Q197: =0 -> 0 | R197: 0 | S197: 5.67865977e-05 | U197: 192 | V197: 0.9996067 | W197: 0.0003933 | X197: 5.4e-05 | Y197: 0.0074824 | Z197: 0 | AA197: 0.5044162447 | AB197: 9929803 | AC197: 5008752 | AD197: 111187500 | AE197: 21.65697683 | AF197: 9923155 | AG197: 50053980000 | AH197: 5.37979752e-05 | AI197: 18.8451254 | AK197: 0 | AL197: 0 | AN197: 0.0003228373
A198: 196 | B198: 0.0003969 | C198: 0.0074896 | D198: 4938217 | E198: 9921676 | F198: 49348240000 | G198: 9921676 | H198: 49348240000 | I198: 5.8e-05 | J198: 0.0006004431 | K198: 21.63595331 | L198: =0 -> 0 | M198: 0 | N198: 18.82842493 | O198: =0 -> 0 | P198: 0 | Q198: =0 -> 0 | R198: 0 | S198: 5.77828016e-05 | U198: 193 | V198: 0.9996058 | W198: 0.0003942 | X198: 5.5e-05 | Y198: 0.007484199 | Z198: 0 | AA198: 0.5026215335 | AB198: 9929478 | AC198: 4991118 | AD198: 110770100 | AE198: 21.65177777 | AF198: 9922785 | AG198: 49877550000 | AH198: 5.479418453e-05 | AI198: 18.84100493 | AK198: 0 | AL198: 0 | AN198: 0.00039223875
A199: 197 | B199: 0.0003978 | C199: 0.0074914 | D199: 4920583 | E199: 9921306 | F199: 49171810000 | G199: 9921306 | H199: 49171810000 | I199: 5.9e-05 | J199: 0.00066984455 | K199: 21.63060438 | L199: =0 -> 0 | M199: 0 | N199: 18.82416604 | O199: =0 -> 0 | P199: 0 | Q199: =0 -> 0 | R199: 0 | S199: 5.87790037e-05 | U199: 194 | V199: 0.9996049 | W199: 0.0003951 | X199: 5.6e-05 | Y199: 0.007486 | Z199: 0 | AA199: 0.500833208 | AB199: 9929152 | AC199: 4973484 | AD199: 110352700 | AE199: 21.64654184 | AF199: 9922416 | AG199: 49701110000 | AH199: 5.5790392e-05 | AI199: 18.83684616 | AK199: 0 | AL199: 0 | AN199: 0.0004616402
A200: 198 | B200: 0.0003987 | C200: 0.0074932 | D200: 4902949 | E200: 9920936 | F200: 48995380000 | G200: 9920936 | H200: 48995380000 | I200: 6e-05 | J200: 0.000739246 | K200: 21.62521698 | L200: =0 -> 0 | M200: 0 | N200: 18.81986702 | O200: =0 -> 0 | P200: 0 | Q200: =0 -> 0 | R200: 0 | S200: 5.9775204e-05 | U200: 195 | V200: 0.999604 | W200: 0.000396 | X200: 5.7e-05 | Y200: 0.0074878 | Z200: 0 | AA200: 0.4990512453 | AB200: 9928827 | AC200: 4955850 | AD200: 109935300 | AE200: 21.64126865 | AF200: 9922046 | AG200: 49524680000 | AH200: 5.67865977e-05 | AI200: 18.83265296 | AK200: 0 | AL200: 0 | AN200: 0.00053104165
... 1185 more rows

Sheet Feminino (hidden)
A1: Idade | B1: qx | C1: qxi | D1: Dx | E1: lxaa | F1: Dxaa | G1: lxpi | H1: Dxaapi | I1: ix | J1: vx | K1: ax | L1: cx | M1: Peculio Ax | N1: aix | O1: cix | P1: Peculio Aix | Q1: Hx masculino | R1: Wx | S1: pxai | V1: 2 | W1: =V1+1 -> 3 | X1: =W1+1 -> 4 | Y1: 5 | Z1: 6 | AA1: 7 | AB1: 8 | AC1: 9 | AD1: 10 | AE1: 11 | AF1: 12 | AG1: 13 | AH1: 14 | AI1: 15 | AJ1: 16 | AK1: 17 | AL1: 18 | AM1: 19 | AN1: 20
A2: 0 | B2: =W5 -> 0.0014535 | C2: =Y5 -> 0.007289601 | D2: =AC5 -> 10000000 | E2: =AF5 -> 10000000 | F2: =AG5 -> 100000000000 | G2: =E2 -> 10000000 | H2: =F2 -> 100000000000 | I2: =X5 -> 0 | J2: =AN5 -> 0 | K2: =AE5 -> 22.56878333 | L2: =0 -> 0 | M2: =AL5 -> 0 | N2: =AI5 -> 19.42903333 | O2: =0 -> 0 | P2: =AK5 -> 0 | Q2: =0 -> 0 | R2: =Z5 -> 0 | S2: =AH5 -> 0 | U2: IDADE (em meses) | V2: AT-2000 (suavizada em 10%) D10% | X2: LIGHT MÉDIA D40% | Y2: MI - 85 Female D20% | Z2: Rotatividade
A3: 1 | B3: 0.001383375 | C3: 0.007290134 | D3: 9963948 | E3: 9998754 | F3: 99639140000 | G3: 9998754 | H3: 99639140000 | I3: 0 | J3: 0 | K3: 22.56876105 | L3: =0 -> 0 | M3: 0 | N3: 19.42699977 | O3: =0 -> 0 | P3: 0 | Q3: =0 -> 0 | R3: 0 | S3: 0
A4: 2 | B4: 0.00131325 | C4: 0.007290667 | D4: 9927895 | E4: 9997508 | F4: 99278280000 | G4: 9997508 | H4: 99278280000 | I4: 0 | J4: 0 | K4: 22.568751 | L4: =0 -> 0 | M4: 0 | N4: 19.42493943 | O4: =0 -> 0 | P4: 0 | Q4: =0 -> 0 | R4: 0 | S4: 0 | V4: px | W4: qx | X4: ix | Y4: qxi | Z4: wx | AA4: vx | AB4: lx | AC4: Dx | AD4: Nx | AE4: ax(12) | AF4: lxaa | AG4: Dxaa | AH4: pxai | AI4: axi(12) | AK4: AxI | AL4: Ax | AN4: vx (morbidez)
A5: 3 | B5: 0.001243125 | C5: 0.007291201 | D5: 9891843 | E5: 9996262 | F5: 98917420000 | G5: 9996262 | H5: 98917420000 | I5: 0 | J5: 0 | K5: 22.56873854 | L5: =0 -> 0 | M5: 0 | N5: 19.42287425 | O5: =0 -> 0 | P5: 0 | Q5: =0 -> 0 | R5: 0 | S5: 0 | U5: 0 | V5: 0.9985465 | W5: 0.0014535 | X5: 0 | Y5: 0.007289601 | Z5: 0 | AA5: 1 | AB5: 10000000 | AC5: 10000000 | AD5: 231104500 | AE5: 22.56878333 | AF5: 10000000 | AG5: 100000000000 | AH5: 0 | AI5: 19.42903333 | AK5: 0 | AL5: 0 | AN5: 0
A6: 4 | B6: 0.001173 | C6: 0.007291734 | D6: 9855790 | E6: 9995015 | F6: 98556560000 | G6: 9995015 | H6: 98556560000 | I6: 0 | J6: 0 | K6: 22.56871819 | L6: =0 -> 0 | M6: 0 | N6: 19.42078994 | O6: =0 -> 0 | P6: 0 | Q6: =0 -> 0 | R6: 0 | S6: 0 | U6: 1 | V6: 0.9986166 | W6: 0.001383375 | X6: 0 | Y6: 0.007290134 | Z6: 0 | AA6: 0.9964420037 | AB6: 9998754 | AC6: 9963948 | AD6: 230271100 | AE6: 22.56876105 | AF6: 9998754 | AG6: 99639140000 | AH6: 0 | AI6: 19.42699977 | AK6: 0 | AL6: 0 | AN6: 0
A7: 5 | B7: 0.001102875 | C7: 0.007292267 | D7: 9819738 | E7: 9993769 | F7: 98195700000 | G7: 9993769 | H7: 98195700000 | I7: 0 | J7: 0 | K7: 22.56870552 | L7: =0 -> 0 | M7: 0 | N7: 19.41867811 | O7: =0 -> 0 | P7: 0 | Q7: =0 -> 0 | R7: 0 | S7: 0 | U7: 2 | V7: 0.9986867 | W7: 0.00131325 | X7: 0 | Y7: 0.007290667 | Z7: 0 | AA7: 0.9928966668 | AB7: 9997508 | AC7: 9927895 | AD7: 229437800 | AE7: 22.568751 | AF7: 9997508 | AG7: 99278280000 | AH7: 0 | AI7: 19.42493943 | AK7: 0 | AL7: 0 | AN7: 0
A8: 6 | B8: 0.00103275 | C8: 0.0072928 | D8: 9783686 | E8: 9992523 | F8: 97834840000 | G8: 9992523 | H8: 97834840000 | I8: 0 | J8: 0 | K8: 22.56869276 | L8: =0 -> 0 | M8: 0 | N8: 19.41656094 | O8: =0 -> 0 | P8: 0 | Q8: =0 -> 0 | R8: 0 | S8: 0 | U8: 3 | V8: 0.9987569 | W8: 0.001243125 | X8: 0 | Y8: 0.007291201 | Z8: 0 | AA8: 0.9893639442 | AB8: 9996262 | AC8: 9891843 | AD8: 228604500 | AE8: 22.56873854 | AF8: 9996262 | AG8: 98917420000 | AH8: 0 | AI8: 19.42287425 | AK8: 0 | AL8: 0 | AN8: 0
A9: 7 | B9: 0.000962625 | C9: 0.007293333 | D9: 9747633 | E9: 9991277 | F9: 97473990000 | G9: 9991277 | H9: 97473990000 | I9: 0 | J9: 0 | K9: 22.56867202 | L9: =0 -> 0 | M9: 0 | N9: 19.41442398 | O9: =0 -> 0 | P9: 0 | Q9: =0 -> 0 | R9: 0 | S9: 0 | U9: 4 | V9: 0.998827 | W9: 0.001173 | X9: 0 | Y9: 0.007291734 | Z9: 0 | AA9: 0.985843791 | AB9: 9995015 | AC9: 9855790 | AD9: 227771100 | AE9: 22.56871819 | AF9: 9995015 | AG9: 98556560000 | AH9: 0 | AI9: 19.42078994 | AK9: 0 | AL9: 0 | AN9: 0
A10: 8 | B10: 0.0008925 | C10: 0.007293866 | D10: 9711581 | E10: 9990031 | F10: 97113130000 | G10: 9990031 | H10: 97113130000 | I10: 0 | J10: 0 | K10: 22.56865904 | L10: =0 -> 0 | M10: 0 | N10: 19.41225869 | O10: =0 -> 0 | P10: 0 | Q10: =0 -> 0 | R10: 0 | S10: 0 | U10: 5 | V10: 0.9988971 | W10: 0.001102875 | X10: 0 | Y10: 0.007292267 | Z10: 0 | AA10: 0.9823361624 | AB10: 9993769 | AC10: 9819738 | AD10: 226937800 | AE10: 22.56870552 | AF10: 9993769 | AG10: 98195700000 | AH10: 0 | AI10: 19.41867811 | AK10: 0 | AL10: 0 | AN10: 0
A11: 9 | B11: 0.000822375 | C11: 0.0072944 | D11: 9675528 | E11: 9988784 | F11: 96752270000 | G11: 9988784 | H11: 96752270000 | I11: 0 | J11: 0 | K11: 22.56864835 | L11: =0 -> 0 | M11: 0 | N11: 19.41008548 | O11: =0 -> 0 | P11: 0 | Q11: =0 -> 0 | R11: 0 | S11: 0 | U11: 6 | V11: 0.9989672 | W11: 0.00103275 | X11: 0 | Y11: 0.0072928 | Z11: 0 | AA11: 0.978841014 | AB11: 9992523 | AC11: 9783686 | AD11: 226104500 | AE11: 22.56869276 | AF11: 9992523 | AG11: 97834840000 | AH11: 0 | AI11: 19.41656094 | AK11: 0 | AL11: 0 | AN11: 0
A12: 10 | B12: 0.00075225 | C12: 0.007294933 | D12: 9639476 | E12: 9987538 | F12: 96391410000 | G12: 9987538 | H12: 96391410000 | I12: 0 | J12: 0 | K12: 22.56862481 | L12: =0 -> 0 | M12: 0 | N12: 19.40789383 | O12: =0 -> 0 | P12: 0 | Q12: =0 -> 0 | R12: 0 | S12: 0 | U12: 7 | V12: 0.9990374 | W12: 0.000962625 | X12: 0 | Y12: 0.007293333 | Z12: 0 | AA12: 0.9753583014 | AB12: 9991277 | AC12: 9747633 | AD12: 225271100 | AE12: 22.56867202 | AF12: 9991277 | AG12: 97473990000 | AH12: 0 | AI12: 19.41442398 | AK12: 0 | AL12: 0 | AN12: 0
A13: 11 | B13: 0.000682125 | C13: 0.007295466 | D13: 9603423 | E13: 9986292 | F13: 96030550000 | G13: 9986292 | H13: 96030550000 | I13: 0 | J13: 0 | K13: 22.56861391 | L13: =0 -> 0 | M13: 0 | N13: 19.40567511 | O13: =0 -> 0 | P13: 0 | Q13: =0 -> 0 | R13: 0 | S13: 0 | U13: 8 | V13: 0.9991075 | W13: 0.0008925 | X13: 0 | Y13: 0.007293866 | Z13: 0 | AA13: 0.9718879802 | AB13: 9990031 | AC13: 9711581 | AD13: 224437800 | AE13: 22.56865904 | AF13: 9990031 | AG13: 97113130000 | AH13: 0 | AI13: 19.41225869 | AK13: 0 | AL13: 0 | AN13: 0
A14: 12 | B14: 0.000612 | C14: 0.007296 | D14: 9567371 | E14: 9985046 | F14: 95669690000 | G14: 9985046 | H14: 95669690000 | I14: 0 | J14: 0 | K14: 22.56860051 | L14: =0 -> 0 | M14: 0 | N14: 19.40344582 | O14: =0 -> 0 | P14: 0 | Q14: =0 -> 0 | R14: 0 | S14: 0 | U14: 9 | V14: 0.9991776 | W14: 0.000822375 | X14: 0 | Y14: 0.0072944 | Z14: 0 | AA14: 0.9684300064 | AB14: 9988784 | AC14: 9675528 | AD14: 223604500 | AE14: 22.56864835 | AF14: 9988784 | AG14: 96752270000 | AH14: 0 | AI14: 19.41008548 | AK14: 0 | AL14: 0 | AN14: 0
A15: 13 | B15: 0.000587475 | C15: 0.007296599 | D15: 9533521 | E15: 9984502 | F15: 95330890000 | G15: 9984502 | H15: 95330890000 | I15: 0 | J15: 0 | K15: 22.56702528 | L15: =0 -> 0 | M15: 0 | N15: 19.401317 | O15: =0 -> 0 | P15: 0 | Q15: =0 -> 0 | R15: 0 | S15: 0 | U15: 10 | V15: 0.9992477 | W15: 0.00075225 | X15: 0 | Y15: 0.007294933 | Z15: 0 | AA15: 0.964984336 | AB15: 9987538 | AC15: 9639476 | AD15: 222771100 | AE15: 22.56862481 | AF15: 9987538 | AG15: 96391410000 | AH15: 0 | AI15: 19.40789383 | AK15: 0 | AL15: 0 | AN15: 0
A16: 14 | B16: 0.00056295 | C16: 0.0072972 | D16: 9499671 | E16: 9983958 | F16: 94992080000 | G16: 9983958 | H16: 94992080000 | I16: 0 | J16: 0 | K16: 22.56543883 | L16: =0 -> 0 | M16: 0 | N16: 19.39917071 | O16: =0 -> 0 | P16: 0 | Q16: =0 -> 0 | R16: 0 | S16: 0 | U16: 11 | V16: 0.9993179 | W16: 0.000682125 | X16: 0 | Y16: 0.007295466 | Z16: 0 | AA16: 0.9615509254 | AB16: 9986292 | AC16: 9603423 | AD16: 221937800 | AE16: 22.56861391 | AF16: 9986292 | AG16: 96030550000 | AH16: 0 | AI16: 19.40567511 | AK16: 0 | AL16: 0 | AN16: 0
A17: 15 | B17: 0.000538425 | C17: 0.0072978 | D17: 9465821 | E17: 9983414 | F17: 94653280000 | G17: 9983414 | H17: 94653280000 | I17: 0 | J17: 0 | K17: 22.56384103 | L17: =0 -> 0 | M17: 0 | N17: 19.39700672 | O17: =0 -> 0 | P17: 0 | Q17: =0 -> 0 | R17: 0 | S17: 0 | U17: 12 | V17: 0.999388 | W17: 0.000612 | X17: 0 | Y17: 0.007296 | Z17: 0 | AA17: 0.9581297308 | AB17: 9985046 | AC17: 9567371 | AD17: 221104500 | AE17: 22.56860051 | AF17: 9985046 | AG17: 95669690000 | AH17: 0 | AI17: 19.40344582 | AK17: 0 | AL17: 0 | AN17: 0
A18: 16 | B18: 0.0005139 | C18: 0.0072984 | D18: 9431971 | E18: 9982870 | F18: 94314470000 | G18: 9982870 | H18: 94314470000 | I18: 0 | J18: 0 | K18: 22.56223177 | L18: =0 -> 0 | M18: 0 | N18: 19.39481413 | O18: =0 -> 0 | P18: 0 | Q18: =0 -> 0 | R18: 0 | S18: 0 | U18: 13 | V18: 0.9994125 | W18: 0.000587475 | X18: 0 | Y18: 0.007296599 | Z18: 0 | AA18: 0.9547207088 | AB18: 9984502 | AC18: 9533521 | AD18: 220307200 | AE18: 22.56702528 | AF18: 9984502 | AG18: 95330890000 | AH18: 0 | AI18: 19.401317 | AK18: 0 | AL18: 0 | AN18: 0
A19: 17 | B19: 0.000489375 | C19: 0.007298999 | D19: 9398121 | E19: 9982326 | F19: 93975670000 | G19: 9982326 | H19: 93975670000 | I19: 0 | J19: 0 | K19: 22.56062155 | L19: =0 -> 0 | M19: 0 | N19: 19.39261405 | O19: =0 -> 0 | P19: 0 | Q19: =0 -> 0 | R19: 0 | S19: 0 | U19: 14 | V19: 0.999437 | W19: 0.00056295 | X19: 0 | Y19: 0.0072972 | Z19: 0 | AA19: 0.951323816 | AB19: 9983958 | AC19: 9499671 | AD19: 219509900 | AE19: 22.56543883 | AF19: 9983958 | AG19: 94992080000 | AH19: 0 | AI19: 19.39917071 | AK19: 0 | AL19: 0 | AN19: 0
A20: 18 | B20: 0.00046485 | C20: 0.0072996 | D20: 9364272 | E20: 9981782 | F20: 93636860000 | G20: 9981782 | H20: 93636860000 | I20: 0 | J20: 0 | K20: 22.55898654 | L20: =0 -> 0 | M20: 0 | N20: 19.39039775 | O20: =0 -> 0 | P20: 0 | Q20: =0 -> 0 | R20: 0 | S20: 0 | U20: 15 | V20: 0.9994616 | W20: 0.000538425 | X20: 0 | Y20: 0.0072978 | Z20: 0 | AA20: 0.9479390095 | AB20: 9983414 | AC20: 9465821 | AD20: 218712600 | AE20: 22.56384103 | AF20: 9983414 | AG20: 94653280000 | AH20: 0 | AI20: 19.39700672 | AK20: 0 | AL20: 0 | AN20: 0
A21: 19 | B21: 0.000440325 | C21: 0.0073002 | D21: 9330422 | E21: 9981237 | F21: 93298060000 | G21: 9981237 | H21: 93298060000 | I21: 0 | J21: 0 | K21: 22.55734215 | L21: =0 -> 0 | M21: 0 | N21: 19.38816071 | O21: =0 -> 0 | P21: 0 | Q21: =0 -> 0 | R21: 0 | S21: 0 | U21: 16 | V21: 0.9994861 | W21: 0.0005139 | X21: 0 | Y21: 0.0072984 | Z21: 0 | AA21: 0.944566246 | AB21: 9982870 | AC21: 9431971 | AD21: 217915300 | AE21: 22.56223177 | AF21: 9982870 | AG21: 94314470000 | AH21: 0 | AI21: 19.39481413 | AK21: 0 | AL21: 0 | AN21: 0
A22: 20 | B22: 0.0004158 | C22: 0.0073008 | D22: 9296572 | E22: 9980693 | F22: 92959250000 | G22: 9980693 | H22: 92959250000 | I22: 0 | J22: 0 | K22: 22.55568578 | L22: =0 -> 0 | M22: 0 | N22: 19.38590485 | O22: =0 -> 0 | P22: 0 | Q22: =0 -> 0 | R22: 0 | S22: 0 | U22: 17 | V22: 0.9995106 | W22: 0.000489375 | X22: 0 | Y22: 0.007298999 | Z22: 0 | AA22: 0.9412054828 | AB22: 9982326 | AC22: 9398121 | AD22: 217118100 | AE22: 22.56062155 | AF22: 9982326 | AG22: 93975670000 | AH22: 0 | AI22: 19.39261405 | AK22: 0 | AL22: 0 | AN22: 0
A23: 21 | B23: 0.000391275 | C23: 0.007301399 | D23: 9262722 | E23: 9980149 | F23: 92620450000 | G23: 9980149 | H23: 92620450000 | I23: 0 | J23: 0 | K23: 22.5540173 | L23: =0 -> 0 | M23: 0 | N23: 19.383619 | O23: =0 -> 0 | P23: 0 | Q23: =0 -> 0 | R23: 0 | S23: 0 | U23: 18 | V23: 0.9995351 | W23: 0.00046485 | X23: 0 | Y23: 0.0072996 | Z23: 0 | AA23: 0.9378566772 | AB23: 9981782 | AC23: 9364272 | AD23: 216320800 | AE23: 22.55898654 | AF23: 9981782 | AG23: 93636860000 | AH23: 0 | AI23: 19.39039775 | AK23: 0 | AL23: 0 | AN23: 0
A24: 22 | B24: 0.00036675 | C24: 0.007302 | D24: 9228872 | E24: 9979605 | F24: 92281640000 | G24: 9979605 | H24: 92281640000 | I24: 0 | J24: 0 | K24: 22.55233659 | L24: =0 -> 0 | M24: 0 | N24: 19.3813247 | O24: =0 -> 0 | P24: 0 | Q24: =0 -> 0 | R24: 0 | S24: 0 | U24: 19 | V24: 0.9995597 | W24: 0.000440325 | X24: 0 | Y24: 0.0073002 | Z24: 0 | AA24: 0.9345197867 | AB24: 9981237 | AC24: 9330422 | AD24: 215523500 | AE24: 22.55734215 | AF24: 9981237 | AG24: 93298060000 | AH24: 0 | AI24: 19.38816071 | AK24: 0 | AL24: 0 | AN24: 0
A25: 23 | B25: 0.000342225 | C25: 0.0073026 | D25: 9195022 | E25: 9979061 | F25: 91942840000 | G25: 9979061 | H25: 91942840000 | I25: 0 | J25: 0 | K25: 22.55065437 | L25: =0 -> 0 | M25: 0 | N25: 19.37901085 | O25: =0 -> 0 | P25: 0 | Q25: =0 -> 0 | R25: 0 | S25: 0 | U25: 20 | V25: 0.9995842 | W25: 0.0004158 | X25: 0 | Y25: 0.0073008 | Z25: 0 | AA25: 0.9311947688 | AB25: 9980693 | AC25: 9296572 | AD25: 214726200 | AE25: 22.55568578 | AF25: 9980693 | AG25: 92959250000 | AH25: 0 | AI25: 19.38590485 | AK25: 0 | AL25: 0 | AN25: 0
A26: 24 | B26: 0.0003177 | C26: 0.0073032 | D26: 9161172 | E26: 9978517 | F26: 91604030000 | G26: 9978517 | H26: 91604030000 | I26: 0 | J26: 0 | K26: 22.54894881 | L26: =0 -> 0 | M26: 0 | N26: 19.37667718 | O26: =0 -> 0 | P26: 0 | Q26: =0 -> 0 | R26: 0 | S26: 0 | U26: 21 | V26: 0.9996087 | W26: 0.000391275 | X26: 0 | Y26: 0.007301399 | Z26: 0 | AA26: 0.9278815813 | AB26: 9980149 | AC26: 9262722 | AD26: 213928900 | AE26: 22.5540173 | AF26: 9980149 | AG26: 92620450000 | AH26: 0 | AI26: 19.383619 | AK26: 0 | AL26: 0 | AN26: 0
A27: 25 | B27: 0.0003108 | C27: 0.0073038 | D27: 9128975 | E27: 9978218 | F27: 91281780000 | G27: 9978218 | H27: 91281780000 | I27: 0 | J27: 0 | K27: 22.5467633 | L27: =0 -> 0 | M27: 0 | N27: 19.3744476 | O27: =0 -> 0 | P27: 0 | Q27: =0 -> 0 | R27: 0 | S27: 0 | U27: 22 | V27: 0.9996333 | W27: 0.00036675 | X27: 0 | Y27: 0.007302 | Z27: 0 | AA27: 0.9245801821 | AB27: 9979605 | AC27: 9228872 | AD27: 213131600 | AE27: 22.55233659 | AF27: 9979605 | AG27: 92281640000 | AH27: 0 | AI27: 19.3813247 | AK27: 0 | AL27: 0 | AN27: 0
A28: 26 | B28: 0.0003039 | C28: 0.0073044 | D28: 9096777 | E28: 9977919 | F28: 90959530000 | G28: 9977919 | H28: 90959530000 | I28: 0 | J28: 0 | K28: 22.54455387 | L28: =0 -> 0 | M28: 0 | N28: 19.3721997 | O28: =0 -> 0 | P28: 0 | Q28: =0 -> 0 | R28: 0 | S28: 0 | U28: 23 | V28: 0.9996578 | W28: 0.000342225 | X28: 0 | Y28: 0.0073026 | Z28: 0 | AA28: 0.9212905292 | AB28: 9979061 | AC28: 9195022 | AD28: 212334400 | AE28: 22.55065437 | AF28: 9979061 | AG28: 91942840000 | AH28: 0 | AI28: 19.37901085 | AK28: 0 | AL28: 0 | AN28: 0
A29: 27 | B29: 0.000297 | C29: 0.007305 | D29: 9064580 | E29: 9977620 | F29: 90637270000 | G29: 9977620 | H29: 90637270000 | I29: 0 | J29: 0 | K29: 22.54233723 | L29: =0 -> 0 | M29: 0 | N29: 19.36993327 | O29: =0 -> 0 | P29: 0 | Q29: =0 -> 0 | R29: 0 | S29: 0 | U29: 24 | V29: 0.9996823 | W29: 0.0003177 | X29: 0 | Y29: 0.0073032 | Z29: 0 | AA29: 0.918012581 | AB29: 9978517 | AC29: 9161172 | AD29: 211537100 | AE29: 22.54894881 | AF29: 9978517 | AG29: 91604030000 | AH29: 0 | AI29: 19.37667718 | AK29: 0 | AL29: 0 | AN29: 0
A30: 28 | B30: 0.0002901 | C30: 0.0073056 | D30: 9032382 | E30: 9977321 | F30: 90315020000 | G30: 9977321 | H30: 90315020000 | I30: 0 | J30: 0 | K30: 22.54010733 | L30: =0 -> 0 | M30: 0 | N30: 19.36764808 | O30: =0 -> 0 | P30: 0 | Q30: =0 -> 0 | R30: 0 | S30: 0 | U30: 25 | V30: 0.9996892 | W30: 0.0003108 | X30: 0 | Y30: 0.0073038 | Z30: 0 | AA30: 0.9147462956 | AB30: 9978218 | AC30: 9128975 | AD30: 210773700 | AE30: 22.5467633 | AF30: 9978218 | AG30: 91281780000 | AH30: 0 | AI30: 19.3744476 | AK30: 0 | AL30: 0 | AN30: 0
A31: 29 | B31: 0.0002832 | C31: 0.0073062 | D31: 9000185 | E31: 9977022 | F31: 89992770000 | G31: 9977022 | H31: 89992770000 | I31: 0 | J31: 0 | K31: 22.53785892 | L31: =0 -> 0 | M31: 0 | N31: 19.36534389 | O31: =0 -> 0 | P31: 0 | Q31: =0 -> 0 | R31: 0 | S31: 0 | U31: 26 | V31: 0.9996961 | W31: 0.0003039 | X31: 0 | Y31: 0.0073044 | Z31: 0 | AA31: 0.9114916317 | AB31: 9977919 | AC31: 9096777 | AD31: 210010200 | AE31: 22.54455387 | AF31: 9977919 | AG31: 90959530000 | AH31: 0 | AI31: 19.3721997 | AK31: 0 | AL31: 0 | AN31: 0
A32: 30 | B32: 0.0002763 | C32: 0.0073068 | D32: 8967988 | E32: 9976723 | F32: 89670520000 | G32: 9976723 | H32: 89670520000 | I32: 0 | J32: 0 | K32: 22.53558321 | L32: =0 -> 0 | M32: 0 | N32: 19.36302046 | O32: =0 -> 0 | P32: 0 | Q32: =0 -> 0 | R32: 0 | S32: 0 | U32: 27 | V32: 0.999703 | W32: 0.000297 | X32: 0 | Y32: 0.007305 | Z32: 0 | AA32: 0.9082485479 | AB32: 9977620 | AC32: 9064580 | AD32: 209246800 | AE32: 22.54233723 | AF32: 9977620 | AG32: 90637270000 | AH32: 0 | AI32: 19.36993327 | AK32: 0 | AL32: 0 | AN32: 0
A33: 31 | B33: 0.0002694 | C33: 0.0073074 | D33: 8935790 | E33: 9976424 | F33: 89348260000 | G33: 9976424 | H33: 89348260000 | I33: 0 | J33: 0 | K33: 22.53330488 | L33: =0 -> 0 | M33: 0 | N33: 19.36067755 | O33: =0 -> 0 | P33: 0 | Q33: =0 -> 0 | R33: 0 | S33: 0 | U33: 28 | V33: 0.9997099 | W33: 0.0002901 | X33: 0 | Y33: 0.0073056 | Z33: 0 | AA33: 0.905017003 | AB33: 9977321 | AC33: 9032382 | AD33: 208483400 | AE33: 22.54010733 | AF33: 9977321 | AG33: 90315020000 | AH33: 0 | AI33: 19.36764808 | AK33: 0 | AL33: 0 | AN33: 0
A34: 32 | B34: 0.0002625 | C34: 0.007308 | D34: 8903593 | E34: 9976125 | F34: 89026000000 | G34: 9976125 | H34: 89026000000 | I34: 0 | J34: 0 | K34: 22.53100748 | L34: =0 -> 0 | M34: 0 | N34: 19.35831491 | O34: =0 -> 0 | P34: 0 | Q34: =0 -> 0 | R34: 0 | S34: 0 | U34: 29 | V34: 0.9997168 | W34: 0.0002832 | X34: 0 | Y34: 0.0073062 | Z34: 0 | AA34: 0.9017969559 | AB34: 9977022 | AC34: 9000185 | AD34: 207720000 | AE34: 22.53785892 | AF34: 9977022 | AG34: 89992770000 | AH34: 0 | AI34: 19.36534389 | AK34: 0 | AL34: 0 | AN34: 0
A35: 33 | B35: 0.0002556 | C35: 0.0073086 | D35: 8871395 | E35: 9975826 | F35: 88703750000 | G35: 9975826 | H35: 88703750000 | I35: 0 | J35: 0 | K35: 22.52868473 | L35: =0 -> 0 | M35: 0 | N35: 19.35593231 | O35: =0 -> 0 | P35: 0 | Q35: =0 -> 0 | R35: 0 | S35: 0 | U35: 30 | V35: 0.9997237 | W35: 0.0002763 | X35: 0 | Y35: 0.0073068 | Z35: 0 | AA35: 0.8985883657 | AB35: 9976723 | AC35: 8967988 | AD35: 206956500 | AE35: 22.53558321 | AF35: 9976723 | AG35: 89670520000 | AH35: 0 | AI35: 19.36302046 | AK35: 0 | AL35: 0 | AN35: 0
A36: 34 | B36: 0.0002487 | C36: 0.0073092 | D36: 8839198 | E36: 9975527 | F36: 88381500000 | G36: 9975527 | H36: 88381500000 | I36: 0 | J36: 0 | K36: 22.52635376 | L36: =0 -> 0 | M36: 0 | N36: 19.35354099 | O36: =0 -> 0 | P36: 0 | Q36: =0 -> 0 | R36: 0 | S36: 0 | U36: 31 | V36: 0.9997306 | W36: 0.0002694 | X36: 0 | Y36: 0.0073074 | Z36: 0 | AA36: 0.8953911916 | AB36: 9976424 | AC36: 8935790 | AD36: 206193100 | AE36: 22.53330488 | AF36: 9976424 | AG36: 89348260000 | AH36: 0 | AI36: 19.36067755 | AK36: 0 | AL36: 0 | AN36: 0
A37: 35 | B37: 0.0002418 | C37: 0.0073098 | D37: 8807000 | E37: 9975228 | F37: 88059250000 | G37: 9975228 | H37: 88059250000 | I37: 0 | J37: 0 | K37: 22.52400836 | L37: =0 -> 0 | M37: 0 | N37: 19.35111772 | O37: =0 -> 0 | P37: 0 | Q37: =0 -> 0 | R37: 0 | S37: 0 | U37: 32 | V37: 0.9997375 | W37: 0.0002625 | X37: 0 | Y37: 0.007308 | Z37: 0 | AA37: 0.8922053931 | AB37: 9976125 | AC37: 8903593 | AD37: 205429700 | AE37: 22.53100748 | AF37: 9976125 | AG37: 89026000000 | AH37: 0 | AI37: 19.35831491 | AK37: 0 | AL37: 0 | AN37: 0
A38: 36 | B38: 0.0002349 | C38: 0.0073104 | D38: 8774803 | E38: 9974929 | F38: 87736990000 | G38: 9974929 | H38: 87736990000 | I38: 0 | J38: 0 | K38: 22.52164313 | L38: =0 -> 0 | M38: 0 | N38: 19.34867369 | O38: =0 -> 0 | P38: 0 | Q38: =0 -> 0 | R38: 0 | S38: 0 | U38: 33 | V38: 0.9997444 | W38: 0.0002556 | X38: 0 | Y38: 0.0073086 | Z38: 0 | AA38: 0.8890309296 | AB38: 9975826 | AC38: 8871395 | AD38: 204666200 | AE38: 22.52868473 | AF38: 9975826 | AG38: 88703750000 | AH38: 0 | AI38: 19.35593231 | AK38: 0 | AL38: 0 | AN38: 0
A39: 37 | B39: 0.000231 | C39: 0.007311067 | D39: 8744022 | E39: 9974699 | F39: 87428920000 | G39: 9974699 | H39: 87428920000 | I39: 0 | J39: 0 | K39: 22.51919709 | L39: =0 -> 0 | M39: 0 | N39: 19.34633715 | O39: =0 -> 0 | P39: 0 | Q39: =0 -> 0 | R39: 0 | S39: 0 | U39: 34 | V39: 0.9997513 | W39: 0.0002487 | X39: 0 | Y39: 0.0073092 | Z39: 0 | AA39: 0.8858677609 | AB39: 9975527 | AC39: 8839198 | AD39: 203902800 | AE39: 22.52635376 | AF39: 9975527 | AG39: 88381500000 | AH39: 0 | AI39: 19.35354099 | AK39: 0 | AL39: 0 | AN39: 0
A40: 38 | B40: 0.0002271 | C40: 0.007311733 | D40: 8713240 | E40: 9974469 | F40: 87120860000 | G40: 9974469 | H40: 87120860000 | I40: 0 | J40: 0 | K40: 22.51674788 | L40: =0 -> 0 | M40: 0 | N40: 19.34399081 | O40: =0 -> 0 | P40: 0 | Q40: =0 -> 0 | R40: 0 | S40: 0 | U40: 35 | V40: 0.9997582 | W40: 0.0002418 | X40: 0 | Y40: 0.0073098 | Z40: 0 | AA40: 0.8827158467 | AB40: 9975228 | AC40: 8807000 | AD40: 203139400 | AE40: 22.52400836 | AF40: 9975228 | AG40: 88059250000 | AH40: 0 | AI40: 19.35111772 | AK40: 0 | AL40: 0 | AN40: 0
A41: 39 | B41: 0.0002232 | C41: 0.0073124 | D41: 8682458 | E41: 9974239 | F41: 86812780000 | G41: 9974239 | H41: 86812780000 | I41: 0 | J41: 0 | K41: 22.51428131 | L41: =0 -> 0 | M41: 0 | N41: 19.3416157 | O41: =0 -> 0 | P41: 0 | Q41: =0 -> 0 | R41: 0 | S41: 0 | U41: 36 | V41: 0.9997651 | W41: 0.0002349 | X41: 0 | Y41: 0.0073104 | Z41: 0 | AA41: 0.8795751471 | AB41: 9974929 | AC41: 8774803 | AD41: 202376000 | AE41: 22.52164313 | AF41: 9974929 | AG41: 87736990000 | AH41: 0 | AI41: 19.34867369 | AK41: 0 | AL41: 0 | AN41: 0
A42: 40 | B42: 0.0002193 | C42: 0.007313067 | D42: 8651677 | E42: 9974009 | F42: 86504710000 | G42: 9974009 | H42: 86504710000 | I42: 0 | J42: 0 | K42: 22.51178297 | L42: =0 -> 0 | M42: 0 | N42: 19.33923038 | O42: =0 -> 0 | P42: 0 | Q42: =0 -> 0 | R42: 0 | S42: 0 | U42: 37 | V42: 0.999769 | W42: 0.000231 | X42: 0 | Y42: 0.007311067 | Z42: 0 | AA42: 0.876445622 | AB42: 9974699 | AC42: 8744022 | AD42: 201644700 | AE42: 22.51919709 | AF42: 9974699 | AG42: 87428920000 | AH42: 0 | AI42: 19.34633715 | AK42: 0 | AL42: 0 | AN42: 0
A43: 41 | B43: 0.0002154 | C43: 0.007313733 | D43: 8620896 | E43: 9973779 | F43: 86196640000 | G43: 9973779 | H43: 86196640000 | I43: 0 | J43: 0 | K43: 22.50927839 | L43: =0 -> 0 | M43: 0 | N43: 19.33681573 | O43: =0 -> 0 | P43: 0 | Q43: =0 -> 0 | R43: 0 | S43: 0 | U43: 38 | V43: 0.9997729 | W43: 0.0002271 | X43: 0 | Y43: 0.007311733 | Z43: 0 | AA43: 0.8733272317 | AB43: 9974469 | AC43: 8713240 | AD43: 200913500 | AE43: 22.51674788 | AF43: 9974469 | AG43: 87120860000 | AH43: 0 | AI43: 19.34399081 | AK43: 0 | AL43: 0 | AN43: 0
A44: 42 | B44: 0.0002115 | C44: 0.0073144 | D44: 8590114 | E44: 9973548 | F44: 85888570000 | G44: 9973548 | H44: 85888570000 | I44: 0 | J44: 0 | K44: 22.50674689 | L44: =0 -> 0 | M44: 0 | N44: 19.33439283 | O44: =0 -> 0 | P44: 0 | Q44: =0 -> 0 | R44: 0 | S44: 0 | U44: 39 | V44: 0.9997768 | W44: 0.0002232 | X44: 0 | Y44: 0.0073124 | Z44: 0 | AA44: 0.8702199367 | AB44: 9974239 | AC44: 8682458 | AD44: 200182300 | AE44: 22.51428131 | AF44: 9974239 | AG44: 86812780000 | AH44: 0 | AI44: 19.3416157 | AK44: 0 | AL44: 0 | AN44: 0
A45: 43 | B45: 0.0002076 | C45: 0.007315067 | D45: 8559332 | E45: 9973318 | F45: 85580500000 | G45: 9973318 | H45: 85580500000 | I45: 0 | J45: 0 | K45: 22.50420888 | L45: =0 -> 0 | M45: 0 | N45: 19.33193527 | O45: =0 -> 0 | P45: 0 | Q45: =0 -> 0 | R45: 0 | S45: 0 | U45: 40 | V45: 0.9997807 | W45: 0.0002193 | X45: 0 | Y45: 0.007313067 | Z45: 0 | AA45: 0.8671236974 | AB45: 9974009 | AC45: 8651677 | AD45: 199451000 | AE45: 22.51178297 | AF45: 9974009 | AG45: 86504710000 | AH45: 0 | AI45: 19.33923038 | AK45: 0 | AL45: 0 | AN45: 0
A46: 44 | B46: 0.0002037 | C46: 0.007315733 | D46: 8528551 | E46: 9973088 | F46: 85272430000 | G46: 9973088 | H46: 85272430000 | I46: 0 | J46: 0 | K46: 22.50164984 | L46: =0 -> 0 | M46: 0 | N46: 19.32946903 | O46: =0 -> 0 | P46: 0 | Q46: =0 -> 0 | R46: 0 | S46: 0 | U46: 41 | V46: 0.9997846 | W46: 0.0002154 | X46: 0 | Y46: 0.007313733 | Z46: 0 | AA46: 0.8640384745 | AB46: 9973779 | AC46: 8620896 | AD46: 198719800 | AE46: 22.50927839 | AF46: 9973779 | AG46: 86196640000 | AH46: 0 | AI46: 19.33681573 | AK46: 0 | AL46: 0 | AN46: 0
A47: 45 | B47: 0.0001998 | C47: 0.0073164 | D47: 8497770 | E47: 9972858 | F47: 84964360000 | G47: 9972858 | H47: 84964360000 | I47: 0 | J47: 0 | K47: 22.49906049 | L47: =0 -> 0 | M47: 0 | N47: 19.32697227 | O47: =0 -> 0 | P47: 0 | Q47: =0 -> 0 | R47: 0 | S47: 0 | U47: 42 | V47: 0.9997885 | W47: 0.0002115 | X47: 0 | Y47: 0.0073144 | Z47: 0 | AA47: 0.8609642289 | AB47: 9973548 | AC47: 8590114 | AD47: 197988500 | AE47: 22.50674689 | AF47: 9973548 | AG47: 85888570000 | AH47: 0 | AI47: 19.33439283 | AK47: 0 | AL47: 0 | AN47: 0
A48: 46 | B48: 0.0001959 | C48: 0.007317067 | D48: 8466988 | E48: 9972628 | F48: 84656290000 | G48: 9972628 | H48: 84656290000 | I48: 0 | J48: 0 | K48: 22.49646685 | L48: =0 -> 0 | M48: 0 | N48: 19.32446642 | O48: =0 -> 0 | P48: 0 | Q48: =0 -> 0 | R48: 0 | S48: 0 | U48: 43 | V48: 0.9997924 | W48: 0.0002076 | X48: 0 | Y48: 0.007315067 | Z48: 0 | AA48: 0.8579009214 | AB48: 9973318 | AC48: 8559332 | AD48: 197257300 | AE48: 22.50420888 | AF48: 9973318 | AG48: 85580500000 | AH48: 0 | AI48: 19.33193527 | AK48: 0 | AL48: 0 | AN48: 0
A49: 47 | B49: 0.000192 | C49: 0.007317733 | D49: 8436206 | E49: 9972398 | F49: 84348220000 | G49: 9972398 | H49: 84348220000 | I49: 0 | J49: 0 | K49: 22.49385428 | L49: =0 -> 0 | M49: 0 | N49: 19.32192462 | O49: =0 -> 0 | P49: 0 | Q49: =0 -> 0 | R49: 0 | S49: 0 | U49: 44 | V49: 0.9997963 | W49: 0.0002037 | X49: 0 | Y49: 0.007315733 | Z49: 0 | AA49: 0.8548485131 | AB49: 9973088 | AC49: 8528551 | AD49: 196526100 | AE49: 22.50164984 | AF49: 9973088 | AG49: 85272430000 | AH49: 0 | AI49: 19.32946903 | AK49: 0 | AL49: 0 | AN49: 0
A50: 48 | B50: 0.0001881 | C50: 0.0073184 | D50: 8405425 | E50: 9972168 | F50: 84040150000 | G50: 9972168 | H50: 84040150000 | I50: 0 | J50: 0 | K50: 22.49121983 | L50: =0 -> 0 | M50: 0 | N50: 19.3193757 | O50: =0 -> 0 | P50: 0 | Q50: =0 -> 0 | R50: 0 | S50: 0 | U50: 45 | V50: 0.9998002 | W50: 0.0001998 | X50: 0 | Y50: 0.0073164 | Z50: 0 | AA50: 0.8518069653 | AB50: 9972858 | AC50: 8497770 | AD50: 195794800 | AE50: 22.49906049 | AF50: 9972858 | AG50: 84964360000 | AH50: 0 | AI50: 19.32697227 | AK50: 0 | AL50: 0 | AN50: 0
A51: 49 | B51: 0.00018525 | C51: 0.007319133 | D51: 8375971 | E51: 9971977 | F51: 83745370000 | G51: 9971977 | H51: 83745370000 | I51: 0 | J51: 0 | K51: 22.4885826 | L51: =0 -> 0 | M51: 0 | N51: 19.3169253 | O51: =0 -> 0 | P51: 0 | Q51: =0 -> 0 | R51: 0 | S51: 0 | U51: 46 | V51: 0.9998041 | W51: 0.0001959 | X51: 0 | Y51: 0.007317067 | Z51: 0 | AA51: 0.8487762393 | AB51: 9972628 | AC51: 8466988 | AD51: 195063600 | AE51: 22.49646685 | AF51: 9972628 | AG51: 84656290000 | AH51: 0 | AI51: 19.32446642 | AK51: 0 | AL51: 0 | AN51: 0
A52: 50 | B52: 0.0001824 | C52: 0.007319867 | D52: 8346516 | E52: 9971786 | F52: 83450590000 | G52: 9971786 | H52: 83450590000 | I52: 0 | J52: 0 | K52: 22.48592952 | L52: =0 -> 0 | M52: 0 | N52: 19.31446709 | O52: =0 -> 0 | P52: 0 | Q52: =0 -> 0 | R52: 0 | S52: 0 | U52: 47 | V52: 0.999808 | W52: 0.000192 | X52: 0 | Y52: 0.007317733 | Z52: 0 | AA52: 0.8457562966 | AB52: 9972398 | AC52: 8436206 | AD52: 194332400 | AE52: 22.49385428 | AF52: 9972398 | AG52: 84348220000 | AH52: 0 | AI52: 19.32192462 | AK52: 0 | AL52: 0 | AN52: 0
A53: 51 | B53: 0.00017955 | C53: 0.0073206 | D53: 8317062 | E53: 9971595 | F53: 83155820000 | G53: 9971595 | H53: 83155820000 | I53: 0 | J53: 0 | K53: 22.4832669 | L53: =0 -> 0 | M53: 0 | N53: 19.31198861 | O53: =0 -> 0 | P53: 0 | Q53: =0 -> 0 | R53: 0 | S53: 0 | U53: 48 | V53: 0.9998119 | W53: 0.0001881 | X53: 0 | Y53: 0.0073184 | Z53: 0 | AA53: 0.8427470988 | AB53: 9972168 | AC53: 8405425 | AD53: 193601200 | AE53: 22.49121983 | AF53: 9972168 | AG53: 84040150000 | AH53: 0 | AI53: 19.3193757 | AK53: 0 | AL53: 0 | AN53: 0
A54: 52 | B54: 0.0001767 | C54: 0.007321333 | D54: 8287608 | E54: 9971404 | F54: 82861050000 | G54: 9971404 | H54: 82861050000 | I54: 0 | J54: 0 | K54: 22.48057328 | L54: =0 -> 0 | M54: 0 | N54: 19.3094896 | O54: =0 -> 0 | P54: 0 | Q54: =0 -> 0 | R54: 0 | S54: 0 | U54: 49 | V54: 0.9998147 | W54: 0.00018525 | X54: 0 | Y54: 0.007319133 | Z54: 0 | AA54: 0.8397486078 | AB54: 9971977 | AC54: 8375971 | AD54: 192900700 | AE54: 22.4885826 | AF54: 9971977 | AG54: 83745370000 | AH54: 0 | AI54: 19.3169253 | AK54: 0 | AL54: 0 | AN54: 0
A55: 53 | B55: 0.00017385 | C55: 0.007322066 | D55: 8258153 | E55: 9971213 | F55: 82566280000 | G55: 9971213 | H55: 82566280000 | I55: 0 | J55: 0 | K55: 22.47787535 | L55: =0 -> 0 | M55: 0 | N55: 19.3069698 | O55: =0 -> 0 | P55: 0 | Q55: =0 -> 0 | R55: 0 | S55: 0 | U55: 50 | V55: 0.9998176 | W55: 0.0001824 | X55: 0 | Y55: 0.007319867 | Z55: 0 | AA55: 0.8367607854 | AB55: 9971786 | AC55: 8346516 | AD55: 192200200 | AE55: 22.48592952 | AF55: 9971786 | AG55: 83450590000 | AH55: 0 | AI55: 19.31446709 | AK55: 0 | AL55: 0 | AN55: 0
A56: 54 | B56: 0.000171 | C56: 0.0073228 | D56: 8228699 | E56: 9971022 | F56: 82271500000 | G56: 9971022 | H56: 82271500000 | I56: 0 | J56: 0 | K56: 22.47514316 | L56: =0 -> 0 | M56: 0 | N56: 19.30442897 | O56: =0 -> 0 | P56: 0 | Q56: =0 -> 0 | R56: 0 | S56: 0 | U56: 51 | V56: 0.9998205 | W56: 0.00017955 | X56: 0 | Y56: 0.0073206 | Z56: 0 | AA56: 0.8337835936 | AB56: 9971595 | AC56: 8317062 | AD56: 191499800 | AE56: 22.4832669 | AF56: 9971595 | AG56: 83155820000 | AH56: 0 | AI56: 19.31198861 | AK56: 0 | AL56: 0 | AN56: 0
A57: 55 | B57: 0.00016815 | C57: 0.007323533 | D57: 8199244 | E57: 9970830 | F57: 81976720000 | G57: 9970830 | H57: 81976720000 | I57: 0 | J57: 0 | K57: 22.47240634 | L57: =0 -> 0 | M57: 0 | N57: 19.30186682 | O57: =0 -> 0 | P57: 0 | Q57: =0 -> 0 | R57: 0 | S57: 0 | U57: 52 | V57: 0.9998233 | W57: 0.0001767 | X57: 0 | Y57: 0.007321333 | Z57: 0 | AA57: 0.8308169947 | AB57: 9971404 | AC57: 8287608 | AD57: 190799300 | AE57: 22.48057328 | AF57: 9971404 | AG57: 82861050000 | AH57: 0 | AI57: 19.3094896 | AK57: 0 | AL57: 0 | AN57: 0
A58: 56 | B58: 0.0001653 | C58: 0.007324267 | D58: 8169790 | E58: 9970639 | F58: 81681950000 | G58: 9970639 | H58: 81681950000 | I58: 0 | J58: 0 | K58: 22.46963473 | L58: =0 -> 0 | M58: 0 | N58: 19.2992831 | O58: =0 -> 0 | P58: 0 | Q58: =0 -> 0 | R58: 0 | S58: 0 | U58: 53 | V58: 0.9998261 | W58: 0.00017385 | X58: 0 | Y58: 0.007322066 | Z58: 0 | AA58: 0.827860951 | AB58: 9971213 | AC58: 8258153 | AD58: 190098900 | AE58: 22.47787535 | AF58: 9971213 | AG58: 82566280000 | AH58: 0 | AI58: 19.3069698 | AK58: 0 | AL58: 0 | AN58: 0
A59: 57 | B59: 0.00016245 | C59: 0.007325 | D59: 8140335 | E59: 9970448 | F59: 81387180000 | G59: 9970448 | H59: 81387180000 | I59: 0 | J59: 0 | K59: 22.46685817 | L59: =0 -> 0 | M59: 0 | N59: 19.29667753 | O59: =0 -> 0 | P59: 0 | Q59: =0 -> 0 | R59: 0 | S59: 0 | U59: 54 | V59: 0.999829 | W59: 0.000171 | X59: 0 | Y59: 0.0073228 | Z59: 0 | AA59: 0.8249154248 | AB59: 9971022 | AC59: 8228699 | AD59: 189398400 | AE59: 22.47514316 | AF59: 9971022 | AG59: 82271500000 | AH59: 0 | AI59: 19.30442897 | AK59: 0 | AL59: 0 | AN59: 0
A60: 58 | B60: 0.0001596 | C60: 0.007325733 | D60: 8110881 | E60: 9970257 | F60: 81092400000 | G60: 9970257 | H60: 81092400000 | I60: 0 | J60: 0 | K60: 22.46404628 | L60: =0 -> 0 | M60: 0 | N60: 19.29404983 | O60: =0 -> 0 | P60: 0 | Q60: =0 -> 0 | R60: 0 | S60: 0 | U60: 55 | V60: 0.9998319 | W60: 0.00016815 | X60: 0 | Y60: 0.007323533 | Z60: 0 | AA60: 0.8219803788 | AB60: 9970830 | AC60: 8199244 | AD60: 188698000 | AE60: 22.47240634 | AF60: 9970830 | AG60: 81976720000 | AH60: 0 | AI60: 19.30186682 | AK60: 0 | AL60: 0 | AN60: 0
A61: 59 | B61: 0.00015675 | C61: 0.007326466 | D61: 8081427 | E61: 9970066 | F61: 80797620000 | G61: 9970066 | H61: 80797620000 | I61: 0 | J61: 0 | K61: 22.46122626 | L61: =0 -> 0 | M61: 0 | N61: 19.29139972 | O61: =0 -> 0 | P61: 0 | Q61: =0 -> 0 | R61: 0 | S61: 0 | U61: 56 | V61: 0.9998347 | W61: 0.0001653 | X61: 0 | Y61: 0.007324267 | Z61: 0 | AA61: 0.8190557757 | AB61: 9970639 | AC61: 8169790 | AD61: 187997500 | AE61: 22.46963473 | AF61: 9970639 | AG61: 81681950000 | AH61: 0 | AI61: 19.2992831 | AK61: 0 | AL61: 0 | AN61: 0
A62: 60 | B62: 0.0001539 | C62: 0.0073272 | D62: 8051972 | E62: 9969875 | F62: 80502850000 | G62: 9969875 | H62: 80502850000 | I62: 0 | J62: 0 | K62: 22.45837606 | L62: =0 -> 0 | M62: 0 | N62: 19.2887269 | O62: =0 -> 0 | P62: 0 | Q62: =0 -> 0 | R62: 0 | S62: 0 | U62: 57 | V62: 0.9998376 | W62: 0.00016245 | X62: 0 | Y62: 0.007325 | Z62: 0 | AA62: 0.8161415783 | AB62: 9970448 | AC62: 8140335 | AD62: 187297100 | AE62: 22.46685817 | AF62: 9970448 | AG62: 81387180000 | AH62: 0 | AI62: 19.29667753 | AK62: 0 | AL62: 0 | AN62: 0
A63: 61 | B63: 0.00015165 | C63: 0.007328 | D63: 8023778 | E63: 9969712 | F63: 80220700000 | G63: 9969712 | H63: 80220700000 | I63: 0 | J63: 0 | K63: 22.4555673 | L63: =0 -> 0 | M63: 0 | N63: 19.28617297 | O63: =0 -> 0 | P63: 0 | Q63: =0 -> 0 | R63: 0 | S63: 0 | U63: 58 | V63: 0.9998404 | W63: 0.0001596 | X63: 0 | Y63: 0.007325733 | Z63: 0 | AA63: 0.8132377496 | AB63: 9970257 | AC63: 8110881 | AD63: 186596600 | AE63: 22.46404628 | AF63: 9970257 | AG63: 81092400000 | AH63: 0 | AI63: 19.29404983 | AK63: 0 | AL63: 0 | AN63: 0
A64: 62 | B64: 0.0001494 | C64: 0.0073288 | D64: 7995585 | E64: 9969550 | F64: 79938550000 | G64: 9969550 | H64: 79938550000 | I64: 0 | J64: 0 | K64: 22.45273587 | L64: =0 -> 0 | M64: 0 | N64: 19.28359548 | O64: =0 -> 0 | P64: 0 | Q64: =0 -> 0 | R64: 0 | S64: 0 | U64: 59 | V64: 0.9998432 | W64: 0.00015675 | X64: 0 | Y64: 0.007326466 | Z64: 0 | AA64: 0.8103442527 | AB64: 9970066 | AC64: 8081427 | AD64: 185896200 | AE64: 22.46122626 | AF64: 9970066 | AG64: 80797620000 | AH64: 0 | AI64: 19.29139972 | AK64: 0 | AL64: 0 | AN64: 0
A65: 63 | B65: 0.00014715 | C65: 0.0073296 | D65: 7967391 | E65: 9969387 | F65: 79656400000 | G65: 9969387 | H65: 79656400000 | I65: 0 | J65: 0 | K65: 22.44988728 | L65: =0 -> 0 | M65: 0 | N65: 19.28099931 | O65: =0 -> 0 | P65: 0 | Q65: =0 -> 0 | R65: 0 | S65: 0 | U65: 60 | V65: 0.9998461 | W65: 0.0001539 | X65: 0 | Y65: 0.0073272 | Z65: 0 | AA65: 0.8074610509 | AB65: 9969875 | AC65: 8051972 | AD65: 185195700 | AE65: 22.45837606 | AF65: 9969875 | AG65: 80502850000 | AH65: 0 | AI65: 19.2887269 | AK65: 0 | AL65: 0 | AN65: 0
A66: 64 | B66: =W69 -> 0.0001449 | C66: =Y69 -> 0.0073304 | D66: =AC69 -> 7939197 | E66: =AF69 -> 9969224 | F66: =AG69 -> 79374250000 | G66: =E66 -> 9969224 | H66: =F66 -> 79374250000 | I66: =X69 -> 0 | J66: =AN69 -> 0 | K66: =AE69 -> 22.44701846 | L66: =0 -> 0 | M66: =AL69 -> 0 | N66: =AI69 -> 19.2783947 | O66: =0 -> 0 | P66: =AK69 -> 0 | Q66: =0 -> 0 | R66: =Z69 -> 0 | S66: =AH69 -> 0 | U66: 61 | V66: 0.9998484 | W66: 0.00015165 | X66: 0 | Y66: 0.007328 | Z66: 0 | AA66: 0.8045881075 | AB66: 9969712 | AC66: 8023778 | AD66: 184524700 | AE66: 22.4555673 | AF66: 9969712 | AG66: 80220700000 | AH66: 0 | AI66: 19.28617297 | AK66: 0 | AL66: 0 | AN66: 0
A67: 65 | B67: 0.00014265 | C67: 0.0073312 | D67: 7911003 | E67: 9969062 | F67: 79092110000 | G67: 9969062 | H67: 79092110000 | I67: 0 | J67: 0 | K67: 22.44412919 | L67: =0 -> 0 | M67: 0 | N67: 19.2757553 | O67: =0 -> 0 | P67: 0 | Q67: =0 -> 0 | R67: 0 | S67: 0 | U67: 62 | V67: 0.9998506 | W67: 0.0001494 | X67: 0 | Y67: 0.0073288 | Z67: 0 | AA67: 0.801725386 | AB67: 9969550 | AC67: 7995585 | AD67: 183853700 | AE67: 22.45273587 | AF67: 9969550 | AG67: 79938550000 | AH67: 0 | AI67: 19.28359548 | AK67: 0 | AL67: 0 | AN67: 0
A68: 66 | B68: 0.0001404 | C68: 0.007332 | D68: 7882809 | E68: 9968899 | F68: 78809960000 | G68: 9968899 | H68: 78809960000 | I68: 0 | J68: 0 | K68: 22.44121926 | L68: =0 -> 0 | M68: 0 | N68: 19.27309386 | O68: =0 -> 0 | P68: 0 | Q68: =0 -> 0 | R68: 0 | S68: 0 | U68: 63 | V68: 0.9998528 | W68: 0.00014715 | X68: 0 | Y68: 0.0073296 | Z68: 0 | AA68: 0.7988728501 | AB68: 9969387 | AC68: 7967391 | AD68: 183182700 | AE68: 22.44988728 | AF68: 9969387 | AG68: 79656400000 | AH68: 0 | AI68: 19.28099931 | AK68: 0 | AL68: 0 | AN68: 0
A69: 67 | B69: 0.00013815 | C69: 0.0073328 | D69: 7854615 | E69: 9968736 | F69: 78527810000 | G69: 9968736 | H69: 78527810000 | I69: 0 | J69: 0 | K69: 22.43828843 | L69: =0 -> 0 | M69: 0 | N69: 19.27042332 | O69: =0 -> 0 | P69: 0 | Q69: =0 -> 0 | R69: 0 | S69: 0 | U69: 64 | V69: 0.9998551 | W69: 0.0001449 | X69: 0 | Y69: 0.0073304 | Z69: 0 | AA69: 0.7960304635 | AB69: 9969224 | AC69: 7939197 | AD69: 182511700 | AE69: 22.44701846 | AF69: 9969224 | AG69: 79374250000 | AH69: 0 | AI69: 19.2783947 | AK69: 0 | AL69: 0 | AN69: 0
A70: 68 | B70: 0.0001359 | C70: 0.0073336 | D70: 7826422 | E70: 9968574 | F70: 78245660000 | G70: 9968574 | H70: 78245660000 | I70: 0 | J70: 0 | K70: 22.43533355 | L70: =0 -> 0 | M70: 0 | N70: 19.26771438 | O70: =0 -> 0 | P70: 0 | Q70: =0 -> 0 | R70: 0 | S70: 0 | U70: 65 | V70: 0.9998574 | W70: 0.00014265 | X70: 0 | Y70: 0.0073312 | Z70: 0 | AA70: 0.7931981901 | AB70: 9969062 | AC70: 7911003 | AD70: 181840700 | AE70: 22.44412919 | AF70: 9969062 | AG70: 79092110000 | AH70: 0 | AI70: 19.2757553 | AK70: 0 | AL70: 0 | AN70: 0
A71: 69 | B71: 0.00013365 | C71: 0.0073344 | D71: 7798228 | E71: 9968411 | F71: 77963510000 | G71: 9968411 | H71: 77963510000 | I71: 0 | J71: 0 | K71: 22.43236025 | L71: =0 -> 0 | M71: 0 | N71: 19.26498516 | O71: =0 -> 0 | P71: 0 | Q71: =0 -> 0 | R71: 0 | S71: 0 | U71: 66 | V71: 0.9998596 | W71: 0.0001404 | X71: 0 | Y71: 0.007332 | Z71: 0 | AA71: 0.7903759939 | AB71: 9968899 | AC71: 7882809 | AD71: 181169700 | AE71: 22.44121926 | AF71: 9968899 | AG71: 78809960000 | AH71: 0 | AI71: 19.27309386 | AK71: 0 | AL71: 0 | AN71: 0
A72: 70 | B72: 0.0001314 | C72: 0.0073352 | D72: 7770034 | E72: 9968248 | F72: 77681360000 | G72: 9968248 | H72: 77681360000 | I72: 0 | J72: 0 | K72: 22.42936538 | L72: =0 -> 0 | M72: 0 | N72: 19.26224616 | O72: =0 -> 0 | P72: 0 | Q72: =0 -> 0 | R72: 0 | S72: 0 | U72: 67 | V72: 0.9998618 | W72: 0.00013815 | X72: 0 | Y72: 0.0073328 | Z72: 0 | AA72: 0.787563839 | AB72: 9968736 | AC72: 7854615 | AD72: 180498700 | AE72: 22.43828843 | AF72: 9968736 | AG72: 78527810000 | AH72: 0 | AI72: 19.27042332 | AK72: 0 | AL72: 0 | AN72: 0
A73: 71 | B73: 0.00012915 | C73: 0.007336 | D73: 7741840 | E73: 9968086 | F73: 77399210000 | G73: 9968086 | H73: 77399210000 | I73: 0 | J73: 0 | K73: 22.42634869 | L73: =0 -> 0 | M73: 0 | N73: 19.25947034 | O73: =0 -> 0 | P73: 0 | Q73: =0 -> 0 | R73: 0 | S73: 0 | U73: 68 | V73: 0.9998641 | W73: 0.0001359 | X73: 0 | Y73: 0.0073336 | Z73: 0 | AA73: 0.7847616898 | AB73: 9968574 | AC73: 7826422 | AD73: 179827700 | AE73: 22.43533355 | AF73: 9968574 | AG73: 78245660000 | AH73: 0 | AI73: 19.26771438 | AK73: 0 | AL73: 0 | AN73: 0
A74: 72 | B74: 0.0001269 | C74: 0.0073368 | D74: 7713646 | E74: 9967923 | F74: 77117060000 | G74: 9967923 | H74: 77117060000 | I74: 0 | J74: 0 | K74: 22.42330995 | L74: =0 -> 0 | M74: 0 | N74: 19.25667073 | O74: =0 -> 0 | P74: 0 | Q74: =0 -> 0 | R74: 0 | S74: 0 | U74: 69 | V74: 0.9998664 | W74: 0.00013365 | X74: 0 | Y74: 0.0073344 | Z74: 0 | AA74: 0.7819695107 | AB74: 9968411 | AC74: 7798228 | AD74: 179156700 | AE74: 22.43236025 | AF74: 9968411 | AG74: 77963510000 | AH74: 0 | AI74: 19.26498516 | AK74: 0 | AL74: 0 | AN74: 0
A75: 73 | B75: 0.000125175 | C75: 0.0073376 | D75: 7686654 | E75: 9967783 | F75: 76846950000 | G75: 9967783 | H75: 76846950000 | I75: 0 | J75: 0 | K75: 22.42032694 | L75: =0 -> 0 | M75: 0 | N75: 19.25401195 | O75: =0 -> 0 | P75: 0 | Q75: =0 -> 0 | R75: 0 | S75: 0 | U75: 70 | V75: 0.9998686 | W75: 0.0001314 | X75: 0 | Y75: 0.0073352 | Z75: 0 | AA75: 0.7791872661 | AB75: 9968248 | AC75: 7770034 | AD75: 178485700 | AE75: 22.42936538 | AF75: 9968248 | AG75: 77681360000 | AH75: 0 | AI75: 19.26224616 | AK75: 0 | AL75: 0 | AN75: 0
A76: 74 | B76: 0.00012345 | C76: 0.0073384 | D76: 7659661 | E76: 9967643 | F76: 76576830000 | G76: 9967643 | H76: 76576830000 | I76: 0 | J76: 0 | K76: 22.4173259 | L76: =0 -> 0 | M76: 0 | N76: 19.2513177 | O76: =0 -> 0 | P76: 0 | Q76: =0 -> 0 | R76: 0 | S76: 0 | U76: 71 | V76: 0.9998708 | W76: 0.00012915 | X76: 0 | Y76: 0.007336 | Z76: 0 | AA76: 0.7764149207 | AB76: 9968086 | AC76: 7741840 | AD76: 177814700 | AE76: 22.42634869 | AF76: 9968086 | AG76: 77399210000 | AH76: 0 | AI76: 19.25947034 | AK76: 0 | AL76: 0 | AN76: 0
A77: 75 | B77: 0.000121725 | C77: 0.0073392 | D77: 7632669 | E77: 9967502 | F77: 76306720000 | G77: 9967502 | H77: 76306720000 | I77: 0 | J77: 0 | K77: 22.41430064 | L77: =0 -> 0 | M77: 0 | N77: 19.2486149 | O77: =0 -> 0 | P77: 0 | Q77: =0 -> 0 | R77: 0 | S77: 0 | U77: 72 | V77: 0.9998731 | W77: 0.0001269 | X77: 0 | Y77: 0.0073368 | Z77: 0 | AA77: 0.7736524393 | AB77: 9967923 | AC77: 7713646 | AD77: 177143700 | AE77: 22.42330995 | AF77: 9967923 | AG77: 77117060000 | AH77: 0 | AI77: 19.25667073 | AK77: 0 | AL77: 0 | AN77: 0
A78: 76 | B78: 0.00012 | C78: 0.00734 | D78: 7605676 | E78: 9967362 | F78: 76036600000 | G78: 9967362 | H78: 76036600000 | I78: 0 | J78: 0 | K78: 22.41125691 | L78: =0 -> 0 | M78: 0 | N78: 19.24587597 | O78: =0 -> 0 | P78: 0 | Q78: =0 -> 0 | R78: 0 | S78: 0 | U78: 73 | V78: 0.9998748 | W78: 0.000125175 | X78: 0 | Y78: 0.0073376 | Z78: 0 | AA78: 0.7708997868 | AB78: 9967783 | AC78: 7686654 | AD78: 176500900 | AE78: 22.42032694 | AF78: 9967783 | AG78: 76846950000 | AH78: 0 | AI78: 19.25401195 | AK78: 0 | AL78: 0 | AN78: 0
A79: 77 | B79: 0.000118275 | C79: 0.0073408 | D79: 7578684 | E79: 9967222 | F79: 75766490000 | G79: 9967222 | H79: 75766490000 | I79: 0 | J79: 0 | K79: 22.40818848 | L79: =0 -> 0 | M79: 0 | N79: 19.24312805 | O79: =0 -> 0 | P79: 0 | Q79: =0 -> 0 | R79: 0 | S79: 0 | U79: 74 | V79: 0.9998766 | W79: 0.00012345 | X79: 0 | Y79: 0.0073384 | Z79: 0 | AA79: 0.7681569283 | AB79: 9967643 | AC79: 7659661 | AD79: 175858100 | AE79: 22.4173259 | AF79: 9967643 | AG79: 76576830000 | AH79: 0 | AI79: 19.2513177 | AK79: 0 | AL79: 0 | AN79: 0
A80: 78 | B80: 0.00011655 | C80: 0.0073416 | D80: 7551691 | E80: 9967082 | F80: 75496370000 | G80: 9967082 | H80: 75496370000 | I80: 0 | J80: 0 | K80: 22.40510115 | L80: =0 -> 0 | M80: 0 | N80: 19.24034332 | O80: =0 -> 0 | P80: 0 | Q80: =0 -> 0 | R80: 0 | S80: 0 | U80: 75 | V80: 0.9998783 | W80: 0.000121725 | X80: 0 | Y80: 0.0073392 | Z80: 0 | AA80: 0.7654238288 | AB80: 9967502 | AC80: 7632669 | AD80: 175215300 | AE80: 22.41430064 | AF80: 9967502 | AG80: 76306720000 | AH80: 0 | AI80: 19.2486149 | AK80: 0 | AL80: 0 | AN80: 0
A81: 79 | B81: 0.000114825 | C81: 0.0073424 | D81: 7524699 | E81: 9966942 | F81: 75226260000 | G81: 9966942 | H81: 75226260000 | I81: 0 | J81: 0 | K81: 22.40198862 | L81: =0 -> 0 | M81: 0 | N81: 19.23754914 | O81: =0 -> 0 | P81: 0 | Q81: =0 -> 0 | R81: 0 | S81: 0 | U81: 76 | V81: 0.99988 | W81: 0.00012 | X81: 0 | Y81: 0.00734 | Z81: 0 | AA81: 0.7627004537 | AB81: 9967362 | AC81: 7605676 | AD81: 174572500 | AE81: 22.41125691 | AF81: 9967362 | AG81: 76036600000 | AH81: 0 | AI81: 19.24587597 | AK81: 0 | AL81: 0 | AN81: 0
A82: 80 | B82: 0.0001131 | C82: 0.0073432 | D82: 7497706 | E82: 9966802 | F82: 74956140000 | G82: 9966802 | H82: 74956140000 | I82: 0 | J82: 0 | K82: 22.39885674 | L82: =0 -> 0 | M82: 0 | N82: 19.23471745 | O82: =0 -> 0 | P82: 0 | Q82: =0 -> 0 | R82: 0 | S82: 0 | U82: 77 | V82: 0.9998817 | W82: 0.000118275 | X82: 0 | Y82: 0.0073408 | Z82: 0 | AA82: 0.7599867683 | AB82: 9967222 | AC82: 7578684 | AD82: 173929700 | AE82: 22.40818848 | AF82: 9967222 | AG82: 75766490000 | AH82: 0 | AI82: 19.24312805 | AK82: 0 | AL82: 0 | AN82: 0
A83: 81 | B83: 0.000111375 | C83: 0.007344 | D83: 7470714 | E83: 9966662 | F83: 74686030000 | G83: 9966662 | H83: 74686030000 | I83: 0 | J83: 0 | K83: 22.39569916 | L83: =0 -> 0 | M83: 0 | N83: 19.23187583 | O83: =0 -> 0 | P83: 0 | Q83: =0 -> 0 | R83: 0 | S83: 0 | U83: 78 | V83: 0.9998835 | W83: 0.00011655 | X83: 0 | Y83: 0.0073416 | Z83: 0 | AA83: 0.7572827382 | AB83: 9967082 | AC83: 7551691 | AD83: 173286900 | AE83: 22.40510115 | AF83: 9967082 | AG83: 75496370000 | AH83: 0 | AI83: 19.24034332 | AK83: 0 | AL83: 0 | AN83: 0
A84: 82 | B84: 0.00010965 | C84: 0.0073448 | D84: 7443721 | E84: 9966521 | F84: 74415920000 | G84: 9966521 | H84: 74415920000 | I84: 0 | J84: 0 | K84: 22.39252176 | L84: =0 -> 0 | M84: 0 | N84: 19.22899598 | O84: =0 -> 0 | P84: 0 | Q84: =0 -> 0 | R84: 0 | S84: 0 | U84: 79 | V84: 0.9998852 | W84: 0.000114825 | X84: 0 | Y84: 0.0073424 | Z84: 0 | AA84: 0.7545883291 | AB84: 9966942 | AC84: 7524699 | AD84: 172644100 | AE84: 22.40198862 | AF84: 9966942 | AG84: 75226260000 | AH84: 0 | AI84: 19.23754914 | AK84: 0 | AL84: 0 | AN84: 0
A85: 83 | B85: 0.000107925 | C85: 0.0073456 | D85: 7416729 | E85: 9966381 | F85: 74145800000 | G85: 9966381 | H85: 74145800000 | I85: 0 | J85: 0 | K85: 22.38931814 | L85: =0 -> 0 | M85: 0 | N85: 19.2261057 | O85: =0 -> 0 | P85: 0 | Q85: =0 -> 0 | R85: 0 | S85: 0 | U85: 80 | V85: 0.9998869 | W85: 0.0001131 | X85: 0 | Y85: 0.0073432 | Z85: 0 | AA85: 0.7519035066 | AB85: 9966802 | AC85: 7497706 | AD85: 172001300 | AE85: 22.39885674 | AF85: 9966802 | AG85: 74956140000 | AH85: 0 | AI85: 19.23471745 | AK85: 0 | AL85: 0 | AN85: 0
A86: 84 | B86: 0.0001062 | C86: 0.0073464 | D86: 7389736 | E86: 9966241 | F86: 73875690000 | G86: 9966241 | H86: 73875690000 | I86: 0 | J86: 0 | K86: 22.38609422 | L86: =0 -> 0 | M86: 0 | N86: 19.22317645 | O86: =0 -> 0 | P86: 0 | Q86: =0 -> 0 | R86: 0 | S86: 0 | U86: 81 | V86: 0.9998886 | W86: 0.000111375 | X86: 0 | Y86: 0.007344 | Z86: 0 | AA86: 0.7492282367 | AB86: 9966662 | AC86: 7470714 | AD86: 171358500 | AE86: 22.39569916 | AF86: 9966662 | AG86: 74686030000 | AH86: 0 | AI86: 19.23187583 | AK86: 0 | AL86: 0 | AN86: 0
A87: 85 | B87: 0.0001062 | C87: 0.007347333 | D87: 7363889 | E87: 9966118 | F87: 73617050000 | G87: 9966118 | H87: 73617050000 | I87: 0 | J87: 0 | K87: 22.38294559 | L87: =0 -> 0 | M87: 0 | N87: 19.22038599 | O87: =0 -> 0 | P87: 0 | Q87: =0 -> 0 | R87: 0 | S87: 0 | U87: 82 | V87: 0.9998903 | W87: 0.00010965 | X87: 0 | Y87: 0.0073448 | Z87: 0 | AA87: 0.7465624855 | AB87: 9966521 | AC87: 7443721 | AD87: 170715700 | AE87: 22.39252176 | AF87: 9966521 | AG87: 74415920000 | AH87: 0 | AI87: 19.22899598 | AK87: 0 | AL87: 0 | AN87: 0
A88: 86 | B88: 0.0001062 | C88: 0.007348267 | D88: 7338042 | E88: 9965995 | F88: 73358410000 | G88: 9965995 | H88: 73358410000 | I88: 0 | J88: 0 | K88: 22.37977478 | L88: =0 -> 0 | M88: 0 | N88: 19.21758691 | O88: =0 -> 0 | P88: 0 | Q88: =0 -> 0 | R88: 0 | S88: 0 | U88: 83 | V88: 0.9998921 | W88: 0.000107925 | X88: 0 | Y88: 0.0073456 | Z88: 0 | AA88: 0.7439062189 | AB88: 9966381 | AC88: 7416729 | AD88: 170072900 | AE88: 22.38931814 | AF88: 9966381 | AG88: 74145800000 | AH88: 0 | AI88: 19.2261057 | AK88: 0 | AL88: 0 | AN88: 0
A89: 87 | B89: 0.0001062 | C89: 0.0073492 | D89: 7312196 | E89: 9965872 | F89: 73099760000 | G89: 9965872 | H89: 73099760000 | I89: 0 | J89: 0 | K89: 22.37657841 | L89: =0 -> 0 | M89: 0 | N89: 19.21475035 | O89: =0 -> 0 | P89: 0 | Q89: =0 -> 0 | R89: 0 | S89: 0 | U89: 84 | V89: 0.9998938 | W89: 0.0001062 | X89: 0 | Y89: 0.0073464 | Z89: 0 | AA89: 0.7412594034 | AB89: 9966241 | AC89: 7389736 | AD89: 169430100 | AE89: 22.38609422 | AF89: 9966241 | AG89: 73875690000 | AH89: 0 | AI89: 19.22317645 | AK89: 0 | AL89: 0 | AN89: 0
A90: 88 | B90: 0.0001062 | C90: 0.007350133 | D90: 7286349 | E90: 9965749 | F90: 72841130000 | G90: 9965749 | H90: 72841130000 | I90: 0 | J90: 0 | K90: 22.3733488 | L90: =0 -> 0 | M90: 0 | N90: 19.21189029 | O90: =0 -> 0 | P90: 0 | Q90: =0 -> 0 | R90: 0 | S90: 0 | U90: 85 | V90: 0.9998938 | W90: 0.0001062 | X90: 0 | Y90: 0.007347333 | Z90: 0 | AA90: 0.7386220052 | AB90: 9966118 | AC90: 7363889 | AD90: 168814300 | AE90: 22.38294559 | AF90: 9966118 | AG90: 73617050000 | AH90: 0 | AI90: 19.22038599 | AK90: 0 | AL90: 0 | AN90: 0
A91: 89 | B91: 0.0001062 | C91: 0.007351067 | D91: 7260502 | E91: 9965626 | F91: 72582490000 | G91: 9965626 | H91: 72582490000 | I91: 0 | J91: 0 | K91: 22.37010996 | L91: =0 -> 0 | M91: 0 | N91: 19.20900643 | O91: =0 -> 0 | P91: 0 | Q91: =0 -> 0 | R91: 0 | S91: 0 | U91: 86 | V91: 0.9998938 | W91: 0.0001062 | X91: 0 | Y91: 0.007348267 | Z91: 0 | AA91: 0.7359939909 | AB91: 9965995 | AC91: 7338042 | AD91: 168198500 | AE91: 22.37977478 | AF91: 9965995 | AG91: 73358410000 | AH91: 0 | AI91: 19.21758691 | AK91: 0 | AL91: 0 | AN91: 0
A92: 90 | B92: 0.0001062 | C92: 0.007352 | D92: 7234655 | E92: 9965503 | F92: 72323840000 | G92: 9965503 | H92: 72323840000 | I92: 0 | J92: 0 | K92: 22.36684798 | L92: =0 -> 0 | M92: 0 | N92: 19.20610135 | O92: =0 -> 0 | P92: 0 | Q92: =0 -> 0 | R92: 0 | S92: 0 | U92: 87 | V92: 0.9998938 | W92: 0.0001062 | X92: 0 | Y92: 0.0073492 | Z92: 0 | AA92: 0.733375327 | AB92: 9965872 | AC92: 7312196 | AD92: 167582700 | AE92: 22.37657841 | AF92: 9965872 | AG92: 73099760000 | AH92: 0 | AI92: 19.21475035 | AK92: 0 | AL92: 0 | AN92: 0
A93: 91 | B93: 0.0001062 | C93: 0.007352933 | D93: 7208808 | E93: 9965380 | F93: 72065200000 | G93: 9965380 | H93: 72065200000 | I93: 0 | J93: 0 | K93: 22.3635626 | L93: =0 -> 0 | M93: 0 | N93: 19.20316901 | O93: =0 -> 0 | P93: 0 | Q93: =0 -> 0 | R93: 0 | S93: 0 | U93: 88 | V93: 0.9998938 | W93: 0.0001062 | X93: 0 | Y93: 0.007350133 | Z93: 0 | AA93: 0.7307659803 | AB93: 9965749 | AC93: 7286349 | AD93: 166966800 | AE93: 22.3733488 | AF93: 9965749 | AG93: 72841130000 | AH93: 0 | AI93: 19.21189029 | AK93: 0 | AL93: 0 | AN93: 0
A94: 92 | B94: 0.0001062 | C94: 0.007353867 | D94: 7182961 | E94: 9965257 | F94: 71806570000 | G94: 9965257 | H94: 71806570000 | I94: 0 | J94: 0 | K94: 22.36025359 | L94: =0 -> 0 | M94: 0 | N94: 19.20021195 | O94: =0 -> 0 | P94: 0 | Q94: =0 -> 0 | R94: 0 | S94: 0 | U94: 89 | V94: 0.9998938 | W94: 0.0001062 | X94: 0 | Y94: 0.007351067 | Z94: 0 | AA94: 0.7281659177 | AB94: 9965626 | AC94: 7260502 | AD94: 166351000 | AE94: 22.37010996 | AF94: 9965626 | AG94: 72582490000 | AH94: 0 | AI94: 19.20900643 | AK94: 0 | AL94: 0 | AN94: 0
A95: 93 | B95: 0.0001062 | C95: 0.0073548 | D95: 7157114 | E95: 9965134 | F95: 71547930000 | G95: 9965134 | H95: 71547930000 | I95: 0 | J95: 0 | K95: 22.35692067 | L95: =0 -> 0 | M95: 0 | N95: 19.19722988 | O95: =0 -> 0 | P95: 0 | Q95: =0 -> 0 | R95: 0 | S95: 0 | U95: 90 | V95: 0.9998938 | W95: 0.0001062 | X95: 0 | Y95: 0.007352 | Z95: 0 | AA95: 0.7255751061 | AB95: 9965503 | AC95: 7234655 | AD95: 165735200 | AE95: 22.36684798 | AF95: 9965503 | AG95: 72323840000 | AH95: 0 | AI95: 19.20610135 | AK95: 0 | AL95: 0 | AN95: 0
A96: 94 | B96: 0.0001062 | C96: 0.007355733 | D96: 7131267 | E96: 9965011 | F96: 71289290000 | G96: 9965011 | H96: 71289290000 | I96: 0 | J96: 0 | K96: 22.35356359 | L96: =0 -> 0 | M96: 0 | N96: 19.19422246 | O96: =0 -> 0 | P96: 0 | Q96: =0 -> 0 | R96: 0 | S96: 0 | U96: 91 | V96: 0.9998938 | W96: 0.0001062 | X96: 0 | Y96: 0.007352933 | Z96: 0 | AA96: 0.7229935126 | AB96: 9965380 | AC96: 7208808 | AD96: 165119400 | AE96: 22.3635626 | AF96: 9965380 | AG96: 72065200000 | AH96: 0 | AI96: 19.20316901 | AK96: 0 | AL96: 0 | AN96: 0
A97: 95 | B97: 0.0001062 | C97: 0.007356667 | D97: 7105421 | E97: 9964888 | F97: 71030640000 | G97: 9964888 | H97: 71030640000 | I97: 0 | J97: 0 | K97: 22.3501648 | L97: =0 -> 0 | M97: 0 | N97: 19.19120424 | O97: =0 -> 0 | P97: 0 | Q97: =0 -> 0 | R97: 0 | S97: 0 | U97: 92 | V97: 0.9998938 | W97: 0.0001062 | X97: 0 | Y97: 0.007353867 | Z97: 0 | AA97: 0.7204211043 | AB97: 9965257 | AC97: 7182961 | AD97: 164503600 | AE97: 22.36025359 | AF97: 9965257 | AG97: 71806570000 | AH97: 0 | AI97: 19.20021195 | AK97: 0 | AL97: 0 | AN97: 0
A98: 96 | B98: 0.0001062 | C98: 0.0073576 | D98: 7079574 | E98: 9964765 | F98: 70772010000 | G98: 9964765 | H98: 70772010000 | I98: 0 | J98: 0 | K98: 22.34675854 | L98: =0 -> 0 | M98: 0 | N98: 19.18814523 | O98: =0 -> 0 | P98: 0 | Q98: =0 -> 0 | R98: 0 | S98: 0 | U98: 93 | V98: 0.9998938 | W98: 0.0001062 | X98: 0 | Y98: 0.0073548 | Z98: 0 | AA98: 0.7178578487 | AB98: 9965134 | AC98: 7157114 | AD98: 163887800 | AE98: 22.35692067 | AF98: 9965134 | AG98: 71547930000 | AH98: 0 | AI98: 19.19722988 | AK98: 0 | AL98: 0 | AN98: 0
A99: 97 | B99: 0.000106425 | C99: 0.0073586 | D99: 7054812 | E99: 9964642 | F99: 70524230000 | G99: 9964642 | H99: 70524230000 | I99: 0 | J99: 0 | K99: 22.34347896 | L99: =0 -> 0 | M99: 0 | N99: 19.18523107 | O99: =0 -> 0 | P99: 0 | Q99: =0 -> 0 | R99: 0 | S99: 0 | U99: 94 | V99: 0.9998938 | W99: 0.0001062 | X99: 0 | Y99: 0.007355733 | Z99: 0 | AA99: 0.7153037132 | AB99: 9965011 | AC99: 7131267 | AD99: 163272000 | AE99: 22.35356359 | AF99: 9965011 | AG99: 71289290000 | AH99: 0 | AI99: 19.19422246 | AK99: 0 | AL99: 0 | AN99: 0
A100: 98 | B100: 0.00010665 | C100: 0.0073596 | D100: 7030050 | E100: 9964519 | F100: 70276460000 | G100: 9964519 | H100: 70276460000 | I100: 0 | J100: 0 | K100: 22.34016205 | L100: =0 -> 0 | M100: 0 | N100: 19.18228998 | O100: =0 -> 0 | P100: 0 | Q100: =0 -> 0 | R100: 0 | S100: 0 | U100: 95 | V100: 0.9998938 | W100: 0.0001062 | X100: 0 | Y100: 0.007356667 | Z100: 0 | AA100: 0.7127586653 | AB100: 9964888 | AC100: 7105421 | AD100: 162656100 | AE100: 22.3501648 | AF100: 9964888 | AG100: 71030640000 | AH100: 0 | AI100: 19.19120424 | AK100: 0 | AL100: 0 | AN100: 0
A101: 99 | B101: 0.000106875 | C101: 0.0073606 | D101: 7005288 | E101: 9964396 | F101: 70028690000 | G101: 9964396 | H101: 70028690000 | I101: 0 | J101: 0 | K101: 22.3368217 | L101: =0 -> 0 | M101: 0 | N101: 19.17932761 | O101: =0 -> 0 | P101: 0 | Q101: =0 -> 0 | R101: 0 | S101: 0 | U101: 96 | V101: 0.9998938 | W101: 0.0001062 | X101: 0 | Y101: 0.0073576 | Z101: 0 | AA101: 0.7102226726 | AB101: 9964765 | AC101: 7079574 | AD101: 162040300 | AE101: 22.34675854 | AF101: 9964765 | AG101: 70772010000 | AH101: 0 | AI101: 19.18814523 | AK101: 0 | AL101: 0 | AN101: 0
A102: 100 | B102: 0.0001071 | C102: 0.0073616 | D102: 6980526 | E102: 9964273 | F102: 69780910000 | G102: 9964273 | H102: 69780910000 | I102: 0 | J102: 0 | K102: 22.33347197 | L102: =0 -> 0 | M102: 0 | N102: 19.17633768 | O102: =0 -> 0 | P102: 0 | Q102: =0 -> 0 | R102: 0 | S102: 0 | U102: 97 | V102: 0.9998935 | W102: 0.000106425 | X102: 0 | Y102: 0.0073586 | Z102: 0 | AA102: 0.707695703 | AB102: 9964642 | AC102: 7054812 | AD102: 161450400 | AE102: 22.34347896 | AF102: 9964642 | AG102: 70524230000 | AH102: 0 | AI102: 19.18523107 | AK102: 0 | AL102: 0 | AN102: 0
A103: 101 | B103: 0.000107325 | C103: 0.0073626 | D103: 6955764 | E103: 9964150 | F103: 69533140000 | G103: 9964150 | H103: 69533140000 | I103: 0 | J103: 0 | K103: 22.33008401 | L103: =0 -> 0 | M103: 0 | N103: 19.17332587 | O103: =0 -> 0 | P103: 0 | Q103: =0 -> 0 | R103: 0 | S103: 0 | U103: 98 | V103: 0.9998934 | W103: 0.00010665 | X103: 0 | Y103: 0.0073596 | Z103: 0 | AA103: 0.7051777243 | AB103: 9964519 | AC103: 7030050 | AD103: 160860400 | AE103: 22.34016205 | AF103: 9964519 | AG103: 70276460000 | AH103: 0 | AI103: 19.18228998 | AK103: 0 | AL103: 0 | AN103: 0
A104: 102 | B104: 0.00010755 | C104: 0.0073636 | D104: 6931001 | E104: 9964028 | F104: 69285360000 | G104: 9964028 | H104: 69285360000 | I104: 0 | J104: 0 | K104: 22.32667515 | L104: =0 -> 0 | M104: 0 | N104: 19.17030118 | O104: =0 -> 0 | P104: 0 | Q104: =0 -> 0 | R104: 0 | S104: 0 | U104: 99 | V104: 0.9998931 | W104: 0.000106875 | X104: 0 | Y104: 0.0073606 | Z104: 0 | AA104: 0.7026687046 | AB104: 9964396 | AC104: 7005288 | AD104: 160270400 | AE104: 22.3368217 | AF104: 9964396 | AG104: 70028690000 | AH104: 0 | AI104: 19.17932761 | AK104: 0 | AL104: 0 | AN104: 0
A105: 103 | B105: 0.000107775 | C105: 0.0073646 | D105: 6906239 | E105: 9963905 | F105: 69037590000 | G105: 9963905 | H105: 69037590000 | I105: 0 | J105: 0 | K105: 22.32325301 | L105: =0 -> 0 | M105: 0 | N105: 19.16723574 | O105: =0 -> 0 | P105: 0 | Q105: =0 -> 0 | R105: 0 | S105: 0 | U105: 100 | V105: 0.9998929 | W105: 0.0001071 | X105: 0 | Y105: 0.0073616 | Z105: 0 | AA105: 0.700168612 | AB105: 9964273 | AC105: 6980526 | AD105: 159680500 | AE105: 22.33347197 | AF105: 9964273 | AG105: 69780910000 | AH105: 0 | AI105: 19.17633768 | AK105: 0 | AL105: 0 | AN105: 0
A106: 104 | B106: 0.000108 | C106: 0.0073656 | D106: 6881477 | E106: 9963782 | F106: 68789810000 | G106: 9963782 | H106: 68789810000 | I106: 0 | J106: 0 | K106: 22.31979171 | L106: =0 -> 0 | M106: 0 | N106: 19.1641475 | O106: =0 -> 0 | P106: 0 | Q106: =0 -> 0 | R106: 0 | S106: 0 | U106: 101 | V106: 0.9998927 | W106: 0.000107325 | X106: 0 | Y106: 0.0073626 | Z106: 0 | AA106: 0.6976774147 | AB106: 9964150 | AC106: 6955764 | AD106: 159090500 | AE106: 22.33008401 | AF106: 9964150 | AG106: 69533140000 | AH106: 0 | AI106: 19.17332587 | AK106: 0 | AL106: 0 | AN106: 0
A107: 105 | B107: 0.000108225 | C107: 0.0073666 | D107: 6856715 | E107: 9963659 | F107: 68542040000 | G107: 9963659 | H107: 68542040000 | I107: 0 | J107: 0 | K107: 22.31631999 | L107: =0 -> 0 | M107: 0 | N107: 19.16103007 | O107: =0 -> 0 | P107: 0 | Q107: =0 -> 0 | R107: 0 | S107: 0 | U107: 102 | V107: 0.9998925 | W107: 0.00010755 | X107: 0 | Y107: 0.0073636 | Z107: 0 | AA107: 0.695195081 | AB107: 9964028 | AC107: 6931001 | AD107: 158500500 | AE107: 22.32667515 | AF107: 9964028 | AG107: 69285360000 | AH107: 0 | AI107: 19.17030118 | AK107: 0 | AL107: 0 | AN107: 0
A108: 106 | B108: 0.00010845 | C108: 0.0073676 | D108: 6831953 | E108: 9963536 | F108: 68294270000 | G108: 9963536 | H108: 68294270000 | I108: 0 | J108: 0 | K108: 22.31280847 | L108: =0 -> 0 | M108: 0 | N108: 19.1578892 | O108: =0 -> 0 | P108: 0 | Q108: =0 -> 0 | R108: 0 | S108: 0 | U108: 103 | V108: 0.9998922 | W108: 0.000107775 | X108: 0 | Y108: 0.0073646 | Z108: 0 | AA108: 0.6927215795 | AB108: 9963905 | AC108: 6906239 | AD108: 157910600 | AE108: 22.32325301 | AF108: 9963905 | AG108: 69037590000 | AH108: 0 | AI108: 19.16723574 | AK108: 0 | AL108: 0 | AN108: 0
A109: 107 | B109: 0.000108675 | C109: 0.0073686 | D109: 6807191 | E109: 9963413 | F109: 68046500000 | G109: 9963413 | H109: 68046500000 | I109: 0 | J109: 0 | K109: 22.30927141 | L109: =0 -> 0 | M109: 0 | N109: 19.15471845 | O109: =0 -> 0 | P109: 0 | Q109: =0 -> 0 | R109: 0 | S109: 0 | U109: 104 | V109: 0.999892 | W109: 0.000108 | X109: 0 | Y109: 0.0073656 | Z109: 0 | AA109: 0.6902568787 | AB109: 9963782 | AC109: 6881477 | AD109: 157320600 | AE109: 22.31979171 | AF109: 9963782 | AG109: 68789810000 | AH109: 0 | AI109: 19.1641475 | AK109: 0 | AL109: 0 | AN109: 0
A110: 108 | B110: 0.0001089 | C110: 0.0073696 | D110: 6782429 | E110: 9963290 | F110: 67798720000 | G110: 9963290 | H110: 67798720000 | I110: 0 | J110: 0 | K110: 22.30572326 | L110: =0 -> 0 | M110: 0 | N110: 19.15152361 | O110: =0 -> 0 | P110: 0 | Q110: =0 -> 0 | R110: 0 | S110: 0 | U110: 105 | V110: 0.9998918 | W110: 0.000108225 | X110: 0 | Y110: 0.0073666 | Z110: 0 | AA110: 0.6878009473 | AB110: 9963659 | AC110: 6856715 | AD110: 156730700 | AE110: 22.31631999 | AF110: 9963659 | AG110: 68542040000 | AH110: 0 | AI110: 19.16103007 | AK110: 0 | AL110: 0 | AN110: 0
A111: 109 | B111: 0.000109275 | C111: 0.007370667 | D111: 6758705 | E111: 9963165 | F111: 67561340000 | G111: 9963165 | H111: 67561340000 | I111: 0 | J111: 0 | K111: 22.30229531 | L111: =0 -> 0 | M111: 0 | N111: 19.14849238 | O111: =0 -> 0 | P111: 0 | Q111: =0 -> 0 | R111: 0 | S111: 0 | U111: 106 | V111: 0.9998916 | W111: 0.00010845 | X111: 0 | Y111: 0.0073676 | Z111: 0 | AA111: 0.6853537541 | AB111: 9963536 | AC111: 6831953 | AD111: 156140700 | AE111: 22.31280847 | AF111: 9963536 | AG111: 68294270000 | AH111: 0 | AI111: 19.1578892 | AK111: 0 | AL111: 0 | AN111: 0
A112: 110 | B112: 0.00010965 | C112: 0.007371733 | D112: 6734981 | E112: 9963040 | F112: 67323960000 | G112: 9963040 | H112: 67323960000 | I112: 0 | J112: 0 | K112: 22.2988432 | L112: =0 -> 0 | M112: 0 | N112: 19.14542039 | O112: =0 -> 0 | P112: 0 | Q112: =0 -> 0 | R112: 0 | S112: 0 | U112: 107 | V112: 0.9998913 | W112: 0.000108675 | X112: 0 | Y112: 0.0073686 | Z112: 0 | AA112: 0.682915268 | AB112: 9963413 | AC112: 6807191 | AD112: 155550700 | AE112: 22.30927141 | AF112: 9963413 | AG112: 68046500000 | AH112: 0 | AI112: 19.15471845 | AK112: 0 | AL112: 0 | AN112: 0
A113: 111 | B113: 0.000110025 | C113: 0.0073728 | D113: 6711257 | E113: 9962914 | F113: 67086590000 | G113: 9962914 | H113: 67086590000 | I113: 0 | J113: 0 | K113: 22.29536669 | L113: =0 -> 0 | M113: 0 | N113: 19.14232304 | O113: =0 -> 0 | P113: 0 | Q113: =0 -> 0 | R113: 0 | S113: 0 | U113: 108 | V113: 0.9998911 | W113: 0.0001089 | X113: 0 | Y113: 0.0073696 | Z113: 0 | AA113: 0.6804854581 | AB113: 9963290 | AC113: 6782429 | AD113: 154960800 | AE113: 22.30572326 | AF113: 9963290 | AG113: 67798720000 | AH113: 0 | AI113: 19.15152361 | AK113: 0 | AL113: 0 | AN113: 0
A114: 112 | B114: 0.0001104 | C114: 0.007373867 | D114: 6687533 | E114: 9962789 | F114: 66849210000 | G114: 9962789 | H114: 66849210000 | I114: 0 | J114: 0 | K114: 22.29186552 | L114: =0 -> 0 | M114: 0 | N114: 19.13920002 | O114: =0 -> 0 | P114: 0 | Q114: =0 -> 0 | R114: 0 | S114: 0 | U114: 109 | V114: 0.9998907 | W114: 0.000109275 | X114: 0 | Y114: 0.007370667 | Z114: 0 | AA114: 0.6780642934 | AB114: 9963165 | AC114: 6758705 | AD114: 154395600 | AE114: 22.30229531 | AF114: 9963165 | AG114: 67561340000 | AH114: 0 | AI114: 19.14849238 | AK114: 0 | AL114: 0 | AN114: 0
A115: 113 | B115: 0.000110775 | C115: 0.007374933 | D115: 6663808 | E115: 9962664 | F115: 66611830000 | G115: 9962664 | H115: 66611830000 | I115: 0 | J115: 0 | K115: 22.28834284 | L115: =0 -> 0 | M115: 0 | N115: 19.13605099 | O115: =0 -> 0 | P115: 0 | Q115: =0 -> 0 | R115: 0 | S115: 0 | U115: 110 | V115: 0.9998903 | W115: 0.00010965 | X115: 0 | Y115: 0.007371733 | Z115: 0 | AA115: 0.6756517431 | AB115: 9963040 | AC115: 6734981 | AD115: 153830400 | AE115: 22.2988432 | AF115: 9963040 | AG115: 67323960000 | AH115: 0 | AI115: 19.14542039 | AK115: 0 | AL115: 0 | AN115: 0
A116: 114 | B116: 0.00011115 | C116: 0.007376 | D116: 6640084 | E116: 9962539 | F116: 66374450000 | G116: 9962539 | H116: 66374450000 | I116: 0 | J116: 0 | K116: 22.28479155 | L116: =0 -> 0 | M116: 0 | N116: 19.13287564 | O116: =0 -> 0 | P116: 0 | Q116: =0 -> 0 | R116: 0 | S116: 0 | U116: 111 | V116: 0.99989 | W116: 0.000110025 | X116: 0 | Y116: 0.0073728 | Z116: 0 | AA116: 0.6732477768 | AB116: 9962914 | AC116: 6711257 | AD116: 153265200 | AE116: 22.29536669 | AF116: 9962914 | AG116: 67086590000 | AH116: 0 | AI116: 19.14232304 | AK116: 0 | AL116: 0 | AN116: 0
A117: 115 | B117: 0.000111525 | C117: 0.007377067 | D117: 6616360 | E117: 9962414 | F117: 66137070000 | G117: 9962414 | H117: 66137070000 | I117: 0 | J117: 0 | K117: 22.2812148 | L117: =0 -> 0 | M117: 0 | N117: 19.12967364 | O117: =0 -> 0 | P117: 0 | Q117: =0 -> 0 | R117: 0 | S117: 0 | U117: 112 | V117: 0.9998896 | W117: 0.0001104 | X117: 0 | Y117: 0.007373867 | Z117: 0 | AA117: 0.6708523637 | AB117: 9962789 | AC117: 6687533 | AD117: 152700000 | AE117: 22.29186552 | AF117: 9962789 | AG117: 66849210000 | AH117: 0 | AI117: 19.13920002 | AK117: 0 | AL117: 0 | AN117: 0
A118: 116 | B118: 0.0001119 | C118: 0.007378133 | D118: 6592636 | E118: 9962289 | F118: 65899690000 | G118: 9962289 | H118: 65899690000 | I118: 0 | J118: 0 | K118: 22.2776123 | L118: =0 -> 0 | M118: 0 | N118: 19.12646087 | O118: =0 -> 0 | P118: 0 | Q118: =0 -> 0 | R118: 0 | S118: 0 | U118: 113 | V118: 0.9998893 | W118: 0.000110775 | X118: 0 | Y118: 0.007374933 | Z118: 0 | AA118: 0.6684654735 | AB118: 9962664 | AC118: 6663808 | AD118: 152134800 | AE118: 22.28834284 | AF118: 9962664 | AG118: 66611830000 | AH118: 0 | AI118: 19.13605099 | AK118: 0 | AL118: 0 | AN118: 0
A119: 117 | B119: 0.000112275 | C119: 0.0073792 | D119: 6568912 | E119: 9962164 | F119: 65662310000 | G119: 9962164 | H119: 65662310000 | I119: 0 | J119: 0 | K119: 22.27398378 | L119: =0 -> 0 | M119: 0 | N119: 19.1232046 | O119: =0 -> 0 | P119: 0 | Q119: =0 -> 0 | R119: 0 | S119: 0 | U119: 114 | V119: 0.9998888 | W119: 0.00011115 | X119: 0 | Y119: 0.007376 | Z119: 0 | AA119: 0.6660870758 | AB119: 9962539 | AC119: 6640084 | AD119: 151569600 | AE119: 22.28479155 | AF119: 9962539 | AG119: 66374450000 | AH119: 0 | AI119: 19.13287564 | AK119: 0 | AL119: 0 | AN119: 0
A120: 118 | B120: 0.00011265 | C120: 0.007380267 | D120: 6545188 | E120: 9962038 | F120: 65424930000 | G120: 9962038 | H120: 65424930000 | I120: 0 | J120: 0 | K120: 22.27032896 | L120: =0 -> 0 | M120: 0 | N120: 19.11992065 | O120: =0 -> 0 | P120: 0 | Q120: =0 -> 0 | R120: 0 | S120: 0 | U120: 115 | V120: 0.9998885 | W120: 0.000111525 | X120: 0 | Y120: 0.007377067 | Z120: 0 | AA120: 0.6637171405 | AB120: 9962414 | AC120: 6616360 | AD120: 151004400 | AE120: 22.2812148 | AF120: 9962414 | AG120: 66137070000 | AH120: 0 | AI120: 19.12967364 | AK120: 0 | AL120: 0 | AN120: 0
A121: 119 | B121: 0.000113025 | C121: 0.007381334 | D121: 6521463 | E121: 9961913 | F121: 65187560000 | G121: 9961913 | H121: 65187560000 | I121: 0 | J121: 0 | K121: 22.26665104 | L121: =0 -> 0 | M121: 0 | N121: 19.11660865 | O121: =0 -> 0 | P121: 0 | Q121: =0 -> 0 | R121: 0 | S121: 0 | U121: 116 | V121: 0.9998881 | W121: 0.0001119 | X121: 0 | Y121: 0.007378133 | Z121: 0 | AA121: 0.6613556374 | AB121: 9962289 | AC121: 6592636 | AD121: 150439200 | AE121: 22.2776123 | AF121: 9962289 | AG121: 65899690000 | AH121: 0 | AI121: 19.12646087 | AK121: 0 | AL121: 0 | AN121: 0
A122: 120 | B122: 0.0001134 | C122: 0.0073824 | D122: 6497739 | E122: 9961788 | F122: 64950180000 | G122: 9961788 | H122: 64950180000 | I122: 0 | J122: 0 | K122: 22.26294275 | L122: =0 -> 0 | M122: 0 | N122: 19.11326826 | O122: =0 -> 0 | P122: 0 | Q122: =0 -> 0 | R122: 0 | S122: 0 | U122: 117 | V122: 0.9998877 | W122: 0.000112275 | X122: 0 | Y122: 0.0073792 | Z122: 0 | AA122: 0.6590025365 | AB122: 9962164 | AC122: 6568912 | AD122: 149874000 | AE122: 22.27398378 | AF122: 9962164 | AG122: 65662310000 | AH122: 0 | AI122: 19.1232046 | AK122: 0 | AL122: 0 | AN122: 0
A123: 121 | B123: 0.000113925 | C123: 0.007383534 | D123: 6475009 | E123: 9961659 | F123: 64722750000 | G123: 9961659 | H123: 64722750000 | I123: 0 | J123: 0 | K123: 22.25936728 | L123: =0 -> 0 | M123: 0 | N123: 19.11008819 | O123: =0 -> 0 | P123: 0 | Q123: =0 -> 0 | R123: 0 | S123: 0 | U123: 118 | V123: 0.9998873 | W123: 0.00011265 | X123: 0 | Y123: 0.007380267 | Z123: 0 | AA123: 0.6566578079 | AB123: 9962038 | AC123: 6545188 | AD123: 149308800 | AE123: 22.27032896 | AF123: 9962038 | AG123: 65424930000 | AH123: 0 | AI123: 19.11992065 | AK123: 0 | AL123: 0 | AN123: 0
A124: 122 | B124: 0.00011445 | C124: 0.007384667 | D124: 6452278 | E124: 9961530 | F124: 64495320000 | G124: 9961530 | H124: 64495320000 | I124: 0 | J124: 0 | K124: 22.25577015 | L124: =0 -> 0 | M124: 0 | N124: 19.10688524 | O124: =0 -> 0 | P124: 0 | Q124: =0 -> 0 | R124: 0 | S124: 0 | U124: 119 | V124: 0.999887 | W124: 0.000113025 | X124: 0 | Y124: 0.007381334 | Z124: 0 | AA124: 0.6543214219 | AB124: 9961913 | AC124: 6521463 | AD124: 148743600 | AE124: 22.26665104 | AF124: 9961913 | AG124: 65187560000 | AH124: 0 | AI124: 19.11660865 | AK124: 0 | AL124: 0 | AN124: 0
A125: 123 | B125: 0.000114975 | C125: 0.0073858 | D125: 6429547 | E125: 9961401 | F125: 64267890000 | G125: 9961401 | H125: 64267890000 | I125: 0 | J125: 0 | K125: 22.25214758 | L125: =0 -> 0 | M125: 0 | N125: 19.10365255 | O125: =0 -> 0 | P125: 0 | Q125: =0 -> 0 | R125: 0 | S125: 0 | U125: 120 | V125: 0.9998866 | W125: 0.0001134 | X125: 0 | Y125: 0.0073824 | Z125: 0 | AA125: 0.6519933487 | AB125: 9961788 | AC125: 6497739 | AD125: 148178400 | AE125: 22.26294275 | AF125: 9961788 | AG125: 64950180000 | AH125: 0 | AI125: 19.11326826 | AK125: 0 | AL125: 0 | AN125: 0
A126: 124 | B126: 0.0001155 | C126: 0.007386934 | D126: 6406817 | E126: 9961272 | F126: 64040460000 | G126: 9961272 | H126: 64040460000 | I126: 0 | J126: 0 | K126: 22.24849575 | L126: =0 -> 0 | M126: 0 | N126: 19.10039305 | O126: =0 -> 0 | P126: 0 | Q126: =0 -> 0 | R126: 0 | S126: 0 | U126: 121 | V126: 0.9998861 | W126: 0.000113925 | X126: 0 | Y126: 0.007383534 | Z126: 0 | AA126: 0.6496735588 | AB126: 9961659 | AC126: 6475009 | AD126: 147636900 | AE126: 22.25936728 | AF126: 9961659 | AG126: 64722750000 | AH126: 0 | AI126: 19.11008819 | AK126: 0 | AL126: 0 | AN126: 0
A127: 125 | B127: 0.000116025 | C127: 0.007388067 | D127: 6384086 | E127: 9961143 | F127: 63813030000 | G127: 9961143 | H127: 63813030000 | I127: 0 | J127: 0 | K127: 22.24482149 | L127: =0 -> 0 | M127: 0 | N127: 19.09710972 | O127: =0 -> 0 | P127: 0 | Q127: =0 -> 0 | R127: 0 | S127: 0 | U127: 122 | V127: 0.9998856 | W127: 0.00011445 | X127: 0 | Y127: 0.007384667 | Z127: 0 | AA127: 0.6473620227 | AB127: 9961530 | AC127: 6452278 | AD127: 147095400 | AE127: 22.25577015 | AF127: 9961530 | AG127: 64495320000 | AH127: 0 | AI127: 19.10688524 | AK127: 0 | AL127: 0 | AN127: 0
A128: 126 | B128: 0.00011655 | C128: 0.0073892 | D128: 6361355 | E128: 9961014 | F128: 63585600000 | G128: 9961014 | H128: 63585600000 | I128: 0 | J128: 0 | K128: 22.24113668 | L128: =0 -> 0 | M128: 0 | N128: 19.0937787 | O128: =0 -> 0 | P128: 0 | Q128: =0 -> 0 | R128: 0 | S128: 0 | U128: 123 | V128: 0.999885 | W128: 0.000114975 | X128: 0 | Y128: 0.0073858 | Z128: 0 | AA128: 0.6450587111 | AB128: 9961401 | AC128: 6429547 | AD128: 146553900 | AE128: 22.25214758 | AF128: 9961401 | AG128: 64267890000 | AH128: 0 | AI128: 19.10365255 | AK128: 0 | AL128: 0 | AN128: 0
A129: 127 | B129: 0.000117075 | C129: 0.007390333 | D129: 6338625 | E129: 9960886 | F129: 63358170000 | G129: 9960886 | H129: 63358170000 | I129: 0 | J129: 0 | K129: 22.23740608 | L129: =0 -> 0 | M129: 0 | N129: 19.09043669 | O129: =0 -> 0 | P129: 0 | Q129: =0 -> 0 | R129: 0 | S129: 0 | U129: 124 | V129: 0.9998845 | W129: 0.0001155 | X129: 0 | Y129: 0.007386934 | Z129: 0 | AA129: 0.6427635946 | AB129: 9961272 | AC129: 6406817 | AD129: 146012400 | AE129: 22.24849575 | AF129: 9961272 | AG129: 64040460000 | AH129: 0 | AI129: 19.10039305 | AK129: 0 | AL129: 0 | AN129: 0
A130: 128 | B130: =W133 -> 0.0001176 | C130: =Y133 -> 0.007391467 | D130: =AC133 -> 6315894 | E130: =AF133 -> 9960757 | F130: =AG133 -> 63130750000 | G130: =E130 -> 9960757 | H130: =F130 -> 63130750000 | I130: =X133 -> 0 | J130: =AN133 -> 0 | K130: =AE133 -> 22.23365224 | L130: =0 -> 0 | M130: =AL133 -> 0 | N130: =AI133 -> 19.08706985 | O130: =0 -> 0 | P130: =AK133 -> 0 | Q130: =0 -> 0 | R130: =Z133 -> 0 | S130: =AH133 -> 0 | U130: 125 | V130: 0.9998839 | W130: 0.000116025 | X130: 0 | Y130: 0.007388067 | Z130: 0 | AA130: 0.6404766441 | AB130: 9961143 | AC130: 6384086 | AD130: 145470900 | AE130: 22.24482149 | AF130: 9961143 | AG130: 63813030000 | AH130: 0 | AI130: 19.09710972 | AK130: 0 | AL130: 0 | AN130: 0
A131: 129 | B131: 0.000118125 | C131: 0.0073926 | D131: 6293163 | E131: 9960628 | F131: 62903320000 | G131: 9960628 | H131: 62903320000 | I131: 0 | J131: 0 | K131: 22.22987127 | L131: =0 -> 0 | M131: 0 | N131: 19.08367114 | O131: =0 -> 0 | P131: 0 | Q131: =0 -> 0 | R131: 0 | S131: 0 | U131: 126 | V131: 0.9998835 | W131: 0.00011655 | X131: 0 | Y131: 0.0073892 | Z131: 0 | AA131: 0.6381978306 | AB131: 9961014 | AC131: 6361355 | AD131: 144929500 | AE131: 22.24113668 | AF131: 9961014 | AG131: 63585600000 | AH131: 0 | AI131: 19.0937787 | AK131: 0 | AL131: 0 | AN131: 0
A132: 130 | B132: 0.00011865 | C132: 0.007393734 | D132: 6270433 | E132: 9960499 | F132: 62675890000 | G132: 9960499 | H132: 62675890000 | I132: 0 | J132: 0 | K132: 22.22607521 | L132: =0 -> 0 | M132: 0 | N132: 19.08024691 | O132: =0 -> 0 | P132: 0 | Q132: =0 -> 0 | R132: 0 | S132: 0 | U132: 127 | V132: 0.9998829 | W132: 0.000117075 | X132: 0 | Y132: 0.007390333 | Z132: 0 | AA132: 0.6359271251 | AB132: 9960886 | AC132: 6338625 | AD132: 144388000 | AE132: 22.23740608 | AF132: 9960886 | AG132: 63358170000 | AH132: 0 | AI132: 19.09043669 | AK132: 0 | AL132: 0 | AN132: 0
A133: 131 | B133: 0.000119175 | C133: 0.007394867 | D133: 6247702 | E133: 9960370 | F133: 62448460000 | G133: 9960370 | H133: 62448460000 | I133: 0 | J133: 0 | K133: 22.22223917 | L133: =0 -> 0 | M133: 0 | N133: 19.07679003 | O133: =0 -> 0 | P133: 0 | Q133: =0 -> 0 | R133: 0 | S133: 0 | U133: 128 | V133: 0.9998824 | W133: 0.0001176 | X133: 0 | Y133: 0.007391467 | Z133: 0 | AA133: 0.6336644988 | AB133: 9960757 | AC133: 6315894 | AD133: 143846500 | AE133: 22.23365224 | AF133: 9960757 | AG133: 63130750000 | AH133: 0 | AI133: 19.08706985 | AK133: 0 | AL133: 0 | AN133: 0
A134: 132 | B134: 0.0001197 | C134: 0.007396 | D134: 6224971 | E134: 9960241 | F134: 62221030000 | G134: 9960241 | H134: 62221030000 | I134: 0 | J134: 0 | K134: 22.21837511 | L134: =0 -> 0 | M134: 0 | N134: 19.07330351 | O134: =0 -> 0 | P134: 0 | Q134: =0 -> 0 | R134: 0 | S134: 0 | U134: 129 | V134: 0.9998819 | W134: 0.000118125 | X134: 0 | Y134: 0.0073926 | Z134: 0 | AA134: 0.6314099229 | AB134: 9960628 | AC134: 6293163 | AD134: 143305000 | AE134: 22.22987127 | AF134: 9960628 | AG134: 62903320000 | AH134: 0 | AI134: 19.08367114 | AK134: 0 | AL134: 0 | AN134: 0
A135: 133 | B135: 0.000120375 | C135: 0.0073972 | D135: 6203192 | E135: 9960107 | F135: 62003130000 | G135: 9960107 | H135: 62003130000 | I135: 0 | J135: 0 | K135: 22.21464976 | L135: =0 -> 0 | M135: 0 | N135: 19.06998338 | O135: =0 -> 0 | P135: 0 | Q135: =0 -> 0 | R135: 0 | S135: 0 | U135: 130 | V135: 0.9998813 | W135: 0.00011865 | X135: 0 | Y135: 0.007393734 | Z135: 0 | AA135: 0.6291633687 | AB135: 9960499 | AC135: 6270433 | AD135: 142763600 | AE135: 22.22607521 | AF135: 9960499 | AG135: 62675890000 | AH135: 0 | AI135: 19.08024691 | AK135: 0 | AL135: 0 | AN135: 0
A136: 134 | B136: 0.00012105 | C136: 0.0073984 | D136: 6181412 | E136: 9959973 | F136: 61785220000 | G136: 9959973 | H136: 61785220000 | I136: 0 | J136: 0 | K136: 22.21091802 | L136: =0 -> 0 | M136: 0 | N136: 19.0666325 | O136: =0 -> 0 | P136: 0 | Q136: =0 -> 0 | R136: 0 | S136: 0 | U136: 131 | V136: 0.9998809 | W136: 0.000119175 | X136: 0 | Y136: 0.007394867 | Z136: 0 | AA136: 0.6269248078 | AB136: 9960370 | AC136: 6247702 | AD136: 142222100 | AE136: 22.22223917 | AF136: 9960370 | AG136: 62448460000 | AH136: 0 | AI136: 19.07679003 | AK136: 0 | AL136: 0 | AN136: 0
A137: 135 | B137: 0.000121725 | C137: 0.0073996 | D137: 6159632 | E137: 9959839 | F137: 61567320000 | G137: 9959839 | H137: 61567320000 | I137: 0 | J137: 0 | K137: 22.20715989 | L137: =0 -> 0 | M137: 0 | N137: 19.06325395 | O137: =0 -> 0 | P137: 0 | Q137: =0 -> 0 | R137: 0 | S137: 0 | U137: 132 | V137: 0.9998803 | W137: 0.0001197 | X137: 0 | Y137: 0.007396 | Z137: 0 | AA137: 0.6246942117 | AB137: 9960241 | AC137: 6224971 | AD137: 141680600 | AE137: 22.21837511 | AF137: 9960241 | AG137: 62221030000 | AH137: 0 | AI137: 19.07330351 | AK137: 0 | AL137: 0 | AN137: 0
A138: 136 | B138: 0.0001224 | C138: 0.0074008 | D138: 6137853 | E138: 9959705 | F138: 61349420000 | G138: 9959705 | H138: 61349420000 | I138: 0 | J138: 0 | K138: 22.20335509 | L138: =0 -> 0 | M138: 0 | N138: 19.05983318 | O138: =0 -> 0 | P138: 0 | Q138: =0 -> 0 | R138: 0 | S138: 0 | U138: 133 | V138: 0.9998796 | W138: 0.000120375 | X138: 0 | Y138: 0.0073972 | Z138: 0 | AA138: 0.622471552 | AB138: 9960107 | AC138: 6203192 | AD138: 141161800 | AE138: 22.21464976 | AF138: 9960107 | AG138: 62003130000 | AH138: 0 | AI138: 19.06998338 | AK138: 0 | AL138: 0 | AN138: 0
A139: 137 | B139: 0.000123075 | C139: 0.007402 | D139: 6116073 | E139: 9959571 | F139: 61131510000 | G139: 9959571 | H139: 61131510000 | I139: 0 | J139: 0 | K139: 22.19952691 | L139: =0 -> 0 | M139: 0 | N139: 19.05639816 | O139: =0 -> 0 | P139: 0 | Q139: =0 -> 0 | R139: 0 | S139: 0 | U139: 134 | V139: 0.9998789 | W139: 0.00012105 | X139: 0 | Y139: 0.0073984 | Z139: 0 | AA139: 0.6202568006 | AB139: 9959973 | AC139: 6181412 | AD139: 140643100 | AE139: 22.21091802 | AF139: 9959973 | AG139: 61785220000 | AH139: 0 | AI139: 19.0666325 | AK139: 0 | AL139: 0 | AN139: 0
A140: 138 | B140: 0.00012375 | C140: 0.0074032 | D140: 6094293 | E140: 9959436 | F140: 60913610000 | G140: 9959436 | H140: 60913610000 | I140: 0 | J140: 0 | K140: 22.19568777 | L140: =0 -> 0 | M140: 0 | N140: 19.05293791 | O140: =0 -> 0 | P140: 0 | Q140: =0 -> 0 | R140: 0 | S140: 0 | U140: 135 | V140: 0.9998783 | W140: 0.000121725 | X140: 0 | Y140: 0.0073996 | Z140: 0 | AA140: 0.6180499292 | AB140: 9959839 | AC140: 6159632 | AD140: 140124400 | AE140: 22.20715989 | AF140: 9959839 | AG140: 61567320000 | AH140: 0 | AI140: 19.06325395 | AK140: 0 | AL140: 0 | AN140: 0
A141: 139 | B141: 0.000124425 | C141: 0.007404401 | D141: 6072514 | E141: 9959302 | F141: 60695700000 | G141: 9959302 | H141: 60695700000 | I141: 0 | J141: 0 | K141: 22.19181736 | L141: =0 -> 0 | M141: 0 | N141: 19.04944508 | O141: =0 -> 0 | P141: 0 | Q141: =0 -> 0 | R141: 0 | S141: 0 | U141: 136 | V141: 0.9998776 | W141: 0.0001224 | X141: 0 | Y141: 0.0074008 | Z141: 0 | AA141: 0.6158509098 | AB141: 9959705 | AC141: 6137853 | AD141: 139605600 | AE141: 22.20335509 | AF141: 9959705 | AG141: 61349420000 | AH141: 0 | AI141: 19.05983318 | AK141: 0 | AL141: 0 | AN141: 0
A142: 140 | B142: 0.0001251 | C142: 0.007405601 | D142: 6050734 | E142: 9959168 | F142: 60477800000 | G142: 9959168 | H142: 60477800000 | I142: 0 | J142: 0 | K142: 22.18790631 | L142: =0 -> 0 | M142: 0 | N142: 19.0459228 | O142: =0 -> 0 | P142: 0 | Q142: =0 -> 0 | R142: 0 | S142: 0 | U142: 137 | V142: 0.9998769 | W142: 0.000123075 | X142: 0 | Y142: 0.007402 | Z142: 0 | AA142: 0.6136597146 | AB142: 9959571 | AC142: 6116073 | AD142: 139086800 | AE142: 22.19952691 | AF142: 9959571 | AG142: 61131510000 | AH142: 0 | AI142: 19.05639816 | AK142: 0 | AL142: 0 | AN142: 0
A143: 141 | B143: 0.000125775 | C143: 0.007406801 | D143: 6028955 | E143: 9959034 | F143: 60259900000 | G143: 9959034 | H143: 60259900000 | I143: 0 | J143: 0 | K143: 22.18397982 | L143: =0 -> 0 | M143: 0 | N143: 19.04237421 | O143: =0 -> 0 | P143: 0 | Q143: =0 -> 0 | R143: 0 | S143: 0 | U143: 138 | V143: 0.9998763 | W143: 0.00012375 | X143: 0 | Y143: 0.0074032 | Z143: 0 | AA143: 0.6114763156 | AB143: 9959436 | AC143: 6094293 | AD143: 138568100 | AE143: 22.19568777 | AF143: 9959436 | AG143: 60913610000 | AH143: 0 | AI143: 19.05293791 | AK143: 0 | AL143: 0 | AN143: 0
A144: 142 | B144: 0.00012645 | C144: 0.007408001 | D144: 6007175 | E144: 9958900 | F144: 60041990000 | G144: 9958900 | H144: 60041990000 | I144: 0 | J144: 0 | K144: 22.18001199 | L144: =0 -> 0 | M144: 0 | N144: 19.03879189 | O144: =0 -> 0 | P144: 0 | Q144: =0 -> 0 | R144: 0 | S144: 0 | U144: 139 | V144: 0.9998755 | W144: 0.000124425 | X144: 0 | Y144: 0.007404401 | Z144: 0 | AA144: 0.6093006852 | AB144: 9959302 | AC144: 6072514 | AD144: 138049400 | AE144: 22.19181736 | AF144: 9959302 | AG144: 60695700000 | AH144: 0 | AI144: 19.04944508 | AK144: 0 | AL144: 0 | AN144: 0
A145: 143 | B145: 0.000127125 | C145: 0.007409201 | D145: 5985395 | E145: 9958766 | F145: 59824090000 | G145: 9958766 | H145: 59824090000 | I145: 0 | J145: 0 | K145: 22.176032 | L145: =0 -> 0 | M145: 0 | N145: 19.03517897 | O145: =0 -> 0 | P145: 0 | Q145: =0 -> 0 | R145: 0 | S145: 0 | U145: 140 | V145: 0.9998749 | W145: 0.0001251 | X145: 0 | Y145: 0.007405601 | Z145: 0 | AA145: 0.6071327956 | AB145: 9959168 | AC145: 6050734 | AD145: 137530600 | AE145: 22.18790631 | AF145: 9959168 | AG145: 60477800000 | AH145: 0 | AI145: 19.0459228 | AK145: 0 | AL145: 0 | AN145: 0
A146: 144 | B146: 0.0001278 | C146: 0.007410401 | D146: 5963616 | E146: 9958632 | F146: 59606190000 | G146: 9958632 | H146: 59606190000 | I146: 0 | J146: 0 | K146: 22.17200236 | L146: =0 -> 0 | M146: 0 | N146: 19.03153862 | O146: =0 -> 0 | P146: 0 | Q146: =0 -> 0 | R146: 0 | S146: 0 | U146: 141 | V146: 0.9998742 | W146: 0.000125775 | X146: 0 | Y146: 0.007406801 | Z146: 0 | AA146: 0.6049726194 | AB146: 9959034 | AC146: 6028955 | AD146: 137011900 | AE146: 22.18397982 | AF146: 9959034 | AG146: 60259900000 | AH146: 0 | AI146: 19.04237421 | AK146: 0 | AL146: 0 | AN146: 0
A147: 145 | B147: 0.00012855 | C147: 0.007411734 | D147: 5942747 | E147: 9958491 | F147: 59397400000 | G147: 9958491 | H147: 59397400000 | I147: 0 | J147: 0 | K147: 22.16815086 | L147: =0 -> 0 | M147: 0 | N147: 19.02806718 | O147: =0 -> 0 | P147: 0 | Q147: =0 -> 0 | R147: 0 | S147: 0 | U147: 142 | V147: 0.9998736 | W147: 0.00012645 | X147: 0 | Y147: 0.007408001 | Z147: 0 | AA147: 0.6028201291 | AB147: 9958900 | AC147: 6007175 | AD147: 136493100 | AE147: 22.18001199 | AF147: 9958900 | AG147: 60041990000 | AH147: 0 | AI147: 19.03879189 | AK147: 0 | AL147: 0 | AN147: 0
A148: 146 | B148: 0.0001293 | C148: 0.007413067 | D148: 5921878 | E148: 9958350 | F148: 59188620000 | G148: 9958350 | H148: 59188620000 | I148: 0 | J148: 0 | K148: 22.16425534 | L148: =0 -> 0 | M148: 0 | N148: 19.02456718 | O148: =0 -> 0 | P148: 0 | Q148: =0 -> 0 | R148: 0 | S148: 0 | U148: 143 | V148: 0.9998729 | W148: 0.000127125 | X148: 0 | Y148: 0.007409201 | Z148: 0 | AA148: 0.6006752973 | AB148: 9958766 | AC148: 5985395 | AD148: 135974400 | AE148: 22.176032 | AF148: 9958766 | AG148: 59824090000 | AH148: 0 | AI148: 19.03517897 | AK148: 0 | AL148: 0 | AN148: 0
A149: 147 | B149: 0.00013005 | C149: 0.007414401 | D149: 5901009 | E149: 9958210 | F149: 58979840000 | G149: 9958210 | H149: 58979840000 | I149: 0 | J149: 0 | K149: 22.16033226 | L149: =0 -> 0 | M149: 0 | N149: 19.02103825 | O149: =0 -> 0 | P149: 0 | Q149: =0 -> 0 | R149: 0 | S149: 0 | U149: 144 | V149: 0.9998722 | W149: 0.0001278 | X149: 0 | Y149: 0.007410401 | Z149: 0 | AA149: 0.5985380968 | AB149: 9958632 | AC149: 5963616 | AD149: 135455600 | AE149: 22.17200236 | AF149: 9958632 | AG149: 59606190000 | AH149: 0 | AI149: 19.03153862 | AK149: 0 | AL149: 0 | AN149: 0
A150: 148 | B150: 0.0001308 | C150: 0.007415734 | D150: 5880140 | E150: 9958069 | F150: 58771050000 | G150: 9958069 | H150: 58771050000 | I150: 0 | J150: 0 | K150: 22.15639835 | L150: =0 -> 0 | M150: 0 | N150: 19.01747642 | O150: =0 -> 0 | P150: 0 | Q150: =0 -> 0 | R150: 0 | S150: 0 | U150: 145 | V150: 0.9998714 | W150: 0.00012855 | X150: 0 | Y150: 0.007411734 | Z150: 0 | AA150: 0.5964085005 | AB150: 9958491 | AC150: 5942747 | AD150: 134958700 | AE150: 22.16815086 | AF150: 9958491 | AG150: 59397400000 | AH150: 0 | AI150: 19.02806718 | AK150: 0 | AL150: 0 | AN150: 0
A151: 149 | B151: 0.00013155 | C151: 0.007417067 | D151: 5859271 | E151: 9957928 | F151: 58562270000 | G151: 9957928 | H151: 58562270000 | I151: 0 | J151: 0 | K151: 22.15241934 | L151: =0 -> 0 | M151: 0 | N151: 19.01388856 | O151: =0 -> 0 | P151: 0 | Q151: =0 -> 0 | R151: 0 | S151: 0 | U151: 146 | V151: 0.9998707 | W151: 0.0001293 | X151: 0 | Y151: 0.007413067 | Z151: 0 | AA151: 0.5942864813 | AB151: 9958350 | AC151: 5921878 | AD151: 134461700 | AE151: 22.16425534 | AF151: 9958350 | AG151: 59188620000 | AH151: 0 | AI151: 19.02456718 | AK151: 0 | AL151: 0 | AN151: 0
A152: 150 | B152: 0.0001323 | C152: 0.0074184 | D152: 5838401 | E152: 9957788 | F152: 58353480000 | G152: 9957788 | H152: 58353480000 | I152: 0 | J152: 0 | K152: 22.14841577 | L152: =0 -> 0 | M152: 0 | N152: 19.01027068 | O152: =0 -> 0 | P152: 0 | Q152: =0 -> 0 | R152: 0 | S152: 0 | U152: 147 | V152: 0.9998699 | W152: 0.00013005 | X152: 0 | Y152: 0.007414401 | Z152: 0 | AA152: 0.5921720122 | AB152: 9958210 | AC152: 5901009 | AD152: 133964700 | AE152: 22.16033226 | AF152: 9958210 | AG152: 58979840000 | AH152: 0 | AI152: 19.02103825 | AK152: 0 | AL152: 0 | AN152: 0
A153: 151 | B153: 0.00013305 | C153: 0.007419733 | D153: 5817532 | E153: 9957647 | F153: 58144690000 | G153: 9957647 | H153: 58144690000 | I153: 0 | J153: 0 | K153: 22.14439677 | L153: =0 -> 0 | M153: 0 | N153: 19.0066224 | O153: =0 -> 0 | P153: 0 | Q153: =0 -> 0 | R153: 0 | S153: 0 | U153: 148 | V153: 0.9998692 | W153: 0.0001308 | X153: 0 | Y153: 0.007415734 | Z153: 0 | AA153: 0.5900650664 | AB153: 9958069 | AC153: 5880140 | AD153: 133467800 | AE153: 22.15639835 | AF153: 9958069 | AG153: 58771050000 | AH153: 0 | AI153: 19.01747642 | AK153: 0 | AL153: 0 | AN153: 0
A154: 152 | B154: 0.0001338 | C154: 0.007421067 | D154: 5796663 | E154: 9957506 | F154: 57935910000 | G154: 9957506 | H154: 57935910000 | I154: 0 | J154: 0 | K154: 22.14033158 | L154: =0 -> 0 | M154: 0 | N154: 19.00294334 | O154: =0 -> 0 | P154: 0 | Q154: =0 -> 0 | R154: 0 | S154: 0 | U154: 149 | V154: 0.9998685 | W154: 0.00013155 | X154: 0 | Y154: 0.007417067 | Z154: 0 | AA154: 0.5879656171 | AB154: 9957928 | AC154: 5859271 | AD154: 132970800 | AE154: 22.15241934 | AF154: 9957928 | AG154: 58562270000 | AH154: 0 | AI154: 19.01388856 | AK154: 0 | AL154: 0 | AN154: 0
A155: 153 | B155: 0.00013455 | C155: 0.0074224 | D155: 5775794 | E155: 9957365 | F155: 57727120000 | G155: 9957365 | H155: 57727120000 | I155: 0 | J155: 0 | K155: 22.13623701 | L155: =0 -> 0 | M155: 0 | N155: 18.9992331 | O155: =0 -> 0 | P155: 0 | Q155: =0 -> 0 | R155: 0 | S155: 0 | U155: 150 | V155: 0.9998677 | W155: 0.0001323 | X155: 0 | Y155: 0.0074184 | Z155: 0 | AA155: 0.5858736377 | AB155: 9957788 | AC155: 5838401 | AD155: 132473800 | AE155: 22.14841577 | AF155: 9957788 | AG155: 58353480000 | AH155: 0 | AI155: 19.01027068 | AK155: 0 | AL155: 0 | AN155: 0
A156: 154 | B156: 0.0001353 | C156: 0.007423733 | D156: 5754925 | E156: 9957224 | F156: 57518340000 | G156: 9957224 | H156: 57518340000 | I156: 0 | J156: 0 | K156: 22.13213012 | L156: =0 -> 0 | M156: 0 | N156: 18.9954913 | O156: =0 -> 0 | P156: 0 | Q156: =0 -> 0 | R156: 0 | S156: 0 | U156: 151 | V156: 0.999867 | W156: 0.00013305 | X156: 0 | Y156: 0.007419733 | Z156: 0 | AA156: 0.5837891014 | AB156: 9957647 | AC156: 5817532 | AD156: 131976900 | AE156: 22.14439677 | AF156: 9957647 | AG156: 58144690000 | AH156: 0 | AI156: 19.0066224 | AK156: 0 | AL156: 0 | AN156: 0
A157: 155 | B157: 0.00013605 | C157: 0.007425067 | D157: 5734056 | E157: 9957084 | F157: 57309560000 | G157: 9957084 | H157: 57309560000 | I157: 0 | J157: 0 | K157: 22.1279759 | L157: =0 -> 0 | M157: 0 | N157: 18.99171752 | O157: =0 -> 0 | P157: 0 | Q157: =0 -> 0 | R157: 0 | S157: 0 | U157: 152 | V157: 0.9998662 | W157: 0.0001338 | X157: 0 | Y157: 0.007421067 | Z157: 0 | AA157: 0.581711982 | AB157: 9957506 | AC157: 5796663 | AD157: 131479900 | AE157: 22.14033158 | AF157: 9957506 | AG157: 57935910000 | AH157: 0 | AI157: 19.00294334 | AK157: 0 | AL157: 0 | AN157: 0
A158: 156 | B158: 0.0001368 | C158: 0.0074264 | D158: 5713187 | E158: 9956943 | F158: 57100770000 | G158: 9956943 | H158: 57100770000 | I158: 0 | J158: 0 | K158: 22.12379133 | L158: =0 -> 0 | M158: 0 | N158: 18.98791136 | O158: =0 -> 0 | P158: 0 | Q158: =0 -> 0 | R158: 0 | S158: 0 | U158: 153 | V158: 0.9998655 | W158: 0.00013455 | X158: 0 | Y158: 0.0074224 | Z158: 0 | AA158: 0.5796422529 | AB158: 9957365 | AC158: 5775794 | AD158: 130982900 | AE158: 22.13623701 | AF158: 9957365 | AG158: 57727120000 | AH158: 0 | AI158: 18.9992331 | AK158: 0 | AL158: 0 | AN158: 0
A159: 157 | B159: 0.0001377 | C159: 0.007427867 | D159: 5693190 | E159: 9956795 | F159: 56900720000 | G159: 9956795 | H159: 56900720000 | I159: 0 | J159: 0 | K159: 22.11977622 | L159: =0 -> 0 | M159: 0 | N159: 18.98427211 | O159: =0 -> 0 | P159: 0 | Q159: =0 -> 0 | R159: 0 | S159: 0 | U159: 154 | V159: 0.9998647 | W159: 0.0001353 | X159: 0 | Y159: 0.007423733 | Z159: 0 | AA159: 0.577579888 | AB159: 9957224 | AC159: 5754925 | AD159: 130486000 | AE159: 22.13213012 | AF159: 9957224 | AG159: 57518340000 | AH159: 0 | AI159: 18.9954913 | AK159: 0 | AL159: 0 | AN159: 0
A160: 158 | B160: 0.0001386 | C160: 0.007429333 | D160: 5673194 | E160: 9956646 | F160: 56700670000 | G160: 9956646 | H160: 56700670000 | I160: 0 | J160: 0 | K160: 22.1157288 | L160: =0 -> 0 | M160: 0 | N160: 18.98062603 | O160: =0 -> 0 | P160: 0 | Q160: =0 -> 0 | R160: 0 | S160: 0 | U160: 155 | V160: 0.9998639 | W160: 0.00013605 | X160: 0 | Y160: 0.007425067 | Z160: 0 | AA160: 0.5755248609 | AB160: 9957084 | AC160: 5734056 | AD160: 129989000 | AE160: 22.1279759 | AF160: 9957084 | AG160: 57309560000 | AH160: 0 | AI160: 18.99171752 | AK160: 0 | AL160: 0 | AN160: 0
A161: 159 | B161: 0.0001395 | C161: 0.0074308 | D161: 5653197 | E161: 9956498 | F161: 56500620000 | G161: 9956498 | H161: 56500620000 | I161: 0 | J161: 0 | K161: 22.11165675 | L161: =0 -> 0 | M161: 0 | N161: 18.97694981 | O161: =0 -> 0 | P161: 0 | Q161: =0 -> 0 | R161: 0 | S161: 0 | U161: 156 | V161: 0.9998632 | W161: 0.0001368 | X161: 0 | Y161: 0.0074264 | Z161: 0 | AA161: 0.5734771456 | AB161: 9956943 | AC161: 5713187 | AD161: 129492000 | AE161: 22.12379133 | AF161: 9956943 | AG161: 57100770000 | AH161: 0 | AI161: 18.98791136 | AK161: 0 | AL161: 0 | AN161: 0
A162: 160 | B162: 0.0001404 | C162: 0.007432267 | D162: 5633200 | E162: 9956350 | F162: 56300570000 | G162: 9956350 | H162: 56300570000 | I162: 0 | J162: 0 | K162: 22.1075558 | L162: =0 -> 0 | M162: 0 | N162: 18.97321976 | O162: =0 -> 0 | P162: 0 | Q162: =0 -> 0 | R162: 0 | S162: 0 | U162: 157 | V162: 0.9998623 | W162: 0.0001377 | X162: 0 | Y162: 0.007427867 | Z162: 0 | AA162: 0.571436716 | AB162: 9956795 | AC162: 5693190 | AD162: 129015900 | AE162: 22.11977622 | AF162: 9956795 | AG162: 56900720000 | AH162: 0 | AI162: 18.98427211 | AK162: 0 | AL162: 0 | AN162: 0
A163: 161 | B163: 0.0001413 | C163: 0.007433733 | D163: 5613203 | E163: 9956202 | F163: 56100520000 | G163: 9956202 | H163: 56100520000 | I163: 0 | J163: 0 | K163: 22.10342563 | L163: =0 -> 0 | M163: 0 | N163: 18.96947812 | O163: =0 -> 0 | P163: 0 | Q163: =0 -> 0 | R163: 0 | S163: 0 | U163: 158 | V163: 0.9998614 | W163: 0.0001386 | X163: 0 | Y163: 0.007429333 | Z163: 0 | AA163: 0.5694035463 | AB163: 9956646 | AC163: 5673194 | AD163: 128539800 | AE163: 22.1157288 | AF163: 9956646 | AG163: 56700670000 | AH163: 0 | AI163: 18.98062603 | AK163: 0 | AL163: 0 | AN163: 0
A164: 162 | B164: 0.0001422 | C164: 0.0074352 | D164: 5593206 | E164: 9956054 | F164: 55900470000 | G164: 9956054 | H164: 55900470000 | I164: 0 | J164: 0 | K164: 22.09926592 | L164: =0 -> 0 | M164: 0 | N164: 18.96570123 | O164: =0 -> 0 | P164: 0 | Q164: =0 -> 0 | R164: 0 | S164: 0 | U164: 159 | V164: 0.9998605 | W164: 0.0001395 | X164: 0 | Y164: 0.0074308 | Z164: 0 | AA164: 0.5673776107 | AB164: 9956498 | AC164: 5653197 | AD164: 128063700 | AE164: 22.11165675 | AF164: 9956498 | AG164: 56500620000 | AH164: 0 | AI164: 18.97694981 | AK164: 0 | AL164: 0 | AN164: 0
A165: 163 | B165: 0.0001431 | C165: 0.007436667 | D165: 5573210 | E165: 9955905 | F165: 55700420000 | G165: 9955905 | H165: 55700420000 | I165: 0 | J165: 0 | K165: 22.0950723 | L165: =0 -> 0 | M165: 0 | N165: 18.96188875 | O165: =0 -> 0 | P165: 0 | Q165: =0 -> 0 | R165: 0 | S165: 0 | U165: 160 | V165: 0.9998596 | W165: 0.0001404 | X165: 0 | Y165: 0.007432267 | Z165: 0 | AA165: 0.5653588832 | AB165: 9956350 | AC165: 5633200 | AD165: 127587600 | AE165: 22.1075558 | AF165: 9956350 | AG165: 56300570000 | AH165: 0 | AI165: 18.97321976 | AK165: 0 | AL165: 0 | AN165: 0
A166: 164 | B166: 0.000144 | C166: 0.007438133 | D166: 5553213 | E166: 9955757 | F166: 55500370000 | G166: 9955757 | H166: 55500370000 | I166: 0 | J166: 0 | K166: 22.09085256 | L166: =0 -> 0 | M166: 0 | N166: 18.95804796 | O166: =0 -> 0 | P166: 0 | Q166: =0 -> 0 | R166: 0 | S166: 0 | U166: 161 | V166: 0.9998587 | W166: 0.0001413 | X166: 0 | Y166: 0.007433733 | Z166: 0 | AA166: 0.5633473384 | AB166: 9956202 | AC166: 5613203 | AD166: 127111500 | AE166: 22.10342563 | AF166: 9956202 | AG166: 56100520000 | AH166: 0 | AI166: 18.96947812 | AK166: 0 | AL166: 0 | AN166: 0
A167: 165 | B167: 0.0001449 | C167: 0.0074396 | D167: 5533216 | E167: 9955609 | F167: 55300320000 | G167: 9955609 | H167: 55300320000 | I167: 0 | J167: 0 | K167: 22.08660232 | L167: =0 -> 0 | M167: 0 | N167: 18.95417461 | O167: =0 -> 0 | P167: 0 | Q167: =0 -> 0 | R167: 0 | S167: 0 | U167: 162 | V167: 0.9998578 | W167: 0.0001422 | X167: 0 | Y167: 0.0074352 | Z167: 0 | AA167: 0.5613429507 | AB167: 9956054 | AC167: 5593206 | AD167: 126635400 | AE167: 22.09926592 | AF167: 9956054 | AG167: 55900470000 | AH167: 0 | AI167: 18.96570123 | AK167: 0 | AL167: 0 | AN167: 0
A168: 166 | B168: 0.0001458 | C168: 0.007441067 | D168: 5513219 | E168: 9955460 | F168: 55100270000 | G168: 9955460 | H168: 55100270000 | I168: 0 | J168: 0 | K168: 22.08232124 | L168: =0 -> 0 | M168: 0 | N168: 18.9502624 | O168: =0 -> 0 | P168: 0 | Q168: =0 -> 0 | R168: 0 | S168: 0 | U168: 163 | V168: 0.9998569 | W168: 0.0001431 | X168: 0 | Y168: 0.007436667 | Z168: 0 | AA168: 0.5593456946 | AB168: 9955905 | AC168: 5573210 | AD168: 126159300 | AE168: 22.0950723 | AF168: 9955905 | AG168: 55700420000 | AH168: 0 | AI168: 18.96188875 | AK168: 0 | AL168: 0 | AN168: 0
A169: 167 | B169: 0.0001467 | C169: 0.007442534 | D169: 5493223 | E169: 9955312 | F169: 54900220000 | G169: 9955312 | H169: 54900220000 | I169: 0 | J169: 0 | K169: 22.07800488 | L169: =0 -> 0 | M169: 0 | N169: 18.94632266 | O169: =0 -> 0 | P169: 0 | Q169: =0 -> 0 | R169: 0 | S169: 0 | U169: 164 | V169: 0.999856 | W169: 0.000144 | X169: 0 | Y169: 0.007438133 | Z169: 0 | AA169: 0.5573555447 | AB169: 9955757 | AC169: 5553213 | AD169: 125683200 | AE169: 22.09085256 | AF169: 9955757 | AG169: 55500370000 | AH169: 0 | AI169: 18.95804796 | AK169: 0 | AL169: 0 | AN169: 0
A170: 168 | B170: 0.0001476 | C170: 0.007444 | D170: 5473226 | E170: 9955164 | F170: 54700170000 | G170: 9955164 | H170: 54700170000 | I170: 0 | J170: 0 | K170: 22.07366111 | L170: =0 -> 0 | M170: 0 | N170: 18.94234911 | O170: =0 -> 0 | P170: 0 | Q170: =0 -> 0 | R170: 0 | S170: 0 | U170: 165 | V170: 0.9998551 | W170: 0.0001449 | X170: 0 | Y170: 0.0074396 | Z170: 0 | AA170: 0.5553724758 | AB170: 9955609 | AC170: 5533216 | AD170: 125207100 | AE170: 22.08660232 | AF170: 9955609 | AG170: 55300320000 | AH170: 0 | AI170: 18.95417461 | AK170: 0 | AL170: 0 | AN170: 0
A171: 169 | B171: 0.000148575 | C171: 0.007445534 | D171: 5454064 | E171: 9955007 | F171: 54508480000 | G171: 9955007 | H171: 54508480000 | I171: 3.5e-06 | J171: 0 | K171: 22.06949081 | L171: =0 -> 0 | M171: 0 | N171: 18.93856189 | O171: =0 -> 0 | P171: 0 | Q171: =0 -> 0 | R171: 0 | S171: 3.486970316e-06 | U171: 166 | V171: 0.9998542 | W171: 0.0001458 | X171: 0 | Y171: 0.007441067 | Z171: 0 | AA171: 0.5533964626 | AB171: 9955460 | AC171: 5513219 | AD171: 124731000 | AE171: 22.08232124 | AF171: 9955460 | AG171: 55100270000 | AH171: 0 | AI171: 18.9502624 | AK171: 0 | AL171: 0 | AN171: 0
A172: 170 | B172: 0.00014955 | C172: 0.007447067 | D172: 5434902 | E172: 9954850 | F172: 54316800000 | G172: 9954850 | H172: 54316800000 | I172: 7e-06 | J172: 0 | K172: 22.0652911 | L172: =0 -> 0 | M172: 0 | N172: 18.93474541 | O172: =0 -> 0 | P172: 0 | Q172: =0 -> 0 | R172: 0 | S172: 6.973935265e-06 | U172: 167 | V172: 0.9998533 | W172: 0.0001467 | X172: 0 | Y172: 0.007442534 | Z172: 0 | AA172: 0.55142748 | AB172: 9955312 | AC172: 5493223 | AD172: 124254900 | AE172: 22.07800488 | AF172: 9955312 | AG172: 54900220000 | AH172: 0 | AI172: 18.94632266 | AK172: 0 | AL172: 0 | AN172: 0
A173: 171 | B173: 0.000150525 | C173: 0.0074486 | D173: 5415741 | E173: 9954692 | F173: 54125110000 | G173: 9954692 | H173: 54125110000 | I173: 1.05e-05 | J173: 0 | K173: 22.0610575 | L173: =0 -> 0 | M173: 0 | N173: 18.93090146 | O173: =0 -> 0 | P173: 0 | Q173: =0 -> 0 | R173: 0 | S173: 1.046089485e-05 | U173: 168 | V173: 0.9998524 | W173: 0.0001476 | X173: 0 | Y173: 0.007444 | Z173: 0 | AA173: 0.5494655031 | AB173: 9955164 | AC173: 5473226 | AD173: 123778800 | AE173: 22.07366111 | AF173: 9955164 | AG173: 54700170000 | AH173: 0 | AI173: 18.94234911 | AK173: 0 | AL173: 0 | AN173: 0
A174: 172 | B174: 0.0001515 | C174: 0.007450134 | D174: 5396579 | E174: 9954535 | F174: 53933420000 | G174: 9954535 | H174: 53933420000 | I174: 1.4e-05 | J174: 0 | K174: 22.05679803 | L174: =0 -> 0 | M174: 0 | N174: 18.92701955 | O174: =0 -> 0 | P174: 0 | Q174: =0 -> 0 | R174: 0 | S174: 1.394784906e-05 | U174: 169 | V174: 0.9998514 | W174: 0.000148575 | X174: 3.5e-06 | Y174: 0.007445534 | Z174: 0 | AA174: 0.5475105069 | AB174: 9955007 | AC174: 5454064 | AD174: 123322700 | AE174: 22.06949081 | AF174: 9955007 | AG174: 54508480000 | AH174: 3.486970316e-06 | AI174: 18.93856189 | AK174: 0 | AL174: 0 | AN174: 0
A175: 173 | B175: 0.000152475 | C175: 0.007451667 | D175: 5377418 | E175: 9954378 | F175: 53741740000 | G175: 9954378 | H175: 53741740000 | I175: 1.75e-05 | J175: 0 | K175: 22.05250399 | L175: =0 -> 0 | M175: 0 | N175: 18.92310722 | O175: =0 -> 0 | P175: 0 | Q175: =0 -> 0 | R175: 0 | S175: 1.743479791e-05 | U175: 170 | V175: 0.9998505 | W175: 0.00014955 | X175: 7e-06 | Y175: 0.007447067 | Z175: 0 | AA175: 0.5455624666 | AB175: 9954850 | AC175: 5434902 | AD175: 122866600 | AE175: 22.0652911 | AF175: 9954850 | AG175: 54316800000 | AH175: 6.973935265e-06 | AI175: 18.93474541 | AK175: 0 | AL175: 0 | AN175: 0
A176: 174 | B176: 0.00015345 | C176: 0.0074532 | D176: 5358256 | E176: 9954221 | F176: 53550050000 | G176: 9954221 | H176: 53550050000 | I176: 2.1e-05 | J176: 0 | K176: 22.04818346 | L176: =0 -> 0 | M176: 0 | N176: 18.91916018 | O176: =0 -> 0 | P176: 0 | Q176: =0 -> 0 | R176: 0 | S176: 2.09217414e-05 | U176: 171 | V176: 0.9998495 | W176: 0.000150525 | X176: 1.05e-05 | Y176: 0.0074486 | Z176: 0 | AA176: 0.5436213573 | AB176: 9954692 | AC176: 5415741 | AD176: 122410500 | AE176: 22.0610575 | AF176: 9954692 | AG176: 54125110000 | AH176: 1.046089485e-05 | AI176: 18.93090146 | AK176: 0 | AL176: 0 | AN176: 0
A177: 175 | B177: 0.000154425 | C177: 0.007454733 | D177: 5339094 | E177: 9954064 | F177: 53358360000 | G177: 9954064 | H177: 53358360000 | I177: 2.45e-05 | J177: 0 | K177: 22.04383192 | L177: =0 -> 0 | M177: 0 | N177: 18.91518608 | O177: =0 -> 0 | P177: 0 | Q177: =0 -> 0 | R177: 0 | S177: 2.440867952e-05 | U177: 172 | V177: 0.9998485 | W177: 0.0001515 | X177: 1.4e-05 | Y177: 0.007450134 | Z177: 0 | AA177: 0.5416871546 | AB177: 9954535 | AC177: 5396579 | AD177: 121954400 | AE177: 22.05679803 | AF177: 9954535 | AG177: 53933420000 | AH177: 1.394784906e-05 | AI177: 18.92701955 | AK177: 0 | AL177: 0 | AN177: 0
A178: 176 | B178: 0.0001554 | C178: 0.007456267 | D178: 5319933 | E178: 9953907 | F178: 53166670000 | G178: 9953907 | H178: 53166670000 | I178: 2.8e-05 | J178: 0 | K178: 22.03944479 | L178: =0 -> 0 | M178: 0 | N178: 18.9111702 | O178: =0 -> 0 | P178: 0 | Q178: =0 -> 0 | R178: 0 | S178: 2.789561226e-05 | U178: 173 | V178: 0.9998475 | W178: 0.000152475 | X178: 1.75e-05 | Y178: 0.007451667 | Z178: 0 | AA178: 0.5397598337 | AB178: 9954378 | AC178: 5377418 | AD178: 121498300 | AE178: 22.05250399 | AF178: 9954378 | AG178: 53741740000 | AH178: 1.743479791e-05 | AI178: 18.92310722 | AK178: 0 | AL178: 0 | AN178: 0
A179: 177 | B179: 0.000156375 | C179: 0.0074578 | D179: 5300771 | E179: 9953750 | F179: 52974990000 | G179: 9953750 | H179: 52974990000 | I179: 3.15e-05 | J179: 0 | K179: 22.03503019 | L179: =0 -> 0 | M179: 0 | N179: 18.90712643 | O179: =0 -> 0 | P179: 0 | Q179: =0 -> 0 | R179: 0 | S179: 3.138253965e-05 | U179: 174 | V179: 0.9998466 | W179: 0.00015345 | X179: 2.1e-05 | Y179: 0.0074532 | Z179: 0 | AA179: 0.5378393702 | AB179: 9954221 | AC179: 5358256 | AD179: 121042200 | AE179: 22.04818346 | AF179: 9954221 | AG179: 53550050000 | AH179: 2.09217414e-05 | AI179: 18.91916018 | AK179: 0 | AL179: 0 | AN179: 0
A180: 178 | B180: 0.00015735 | C180: 0.007459333 | D180: 5281609 | E180: 9953592 | F180: 52783300000 | G180: 9953592 | H180: 52783300000 | I180: 3.5e-05 | J180: 0 | K180: 22.03058357 | L180: =0 -> 0 | M180: 0 | N180: 18.90304823 | O180: =0 -> 0 | P180: 0 | Q180: =0 -> 0 | R180: 0 | S180: 3.486946167e-05 | U180: 175 | V180: 0.9998456 | W180: 0.000154425 | X180: 2.45e-05 | Y180: 0.007454733 | Z180: 0 | AA180: 0.5359257398 | AB180: 9954064 | AC180: 5339094 | AD180: 120586100 | AE180: 22.04383192 | AF180: 9954064 | AG180: 53358360000 | AH180: 2.440867952e-05 | AI180: 18.91518608 | AK180: 0 | AL180: 0 | AN180: 0
A181: 179 | B181: 0.000158325 | C181: 0.007460867 | D181: 5262448 | E181: 9953435 | F181: 52591620000 | G181: 9953435 | H181: 52591620000 | I181: 3.85e-05 | J181: 0 | K181: 22.02610027 | L181: =0 -> 0 | M181: 0 | N181: 18.89893106 | O181: =0 -> 0 | P181: 0 | Q181: =0 -> 0 | R181: 0 | S181: 3.835637831e-05 | U181: 176 | V181: 0.9998446 | W181: 0.0001554 | X181: 2.8e-05 | Y181: 0.007456267 | Z181: 0 | AA181: 0.534018918 | AB181: 9953907 | AC181: 5319933 | AD181: 120130000 | AE181: 22.03944479 | AF181: 9953907 | AG181: 53166670000 | AH181: 2.789561226e-05 | AI181: 18.9111702 | AK181: 0 | AL181: 0 | AN181: 0
A182: 180 | B182: 0.0001593 | C182: 0.0074624 | D182: 5243286 | E182: 9953278 | F182: 52399930000 | G182: 9953278 | H182: 52399930000 | I182: 4.2e-05 | J182: 0 | K182: 22.02158851 | L182: =0 -> 0 | M182: 0 | N182: 18.89478264 | O182: =0 -> 0 | P182: 0 | Q182: =0 -> 0 | R182: 0 | S182: 4.18432896e-05 | U182: 177 | V182: 0.9998436 | W182: 0.000156375 | X182: 3.15e-05 | Y182: 0.0074578 | Z182: 0 | AA182: 0.5321188807 | AB182: 9953750 | AC182: 5300771 | AD182: 119673900 | AE182: 22.03503019 | AF182: 9953750 | AG182: 52974990000 | AH182: 3.138253965e-05 | AI182: 18.90712643 | AK182: 0 | AL182: 0 | AN182: 0
A183: 181 | B183: 0.000160275 | C183: 0.007464067 | D183: 5224925 | E183: 9953111 | F183: 52216250000 | G183: 9953111 | H183: 52216250000 | I183: 4.3e-05 | J183: 2.690310833e-05 | K183: 22.01726002 | L183: =0 -> 0 | M183: 0 | N183: 18.89083052 | O183: =0 -> 0 | P183: 0 | Q183: =0 -> 0 | R183: 0 | S183: 4.283952256e-05 | U183: 178 | V183: 0.9998426 | W183: 0.00015735 | X183: 3.5e-05 | Y183: 0.007459333 | Z183: 0 | AA183: 0.5302256037 | AB183: 9953592 | AC183: 5281609 | AD183: 119217800 | AE183: 22.03058357 | AF183: 9953592 | AG183: 52783300000 | AH183: 3.486946167e-05 | AI183: 18.90304823 | AK183: 0 | AL183: 0 | AN183: 0
A184: 182 | B184: 0.00016125 | C184: 0.007465733 | D184: 5206563 | E184: 9952944 | F184: 52032580000 | G184: 9952944 | H184: 52032580000 | I184: 4.4e-05 | J184: 5.380621667e-05 | K184: 22.01288612 | L184: =0 -> 0 | M184: 0 | N184: 18.88685012 | O184: =0 -> 0 | P184: 0 | Q184: =0 -> 0 | R184: 0 | S184: 4.383575387e-05 | U184: 179 | V184: 0.9998417 | W184: 0.000158325 | X184: 3.85e-05 | Y184: 0.007460867 | Z184: 0 | AA184: 0.528339063 | AB184: 9953435 | AC184: 5262448 | AD184: 118761700 | AE184: 22.02610027 | AF184: 9953435 | AG184: 52591620000 | AH184: 3.835637831e-05 | AI184: 18.89893106 | AK184: 0 | AL184: 0 | AN184: 0
A185: 183 | B185: 0.000162225 | C185: 0.0074674 | D185: 5188202 | E185: 9952778 | F185: 51848900000 | G185: 9952778 | H185: 51848900000 | I185: 4.5e-05 | J185: 8.0709325e-05 | K185: 22.00849618 | L185: =0 -> 0 | M185: 0 | N185: 18.88282832 | O185: =0 -> 0 | P185: 0 | Q185: =0 -> 0 | R185: 0 | S185: 4.48319835e-05 | U185: 180 | V185: 0.9998407 | W185: 0.0001593 | X185: 4.2e-05 | Y185: 0.0074624 | Z185: 0 | AA185: 0.5264592346 | AB185: 9953278 | AC185: 5243286 | AD185: 118305600 | AE185: 22.02158851 | AF185: 9953278 | AG185: 52399930000 | AH185: 4.18432896e-05 | AI185: 18.89478264 | AK185: 0 | AL185: 0 | AN185: 0
A186: 184 | B186: 0.0001632 | C186: 0.007469066 | D186: 5169840 | E186: 9952611 | F186: 51665230000 | G186: 9952611 | H186: 51665230000 | I186: 4.6e-05 | J186: 0.0001076124333 | K186: 22.00406009 | L186: =0 -> 0 | M186: 0 | N186: 18.87877731 | O186: =0 -> 0 | P186: 0 | Q186: =0 -> 0 | R186: 0 | S186: 4.582821148e-05 | U186: 181 | V186: 0.9998397 | W186: 0.000160275 | X186: 4.3e-05 | Y186: 0.007464067 | Z186: 0 | AA186: 0.5245860946 | AB186: 9953111 | AC186: 5224925 | AD186: 117868700 | AE186: 22.01726002 | AF186: 9953111 | AG186: 52216250000 | AH186: 4.283952256e-05 | AI186: 18.89083052 | AK186: 0 | AL186: 0 | AN186: 2.690310833e-05
A187: 185 | B187: 0.000164175 | C187: 0.007470733 | D187: 5151479 | E187: 9952444 | F187: 51481550000 | G187: 9952444 | H187: 51481550000 | I187: 4.7e-05 | J187: 0.0001345155417 | K187: 21.9996074 | L187: =0 -> 0 | M187: 0 | N187: 18.87469685 | O187: =0 -> 0 | P187: 0 | Q187: =0 -> 0 | R187: 0 | S187: 4.682443777e-05 | U187: 182 | V187: 0.9998388 | W187: 0.00016125 | X187: 4.4e-05 | Y187: 0.007465733 | Z187: 0 | AA187: 0.5227196192 | AB187: 9952944 | AC187: 5206563 | AD187: 117431700 | AE187: 22.01288612 | AF187: 9952944 | AG187: 52032580000 | AH187: 4.383575387e-05 | AI187: 18.88685012 | AK187: 0 | AL187: 0 | AN187: 5.380621667e-05
A188: 186 | B188: 0.00016515 | C188: 0.0074724 | D188: 5133117 | E188: 9952277 | F188: 51297880000 | G188: 9952277 | H188: 51297880000 | I188: 4.8e-05 | J188: 0.00016141865 | K188: 21.99512725 | L188: =0 -> 0 | M188: 0 | N188: 18.87057786 | O188: =0 -> 0 | P188: 0 | Q188: =0 -> 0 | R188: 0 | S188: 4.78206624e-05 | U188: 183 | V188: 0.9998378 | W188: 0.000162225 | X188: 4.5e-05 | Y188: 0.0074674 | Z188: 0 | AA188: 0.5208597847 | AB188: 9952778 | AC188: 5188202 | AD188: 116994800 | AE188: 22.00849618 | AF188: 9952778 | AG188: 51848900000 | AH188: 4.48319835e-05 | AI188: 18.88282832 | AK188: 0 | AL188: 0 | AN188: 8.0709325e-05
A189: 187 | B189: 0.000166125 | C189: 0.007474067 | D189: 5114755 | E189: 9952110 | F189: 51114210000 | G189: 9952110 | H189: 51114210000 | I189: 4.9e-05 | J189: 0.0001883217583 | K189: 21.99059539 | L189: =0 -> 0 | M189: 0 | N189: 18.86642423 | O189: =0 -> 0 | P189: 0 | Q189: =0 -> 0 | R189: 0 | S189: 4.881688536e-05 | U189: 184 | V189: 0.9998368 | W189: 0.0001632 | X189: 4.6e-05 | Y189: 0.007469066 | Z189: 0 | AA189: 0.5190065676 | AB189: 9952611 | AC189: 5169840 | AD189: 116557800 | AE189: 22.00406009 | AF189: 9952611 | AG189: 51665230000 | AH189: 4.582821148e-05 | AI189: 18.87877731 | AK189: 0 | AL189: 0 | AN189: 0.0001076124333
A190: 188 | B190: 0.0001671 | C190: 0.007475733 | D190: 5096394 | E190: 9951943 | F190: 50930530000 | G190: 9951943 | H190: 50930530000 | I190: 5e-05 | J190: 0.0002152248667 | K190: 21.98604607 | L190: =0 -> 0 | M190: 0 | N190: 18.8622399 | O190: =0 -> 0 | P190: 0 | Q190: =0 -> 0 | R190: 0 | S190: 4.981310667e-05 | U190: 185 | V190: 0.9998358 | W190: 0.000164175 | X190: 4.7e-05 | Y190: 0.007470733 | Z190: 0 | AA190: 0.5171599441 | AB190: 9952444 | AC190: 5151479 | AD190: 116120900 | AE190: 21.9996074 | AF190: 9952444 | AG190: 51481550000 | AH190: 4.682443777e-05 | AI190: 18.87469685 | AK190: 0 | AL190: 0 | AN190: 0.0001345155417
A191: 189 | B191: 0.000168075 | C191: 0.0074774 | D191: 5078032 | E191: 9951776 | F191: 50746850000 | G191: 9951776 | H191: 50746850000 | I191: 5.1e-05 | J191: 0.000242127975 | K191: 21.98146828 | L191: =0 -> 0 | M191: 0 | N191: 18.85801568 | O191: =0 -> 0 | P191: 0 | Q191: =0 -> 0 | R191: 0 | S191: 5.08093263e-05 | U191: 186 | V191: 0.9998348 | W191: 0.00016515 | X191: 4.8e-05 | Y191: 0.0074724 | Z191: 0 | AA191: 0.515319891 | AB191: 9952277 | AC191: 5133117 | AD191: 115684000 | AE191: 21.99512725 | AF191: 9952277 | AG191: 51297880000 | AH191: 4.78206624e-05 | AI191: 18.87057786 | AK191: 0 | AL191: 0 | AN191: 0.00016141865
A192: 190 | B192: 0.00016905 | C192: 0.007479066 | D192: 5059671 | E192: 9951610 | F192: 50563180000 | G192: 9951610 | H192: 50563180000 | I192: 5.2e-05 | J192: 0.0002690310833 | K192: 21.97683305 | L192: =0 -> 0 | M192: 0 | N192: 18.85375547 | O192: =0 -> 0 | P192: 0 | Q192: =0 -> 0 | R192: 0 | S192: 5.180554428e-05 | U192: 187 | V192: 0.9998339 | W192: 0.000166125 | X192: 4.9e-05 | Y192: 0.007474067 | Z192: 0 | AA192: 0.5134863848 | AB192: 9952110 | AC192: 5114755 | AD192: 115247000 | AE192: 21.99059539 | AF192: 9952110 | AG192: 51114210000 | AH192: 4.881688536e-05 | AI192: 18.86642423 | AK192: 0 | AL192: 0 | AN192: 0.0001883217583
A193: 191 | B193: 0.000170025 | C193: 0.007480733 | D193: 5041309 | E193: 9951443 | F193: 50379510000 | G193: 9951443 | H193: 50379510000 | I193: 5.3e-05 | J193: 0.0002959341917 | K193: 21.97218837 | L193: =0 -> 0 | M193: 0 | N193: 18.84945896 | O193: =0 -> 0 | P193: 0 | Q193: =0 -> 0 | R193: 0 | S193: 5.280176058e-05 | U193: 188 | V193: 0.9998329 | W193: 0.0001671 | X193: 5e-05 | Y193: 0.007475733 | Z193: 0 | AA193: 0.5116594021 | AB193: 9951943 | AC193: 5096394 | AD193: 114810100 | AE193: 21.98604607 | AF193: 9951943 | AG193: 50930530000 | AH193: 4.981310667e-05 | AI193: 18.8622399 | AK193: 0 | AL193: 0 | AN193: 0.0002152248667
A194: 192 | B194: =W197 -> 0.000171 | C194: =Y197 -> 0.0074824 | D194: =AC197 -> 5022948 | E194: =AF197 -> 9951276 | F194: =AG197 -> 50195830000 | G194: =E194 -> 9951276 | H194: =F194 -> 50195830000 | I194: =X197 -> 5.4e-05 | J194: =AN197 -> 0.0003228373 | K194: =AE197 -> 21.96748533 | L194: =0 -> 0 | M194: =AL197 -> 0 | N194: =AI197 -> 18.8451254 | O194: =0 -> 0 | P194: =AK197 -> 0 | Q194: =0 -> 0 | R194: =Z197 -> 0 | S194: =AH197 -> 5.37979752e-05 | U194: 189 | V194: 0.9998319 | W194: 0.000168075 | X194: 5.1e-05 | Y194: 0.0074774 | Z194: 0 | AA194: 0.5098389199 | AB194: 9951776 | AC194: 5078032 | AD194: 114373200 | AE194: 21.98146828 | AF194: 9951776 | AG194: 50746850000 | AH194: 5.08093263e-05 | AI194: 18.85801568 | AK194: 0 | AL194: 0 | AN194: 0.000242127975
A195: 193 | B195: 0.00017205 | C195: 0.007484199 | D195: 5005353 | E195: 9951090 | F195: 50019790000 | G195: 9951090 | H195: 50019790000 | I195: 5.5e-05 | J195: 0.00039223875 | K195: 21.96299984 | L195: =0 -> 0 | M195: 0 | N195: 18.84100493 | O195: =0 -> 0 | P195: 0 | Q195: =0 -> 0 | R195: 0 | S195: 5.479418453e-05 | U195: 190 | V195: 0.999831 | W195: 0.00016905 | X195: 5.2e-05 | Y195: 0.007479066 | Z195: 0 | AA195: 0.5080249149 | AB195: 9951610 | AC195: 5059671 | AD195: 113936200 | AE195: 21.97683305 | AF195: 9951610 | AG195: 50563180000 | AH195: 5.180554428e-05 | AI195: 18.85375547 | AK195: 0 | AL195: 0 | AN195: 0.0002690310833
A196: 194 | B196: 0.0001731 | C196: 0.007486 | D196: 4987758 | E196: 9950903 | F196: 49843740000 | G196: 9950903 | H196: 49843740000 | I196: 5.6e-05 | J196: 0.0004616402 | K196: 21.95846265 | L196: =0 -> 0 | M196: 0 | N196: 18.83684616 | O196: =0 -> 0 | P196: 0 | Q196: =0 -> 0 | R196: 0 | S196: 5.5790392e-05 | U196: 191 | V196: 0.9998299 | W196: 0.000170025 | X196: 5.3e-05 | Y196: 0.007480733 | Z196: 0 | AA196: 0.5062173642 | AB196: 9951443 | AC196: 5041309 | AD196: 113499300 | AE196: 21.97218837 | AF196: 9951443 | AG196: 50379510000 | AH196: 5.280176058e-05 | AI196: 18.84945896 | AK196: 0 | AL196: 0 | AN196: 0.0002959341917
A197: 195 | B197: 0.00017415 | C197: 0.0074878 | D197: 4970164 | E197: 9950717 | F197: 49667700000 | G197: 9950717 | H197: 49667700000 | I197: 5.7e-05 | J197: 0.00053104165 | K197: 21.95388881 | L197: =0 -> 0 | M197: 0 | N197: 18.83265296 | O197: =0 -> 0 | P197: 0 | Q197: =0 -> 0 | R197: 0 | S197: 5.67865977e-05 | U197: 192 | V197: 0.999829 | W197: 0.000171 | X197: 5.4e-05 | Y197: 0.0074824 | Z197: 0 | AA197: 0.5044162447 | AB197: 9951276 | AC197: 5022948 | AD197: 113062300 | AE197: 21.96748533 | AF197: 9951276 | AG197: 50195830000 | AH197: 5.37979752e-05 | AI197: 18.8451254 | AK197: 0 | AL197: 0 | AN197: 0.0003228373
A198: 196 | B198: 0.0001752 | C198: 0.0074896 | D198: 4952569 | E198: 9950530 | F198: 49491650000 | G198: 9950530 | H198: 49491650000 | I198: 5.8e-05 | J198: 0.0006004431 | K198: 21.94928702 | L198: =0 -> 0 | M198: 0 | N198: 18.82842493 | O198: =0 -> 0 | P198: 0 | Q198: =0 -> 0 | R198: 0 | S198: 5.77828016e-05 | U198: 193 | V198: 0.9998279 | W198: 0.00017205 | X198: 5.5e-05 | Y198: 0.007484199 | Z198: 0 | AA198: 0.5026215335 | AB198: 9951090 | AC198: 5005353 | AD198: 112643800 | AE198: 21.96299984 | AF198: 9951090 | AG198: 50019790000 | AH198: 5.479418453e-05 | AI198: 18.84100493 | AK198: 0 | AL198: 0 | AN198: 0.00039223875
A199: 197 | B199: 0.00017625 | C199: 0.0074914 | D199: 4934975 | E199: 9950344 | F199: 49315610000 | G199: 9950344 | H199: 49315610000 | I199: 5.9e-05 | J199: 0.00066984455 | K199: 21.94464785 | L199: =0 -> 0 | M199: 0 | N199: 18.82416604 | O199: =0 -> 0 | P199: 0 | Q199: =0 -> 0 | R199: 0 | S199: 5.87790037e-05 | U199: 194 | V199: 0.9998269 | W199: 0.0001731 | X199: 5.6e-05 | Y199: 0.007486 | Z199: 0 | AA199: 0.500833208 | AB199: 9950903 | AC199: 4987758 | AD199: 112225200 | AE199: 21.95846265 | AF199: 9950903 | AG199: 49843740000 | AH199: 5.5790392e-05 | AI199: 18.83684616 | AK199: 0 | AL199: 0 | AN199: 0.0004616402
A200: 198 | B200: 0.0001773 | C200: 0.0074932 | D200: 4917380 | E200: 9950158 | F200: 49139560000 | G200: 9950158 | H200: 49139560000 | I200: 6e-05 | J200: 0.000739246 | K200: 21.9400004 | L200: =0 -> 0 | M200: 0 | N200: 18.81986702 | O200: =0 -> 0 | P200: 0 | Q200: =0 -> 0 | R200: 0 | S200: 5.9775204e-05 | U200: 195 | V200: 0.9998258 | W200: 0.00017415 | X200: 5.7e-05 | Y200: 0.0074878 | Z200: 0 | AA200: 0.4990512453 | AB200: 9950717 | AC200: 4970164 | AD200: 111806600 | AE200: 21.95388881 | AF200: 9950717 | AG200: 49667700000 | AH200: 5.67865977e-05 | AI200: 18.83265296 | AK200: 0 | AL200: 0 | AN200: 0.00053104165
... 1185 more rows

Sheet Plan1 (hidden)
